Workbook

Sheet Instructions
A3: 4 steps to calculate the WHDHC from full load curve data
A5: 1 | B5: Input the requested data into the green fields in worksheet "Input" (pay attention to the respective unit).
B6: Start with the header fields of general data in row 1-5.
B7: The value for "Transmission type" has to be selected in the drop down menu that appears when clicking on the respective input cell.
A9: 2 | B9: Then input the full load data beginning with row 11.
B10: Concerning the full load data, the values have to be entered in increasing order starting from idle speed.
A12: 3 | B12: If all requested data is entered correctly, click the button "Generate WHDHC from Full load data".
A14: 4 | B14: A message box appears when the calculation of the WHDHC is finished and the results are shown in the worksheet "Output_WHDHC".
B15: The worksheets "Calc_Data", "Ref_Speeds" and "Calc_WHDHC" are only needed for calculation purposes and provide additional interim results.
A21: Contact information:
B23: Gérard Silberholz | D23: silberholz@ivt.tugraz.at
B24: Stefan Hausberger | D24: hausberger@ivt.tugraz.at

Sheet Input
A1: P rated [kW]: | B1: =329.68 -> 329.68
A2: n rated [min-1]: | B2: 1900
A3: n @ idling [min-1]: | B3: 560
A4: Transmission type: | C4: Transmission efficiency for direct transmission is 0.98 and 0.95 for others, in addition 0.95 for the final reduction gear (acc. to Japanese Kokujikan No. 281 of 16.03.2007)
A5: Wheel radius [m]: | B5: 0.958
A8: Full load data
A9: n [min-1]: | B9: Pe [kW] | C9: Pmot [kW]
A10: speed | B10: power | C10: motoring power
A11: 560 | B11: 57.603 | C11: -8.242
A12: 627 | B12: 76.357 | C12: -9.066
A13: 694 | B13: 96.767 | C13: -9.944
A14: 761 | B14: 117.504 | C14: -10.883
A15: 828 | B15: 139.81 | C15: -11.929
A16: 895 | B16: 164.28 | C16: -13.035
A17: 962 | B17: 196.508 | C17: -14.222
A18: 1029 | B18: 219.564 | C18: -15.66
A19: 1096 | B19: 237.762 | C19: -17.184
A20: 1163 | B20: 255.638 | C20: -18.799
A21: 1230 | B21: 271.024 | C21: -20.567
A22: 1297 | B22: 286.354 | C22: -22.433
A23: 1364 | B23: 301.007 | C23: -24.477
A24: 1431 | B24: 311.574 | C24: -26.704
A25: 1498 | B25: 318.678 | C25: -29.103
A26: 1565 | B26: 322.643 | C26: -32.004
A27: 1632 | B27: 325.032 | C27: -34.885
A28: 1699 | B28: 326.569 | C28: -37.756
A29: 1766 | B29: 327.369 | C29: -40.657
A30: 1833 | B30: 327.867 | C30: -43.683
A31: 1900 | B31: 329.534 | C31: -46.815
A32: 1967 | B32: 301.029 | C32: -50.606
A33: 2034 | B33: 260.542 | C33: -54.504
A34: 2101 | B34: 216.622 | C34: -58.526
A35: 2168 | B35: 161.435 | C35: -62.639

Sheet Calc_Data
A2: For calculation purposes only
A4: n [min-1] | B4: P_max [W] | C4: T_max [Nm] | D4: P_mot [W] | E4: T_mot [Nm] | G4: n [min-1] | H4: P_max [W] | I4: T_max [Nm] | J4: T_mot [Nm] | K4: T_sum [Nm]
A5: 560 | B5: 57603 | C5: 982 | D5: -8242 | E5: -141 | G5: 560 | H5: 57603 | I5: 982 | J5: -141 | K5: 0
A6: 627 | B6: 76357 | C6: 1163 | D6: -9066 | E6: -138 | G6: 570 | H6: 60402 | I6: 1009 | J6: -141 | K6: 9820
A7: 694 | B7: 96767 | C7: 1331 | D7: -9944 | E7: -137 | G7: 580 | H7: 63201 | I7: 1036 | J7: -140 | K7: 19910
A8: 761 | B8: 117504 | C8: 1474 | D8: -10883 | E8: -137 | G8: 590 | H8: 66000 | I8: 1063 | J8: -140 | K8: 30270
A9: 828 | B9: 139810 | C9: 1612 | D9: -11929 | E9: -138 | G9: 600 | H9: 68799 | I9: 1090 | J9: -139 | K9: 40900
A10: 895 | B10: 164280 | C10: 1753 | D10: -13035 | E10: -139 | G10: 610 | H10: 71599 | I10: 1117 | J10: -139 | K10: 51800
A11: 962 | B11: 196508 | C11: 1951 | D11: -14222 | E11: -141 | G11: 620 | H11: 74398 | I11: 1144 | J11: -138 | K11: 62970
A12: 1029 | B12: 219564 | C12: 2038 | D12: -15660 | E12: -145 | G12: 630 | H12: 77271 | I12: 1171 | J12: -138 | K12: 74410
A13: 1096 | B13: 237762 | C13: 2072 | D13: -17184 | E13: -150 | G13: 640 | H13: 80317 | I13: 1196 | J13: -138 | K13: 86120
A14: 1163 | B14: 255638 | C14: 2099 | D14: -18799 | E14: -154 | G14: 650 | H14: 83363 | I14: 1221 | J14: -138 | K14: 98080
A15: 1230 | B15: 271024 | C15: 2104 | D15: -20567 | E15: -160 | G15: 660 | H15: 86410 | I15: 1246 | J15: -138 | K15: 110290
A16: 1297 | B16: 286354 | C16: 2108 | D16: -22433 | E16: -165 | G16: 670 | H16: 89456 | I16: 1271 | J16: -137 | K16: 122750
A17: 1364 | B17: 301007 | C17: 2107 | D17: -24477 | E17: -171 | G17: 680 | H17: 92502 | I17: 1296 | J17: -137 | K17: 135460
A18: 1431 | B18: 311574 | C18: 2079 | D18: -26704 | E18: -178 | G18: 690 | H18: 95548 | I18: 1321 | J18: -137 | K18: 148420
A19: 1498 | B19: 318678 | C19: 2031 | D19: -29103 | E19: -186 | G19: 700 | H19: 98624 | I19: 1344 | J19: -137 | K19: 161630
A20: 1565 | B20: 322643 | C20: 1969 | D20: -32004 | E20: -195 | G20: 710 | H20: 101719 | I20: 1365 | J20: -137 | K20: 175070
A21: 1632 | B21: 325032 | C21: 1902 | D21: -34885 | E21: -204 | G21: 720 | H21: 104814 | I21: 1386 | J21: -137 | K21: 188720
A22: 1699 | B22: 326569 | C22: 1835 | D22: -37756 | E22: -212 | G22: 730 | H22: 107909 | I22: 1408 | J22: -137 | K22: 202580
A23: 1766 | B23: 327369 | C23: 1770 | D23: -40657 | E23: -220 | G23: 740 | H23: 111004 | I23: 1429 | J23: -137 | K23: 216660
A24: 1833 | B24: 327867 | C24: 1708 | D24: -43683 | E24: -228 | G24: 750 | H24: 114099 | I24: 1451 | J24: -137 | K24: 230950
A25: 1900 | B25: 329534 | C25: 1656 | D25: -46815 | E25: -235 | G25: 760 | H25: 117194 | I25: 1472 | J25: -137 | K25: 245460
A26: 1967 | B26: 301029 | C26: 1461 | D26: -50606 | E26: -246 | G26: 770 | H26: 120500 | I26: 1493 | J26: -137 | K26: 260180
A27: 2034 | B27: 260542 | C27: 1223 | D27: -54504 | E27: -256 | G27: 780 | H27: 123830 | I27: 1513 | J27: -137 | K27: 275110
A28: 2101 | B28: 216622 | C28: 985 | D28: -58526 | E28: -266 | G28: 790 | H28: 127159 | I28: 1534 | J28: -137 | K28: 290240
A29: 2168 | B29: 161435 | C29: 711 | D29: -62639 | E29: -276 | G29: 800 | H29: 130488 | I29: 1554 | J29: -138 | K29: 305580
G30: 810 | H30: 133817 | I30: 1575 | J30: -138 | K30: 321120
G31: 820 | H31: 137147 | I31: 1596 | J31: -138 | K31: 336870
G32: 830 | H32: 140540 | I32: 1616 | J32: -138 | K32: 352830
G33: 840 | H33: 144193 | I33: 1637 | J33: -138 | K33: 368990
G34: 850 | H34: 147845 | I34: 1658 | J34: -138 | K34: 385360
G35: 860 | H35: 151497 | I35: 1679 | J35: -138 | K35: 401940
G36: 870 | H36: 155149 | I36: 1700 | J36: -139 | K36: 418730
G37: 880 | H37: 158802 | I37: 1721 | J37: -139 | K37: 435730
G38: 890 | H38: 162454 | I38: 1742 | J38: -139 | K38: 452940
G39: 900 | H39: 166685 | I39: 1768 | J39: -139 | K39: 470360
G40: 910 | H40: 171495 | I40: 1797 | J40: -139 | K40: 488040
G41: 920 | H41: 176305 | I41: 1827 | J41: -140 | K41: 506010
G42: 930 | H42: 181116 | I42: 1856 | J42: -140 | K42: 524280
G43: 940 | H43: 185926 | I43: 1886 | J43: -140 | K43: 542840
G44: 950 | H44: 190736 | I44: 1916 | J44: -141 | K44: 561700
G45: 960 | H45: 195546 | I45: 1945 | J45: -141 | K45: 580860
G46: 970 | H46: 199261 | I46: 1961 | J46: -141 | K46: 600310
G47: 980 | H47: 202702 | I47: 1974 | J47: -142 | K47: 619920
G48: 990 | H48: 206143 | I48: 1987 | J48: -143 | K48: 639660
G49: 1000 | H49: 209585 | I49: 2000 | J49: -143 | K49: 659530
G50: 1010 | H50: 213026 | I50: 2013 | J50: -144 | K50: 679530
G51: 1020 | H51: 216467 | I51: 2026 | J51: -144 | K51: 699660
G52: 1030 | H52: 219836 | I52: 2039 | J52: -145 | K52: 719920
G53: 1040 | H53: 222552 | I53: 2044 | J53: -146 | K53: 740310
G54: 1050 | H54: 225268 | I54: 2049 | J54: -147 | K54: 760750
G55: 1060 | H55: 227984 | I55: 2054 | J55: -147 | K55: 781240
G56: 1070 | H56: 230700 | I56: 2059 | J56: -148 | K56: 801780
G57: 1080 | H57: 233416 | I57: 2064 | J57: -149 | K57: 822370
G58: 1090 | H58: 236132 | I58: 2069 | J58: -150 | K58: 843010
G59: 1100 | H59: 238829 | I59: 2074 | J59: -150 | K59: 863700
G60: 1110 | H60: 241497 | I60: 2078 | J60: -151 | K60: 884440
G61: 1120 | H61: 244165 | I61: 2082 | J61: -151 | K61: 905220
G62: 1130 | H62: 246833 | I62: 2086 | J62: -152 | K62: 926040
G63: 1140 | H63: 249501 | I63: 2090 | J63: -153 | K63: 946900
G64: 1150 | H64: 252170 | I64: 2094 | J64: -153 | K64: 967800
G65: 1160 | H65: 254838 | I65: 2098 | J65: -154 | K65: 988740
G66: 1170 | H66: 257245 | I66: 2100 | J66: -155 | K66: 1009720
G67: 1180 | H67: 259542 | I67: 2100 | J67: -156 | K67: 1030720
G68: 1190 | H68: 261838 | I68: 2101 | J68: -156 | K68: 1051720
G69: 1200 | H69: 264135 | I69: 2102 | J69: -157 | K69: 1072730
G70: 1210 | H70: 266431 | I70: 2103 | J70: -158 | K70: 1093750
G71: 1220 | H71: 268728 | I71: 2103 | J71: -159 | K71: 1114780
G72: 1230 | H72: 271024 | I72: 2104 | J72: -160 | K72: 1135810
G73: 1240 | H73: 273312 | I73: 2105 | J73: -161 | K73: 1156850
G74: 1250 | H74: 275600 | I74: 2105 | J74: -161 | K74: 1177900
G75: 1260 | H75: 277888 | I75: 2106 | J75: -162 | K75: 1198950
G76: 1270 | H76: 280176 | I76: 2106 | J76: -163 | K76: 1220010
G77: 1280 | H77: 282464 | I77: 2107 | J77: -164 | K77: 1241070
G78: 1290 | H78: 284752 | I78: 2108 | J78: -164 | K78: 1262140
G79: 1300 | H79: 287010 | I79: 2108 | J79: -165 | K79: 1283220
G80: 1310 | H80: 289197 | I80: 2108 | J80: -166 | K80: 1304300
G81: 1320 | H81: 291384 | I81: 2108 | J81: -167 | K81: 1325380
G82: 1330 | H82: 293571 | I82: 2108 | J82: -168 | K82: 1346460
G83: 1340 | H83: 295758 | I83: 2107 | J83: -169 | K83: 1367540
G84: 1350 | H84: 297945 | I84: 2107 | J84: -170 | K84: 1388610
G85: 1360 | H85: 300132 | I85: 2107 | J85: -171 | K85: 1409680
G86: 1370 | H86: 301953 | I86: 2104 | J86: -172 | K86: 1430750
G87: 1380 | H87: 303530 | I87: 2100 | J87: -173 | K87: 1451790
G88: 1390 | H88: 305108 | I88: 2096 | J88: -174 | K88: 1472790
G89: 1400 | H89: 306685 | I89: 2092 | J89: -175 | K89: 1493750
G90: 1410 | H90: 308262 | I90: 2088 | J90: -176 | K90: 1514670
G91: 1420 | H91: 309839 | I91: 2084 | J91: -177 | K91: 1535550
G92: 1430 | H92: 311416 | I92: 2079 | J92: -178 | K92: 1556390
G93: 1440 | H93: 312528 | I93: 2073 | J93: -179 | K93: 1577180
G94: 1450 | H94: 313589 | I94: 2065 | J94: -180 | K94: 1597910
G95: 1460 | H95: 314649 | I95: 2058 | J95: -181 | K95: 1618560
G96: 1470 | H96: 315709 | I96: 2051 | J96: -183 | K96: 1639140
G97: 1480 | H97: 316769 | I97: 2044 | J97: -184 | K97: 1659650
G98: 1490 | H98: 317830 | I98: 2037 | J98: -185 | K98: 1680090
G99: 1500 | H99: 318796 | I99: 2029 | J99: -186 | K99: 1700460
G100: 1510 | H100: 319388 | I100: 2020 | J100: -188 | K100: 1720750
G101: 1520 | H101: 319980 | I101: 2011 | J101: -189 | K101: 1740950
G102: 1530 | H102: 320572 | I102: 2001 | J102: -190 | K102: 1761060
G103: 1540 | H103: 321164 | I103: 1992 | J103: -192 | K103: 1781070
G104: 1550 | H104: 321755 | I104: 1983 | J104: -193 | K104: 1800990
G105: 1560 | H105: 322347 | I105: 1974 | J105: -194 | K105: 1820820
G106: 1570 | H106: 322821 | I106: 1964 | J106: -196 | K106: 1840560
G107: 1580 | H107: 323178 | I107: 1954 | J107: -197 | K107: 1860200
G108: 1590 | H108: 323534 | I108: 1944 | J108: -198 | K108: 1879740
G109: 1600 | H109: 323891 | I109: 1934 | J109: -200 | K109: 1899180
G110: 1610 | H110: 324248 | I110: 1924 | J110: -201 | K110: 1918520
G111: 1620 | H111: 324604 | I111: 1914 | J111: -202 | K111: 1937760
G112: 1630 | H112: 324961 | I112: 1904 | J112: -204 | K112: 1956900
G113: 1640 | H113: 325216 | I113: 1894 | J113: -205 | K113: 1975940
G114: 1650 | H114: 325445 | I114: 1884 | J114: -206 | K114: 1994880
G115: 1660 | H115: 325674 | I115: 1874 | J115: -207 | K115: 2013720
G116: 1670 | H116: 325904 | I116: 1864 | J116: -209 | K116: 2032460
G117: 1680 | H117: 326133 | I117: 1854 | J117: -210 | K117: 2051100
G118: 1690 | H118: 326363 | I118: 1844 | J118: -211 | K118: 2069640
G119: 1700 | H119: 326581 | I119: 1834 | J119: -212 | K119: 2088080
G120: 1710 | H120: 326700 | I120: 1824 | J120: -213 | K120: 2106420
G121: 1720 | H121: 326820 | I121: 1815 | J121: -215 | K121: 2124660
G122: 1730 | H122: 326939 | I122: 1805 | J122: -216 | K122: 2142810
G123: 1740 | H123: 327059 | I123: 1795 | J123: -217 | K123: 2160860
G124: 1750 | H124: 327178 | I124: 1786 | J124: -218 | K124: 2178810
G125: 1760 | H125: 327297 | I125: 1776 | J125: -219 | K125: 2196670
G126: 1770 | H126: 327399 | I126: 1766 | J126: -220 | K126: 2214430
G127: 1780 | H127: 327473 | I127: 1757 | J127: -222 | K127: 2232090
G128: 1790 | H128: 327547 | I128: 1748 | J128: -223 | K128: 2249660
G129: 1800 | H129: 327622 | I129: 1739 | J129: -224 | K129: 2267140
G130: 1810 | H130: 327696 | I130: 1729 | J130: -225 | K130: 2284530
G131: 1820 | H131: 327770 | I131: 1720 | J131: -226 | K131: 2301820
G132: 1830 | H132: 327845 | I132: 1711 | J132: -228 | K132: 2319020
G133: 1840 | H133: 328041 | I133: 1703 | J133: -229 | K133: 2336130
G134: 1850 | H134: 328290 | I134: 1695 | J134: -230 | K134: 2353160
G135: 1860 | H135: 328539 | I135: 1687 | J135: -231 | K135: 2370110
G136: 1870 | H136: 328788 | I136: 1679 | J136: -232 | K136: 2386980
G137: 1880 | H137: 329036 | I137: 1672 | J137: -233 | K137: 2403770
G138: 1890 | H138: 329285 | I138: 1664 | J138: -234 | K138: 2420490
G139: 1900 | H139: 329534 | I139: 1656 | J139: -235 | K139: 2437130
G140: 1910 | H140: 325280 | I140: 1627 | J140: -237 | K140: 2453690
G141: 1920 | H141: 321025 | I141: 1598 | J141: -238 | K141: 2469960
G142: 1930 | H142: 316771 | I142: 1569 | J142: -240 | K142: 2485940
G143: 1940 | H143: 312516 | I143: 1540 | J143: -242 | K143: 2501630
G144: 1950 | H144: 308262 | I144: 1510 | J144: -243 | K144: 2517030
G145: 1960 | H145: 304007 | I145: 1481 | J145: -245 | K145: 2532130
G146: 1970 | H146: 299216 | I146: 1450 | J146: -246 | K146: 2546940
G147: 1980 | H147: 293173 | I147: 1415 | J147: -248 | K147: 2561440
G148: 1990 | H148: 287130 | I148: 1379 | J148: -249 | K148: 2575590
G149: 2000 | H149: 281088 | I149: 1344 | J149: -251 | K149: 2589380
G150: 2010 | H150: 275045 | I150: 1308 | J150: -252 | K150: 2602820
G151: 2020 | H151: 269002 | I151: 1273 | J151: -254 | K151: 2615900
G152: 2030 | H152: 262959 | I152: 1237 | J152: -255 | K152: 2628630
G153: 2040 | H153: 256609 | I153: 1202 | J153: -257 | K153: 2641000
G154: 2050 | H154: 250054 | I154: 1166 | J154: -258 | K154: 2653020
G155: 2060 | H155: 243498 | I155: 1131 | J155: -260 | K155: 2664680
G156: 2070 | H156: 236943 | I156: 1095 | J156: -261 | K156: 2675990
G157: 2080 | H157: 230388 | I157: 1060 | J157: -263 | K157: 2686940
G158: 2090 | H158: 223833 | I158: 1024 | J158: -264 | K158: 2697540
G159: 2100 | H159: 217278 | I159: 989 | J159: -266 | K159: 2707780
G160: 2110 | H160: 209209 | I160: 948 | J160: -267 | K160: 2717670
G161: 2120 | H161: 200972 | I161: 907 | J161: -269 | K161: 2727150
G162: 2130 | H162: 192735 | I162: 866 | J162: -270 | K162: 2736220
G163: 2140 | H163: 184498 | I163: 826 | J163: -272 | K163: 2744880
G164: 2150 | H164: 176261 | I164: 785 | J164: -273 | K164: 2753140
G165: 2160 | H165: 168024 | I165: 744 | J165: -275 | K165: 2760990
G166: 2168 | H166: 161435 | I166: 711 | J166: -276 | K166: 2768430

Sheet Ref_Speeds
A2: For calculation purposes only
A4: n_Idle | B4: n_Lo | C4: n_Pref | D4: n_95h | E4: n_Hi | H4: n_50l | I4: n_ETC_A | J4: n_ETC_B | K4: n_ETC_C | L4: n_ETC_Ref
A5: [rpm] | B5: [rpm] | C5: [rpm] | D5: [rpm] | E5: [rpm] | H5: [rpm] | I5: [rpm] | J5: [rpm] | K5: [rpm] | L5: [rpm]
A6: 560 | B6: 930 | C6: 1296 | D6: 1939 | E6: 2080 | H6: 895 | I6: 1191 | J6: 1488 | K6: 1784 | L6: 2021

Sheet Calc_WHDHC
A2: For calculation purposes only
A4: Normalized WHTC / WHDHC | F4: Denormalized WHDHC - raw data
A5: time [s] | B5: n_norm | C5: T_norm | D5: P_neg_norm | F5: time [s] | G5: n [min-1] | H5: T [Nm] | I5: P_neg [kW] | J5: v_WHVC [km/h]
A6: 0 | B6: 0 | C6: 0 | D6: 0 | F6: 0 | G6: 560 | H6: 0 | I6: 0 | J6: 0
A7: 1 | B7: 0 | C7: 0 | D7: 0 | F7: 1 | G7: 560 | H7: 0 | I7: 0 | J7: 0
A8: 2 | B8: 0 | C8: 0 | D8: 0 | F8: 2 | G8: 560 | H8: 0 | I8: 0 | J8: 0
A9: 3 | B9: 0 | C9: 0 | D9: 0 | F9: 3 | G9: 560 | H9: 0 | I9: 0 | J9: 0
A10: 4 | B10: 0 | C10: 0 | D10: 0 | F10: 4 | G10: 560 | H10: 0 | I10: 0 | J10: 0
A11: 5 | B11: 0 | C11: 0 | D11: 0 | F11: 5 | G11: 560 | H11: 0 | I11: 0 | J11: 0
A12: 6 | B12: 0 | C12: 0 | D12: 0 | F12: 6 | G12: 560 | H12: 0 | I12: 0 | J12: 0
A13: 7 | B13: 1.5 | C13: 8.9 | D13: 0 | F13: 7 | G13: 580 | H13: 92 | I13: 0 | J13: 2.35
A14: 8 | B14: 15.8 | C14: 30.9 | D14: 0 | F14: 8 | G14: 769 | H14: 461 | I14: 0 | J14: 5.57
A15: 9 | B15: 27.4 | C15: 1.3 | D15: 0 | F15: 9 | G15: 922 | H15: 24 | I15: 0 | J15: 8.18
A16: 10 | B16: 32.6 | C16: 0.7 | D16: 0 | F16: 10 | G16: 991 | H16: 14 | I16: 0 | J16: 9.37
A17: 11 | B17: 34.8 | C17: 1.2 | D17: 0 | F17: 11 | G17: 1020 | H17: 24 | I17: 0 | J17: 9.86
A18: 12 | B18: 36.2 | C18: 7.4 | D18: 0 | F18: 12 | G18: 1038 | H18: 151 | I18: 0 | J18: 10.18
A19: 13 | B19: 37.1 | C19: 6.2 | D19: 0 | F19: 13 | G19: 1050 | H19: 127 | I19: 0 | J19: 10.38
A20: 14 | B20: 37.9 | C20: 10.2 | D20: 0 | F20: 14 | G20: 1061 | H20: 210 | I20: 0 | J20: 10.57
A21: 15 | B21: 39.6 | C21: 12.3 | D21: 0 | F21: 15 | G21: 1083 | H21: 254 | I21: 0 | J21: 10.95
A22: 16 | B22: 42.3 | C22: 12.5 | D22: 0 | F22: 16 | G22: 1119 | H22: 260 | I22: 0 | J22: 11.56
A23: 17 | B23: 45.3 | C23: 12.6 | D23: 0 | F23: 17 | G23: 1158 | H23: 264 | I23: 0 | J23: 12.22
A24: 18 | B24: 48.6 | C24: 6 | D24: 0 | F24: 18 | G24: 1202 | H24: 126 | I24: 0 | J24: 12.97
A25: 19 | B25: 40.8 | C25: 0 | D25: 0 | F25: 19 | G25: 1099 | H25: 0 | I25: 0 | J25: 14.33
A26: 20 | B26: 33 | C26: 16.3 | D26: 0 | F26: 20 | G26: 996 | H26: 325 | I26: 0 | J26: 16.38
A27: 21 | B27: 42.5 | C27: 27.4 | D27: 0 | F27: 21 | G27: 1121 | H27: 571 | I27: 0 | J27: 18.4
A28: 22 | B28: 49.3 | C28: 26.7 | D28: 0 | F28: 22 | G28: 1211 | H28: 562 | I28: 0 | J28: 19.86
A29: 23 | B29: 54 | C29: 18 | D29: 0 | F29: 23 | G29: 1273 | H29: 379 | I29: 0 | J29: 20.85
A30: 24 | B30: 57.1 | C30: 12.9 | D30: 0 | F30: 24 | G30: 1314 | H30: 272 | I30: 0 | J30: 21.52
A31: 25 | B31: 58.9 | C31: 8.6 | D31: 0 | F31: 25 | G31: 1338 | H31: 181 | I31: 0 | J31: 21.89
A32: 26 | B32: 59.3 | C32: 6 | D32: 0 | F32: 26 | G32: 1343 | H32: 126 | I32: 0 | J32: 21.98
A33: 27 | B33: 59 | C33: 4.9 | D33: 0 | F33: 27 | G33: 1339 | H33: 103 | I33: 0 | J33: 21.91
A34: 28 | B34: 57.9 | C34: -1 | D34: -0.003284642231 | F34: 28 | G34: 1325 | H34: -168 | I34: -0.3359999955 | J34: 21.68
A35: 29 | B35: 55.7 | C35: -1 | D35: -0.02221896877 | F35: 29 | G35: 1296 | H35: -165 | I35: -2.273000002 | J35: 21.21
A36: 30 | B36: 52.1 | C36: -1 | D36: -0.06043071777 | F36: 30 | G36: 1248 | H36: -161 | I36: -6.183000088 | J36: 20.44
A37: 31 | B37: 46.4 | C37: -1 | D37: -0.097480975 | F37: 31 | G37: 1173 | H37: -155 | I37: -9.973999977 | J37: 19.24
A38: 32 | B38: 38.6 | C38: -1 | D38: -0.1157768038 | F38: 32 | G38: 1070 | H38: -148 | I38: -11.84599972 | J38: 17.57
A39: 33 | B39: 29 | C39: -1 | D39: -0.07934786562 | F39: 33 | G39: 943 | H39: -140 | I39: -8.119000435 | J39: 15.53
A40: 34 | B40: 20.8 | C40: -1 | D40: -0.01251834408 | F40: 34 | G40: 835 | H40: -138 | I40: -1.281000018 | J40: 13.77
A41: 35 | B41: 16.9 | C41: -1 | D41: 0 | F41: 35 | G41: 783 | H41: -137 | I41: 0 | J41: 12.95
A42: 36 | B42: 16.9 | C42: 42.5 | D42: 0 | F42: 36 | G42: 783 | H42: 646 | I42: 0 | J42: 12.95
A43: 37 | B43: 18.8 | C43: 38.4 | D43: 0 | F43: 37 | G43: 808 | H43: 603 | I43: 0 | J43: 13.35
A44: 38 | B44: 20.7 | C44: 32.9 | D44: 0 | F44: 38 | G44: 833 | H44: 534 | I44: 0 | J44: 13.75
A45: 39 | B45: 21 | C45: 0 | D45: 0 | F45: 39 | G45: 837 | H45: 0 | I45: 0 | J45: 13.82
A46: 40 | B46: 19.1 | C46: 0 | D46: 0 | F46: 40 | G46: 812 | H46: 0 | I46: 0 | J46: 13.41
A47: 41 | B47: 13.7 | C47: 0 | D47: 0 | F47: 41 | G47: 741 | H47: 0 | I47: 0 | J47: 12.26
A48: 42 | B48: 2.2 | C48: 0 | D48: 0 | F48: 42 | G48: 589 | H48: 0 | I48: 0 | J48: 9.82
A49: 43 | B49: 0 | C49: 0 | D49: 0 | F49: 43 | G49: 560 | H49: 0 | I49: 0 | J49: 5.96
A50: 44 | B50: 0 | C50: 0 | D50: 0 | F50: 44 | G50: 560 | H50: 0 | I50: 0 | J50: 2.2
A51: 45 | B51: 0 | C51: 0 | D51: 0 | F51: 45 | G51: 560 | H51: 0 | I51: 0 | J51: 0
A52: 46 | B52: 0 | C52: 0 | D52: 0 | F52: 46 | G52: 560 | H52: 0 | I52: 0 | J52: 0
A53: 47 | B53: 0 | C53: 0 | D53: 0 | F53: 47 | G53: 560 | H53: 0 | I53: 0 | J53: 0
A54: 48 | B54: 0 | C54: 0 | D54: 0 | F54: 48 | G54: 560 | H54: 0 | I54: 0 | J54: 0
A55: 49 | B55: 0 | C55: 0 | D55: 0 | F55: 49 | G55: 560 | H55: 0 | I55: 0 | J55: 0
A56: 50 | B56: 0 | C56: 13.1 | D56: 0 | F56: 50 | G56: 560 | H56: 129 | I56: 0 | J56: 1.87
A57: 51 | B57: 13.1 | C57: 30.1 | D57: 0 | F57: 51 | G57: 733 | H57: 426 | I57: 0 | J57: 4.97
A58: 52 | B58: 26.3 | C58: 25.5 | D58: 0 | F58: 52 | G58: 907 | H58: 456 | I58: 0 | J58: 8.4
A59: 53 | B59: 35 | C59: 32.2 | D59: 0 | F59: 53 | G59: 1022 | H59: 653 | I59: 0 | J59: 9.9
A60: 54 | B60: 41.7 | C60: 14.3 | D60: 0 | F60: 54 | G60: 1111 | H60: 297 | I60: 0 | J60: 11.42
A61: 55 | B61: 42.2 | C61: 0 | D61: 0 | F61: 55 | G61: 1117 | H61: 0 | I61: 0 | J61: 15.11
A62: 56 | B62: 42.8 | C62: 11.6 | D62: 0 | F62: 56 | G62: 1125 | H62: 242 | I62: 0 | J62: 18.46
A63: 57 | B63: 51 | C63: 20.9 | D63: 0 | F63: 57 | G63: 1234 | H63: 440 | I63: 0 | J63: 20.21
A64: 58 | B64: 60 | C64: 9.6 | D64: 0 | F64: 58 | G64: 1352 | H64: 202 | I64: 0 | J64: 22.13
A65: 59 | B65: 49.4 | C65: 0 | D65: 0 | F65: 59 | G65: 1212 | H65: 0 | I65: 0 | J65: 24.17
A66: 60 | B66: 38.9 | C66: 16.6 | D66: 0 | F66: 60 | G66: 1074 | H66: 342 | I66: 0 | J66: 25.56
A67: 61 | B67: 43.4 | C67: 30.8 | D67: 0 | F67: 61 | G67: 1133 | H67: 643 | I67: 0 | J67: 26.97
A68: 62 | B68: 49.4 | C68: 14.2 | D68: 0 | F68: 62 | G68: 1212 | H68: 299 | I68: 0 | J68: 28.83
A69: 63 | B69: 40.5 | C69: 0 | D69: 0 | F69: 63 | G69: 1095 | H69: 0 | I69: 0 | J69: 31.05
A70: 64 | B70: 31.5 | C70: 43.5 | D70: 0 | F70: 64 | G70: 976 | H70: 856 | I70: 0 | J70: 33.72
A71: 65 | B71: 36.6 | C71: 78.2 | D71: 0 | F71: 65 | G71: 1043 | H71: 1600 | I71: 0 | J71: 36
A72: 66 | B72: 40.8 | C72: 67.6 | D72: 0 | F72: 66 | G72: 1099 | H72: 1402 | I72: 0 | J72: 37.91
A73: 67 | B73: 44.7 | C73: 59.1 | D73: 0 | F73: 67 | G73: 1150 | H73: 1238 | I73: 0 | J73: 39.65
A74: 68 | B74: 48.3 | C74: 52 | D74: 0 | F74: 68 | G74: 1198 | H74: 1093 | I74: 0 | J74: 41.23
A75: 69 | B75: 51.9 | C75: 63.8 | D75: 0 | F75: 69 | G75: 1245 | H75: 1343 | I75: 0 | J75: 42.85
A76: 70 | B76: 54.7 | C76: 27.9 | D76: 0 | F76: 70 | G76: 1282 | H76: 588 | I76: 0 | J76: 44.1
A77: 71 | B77: 55.3 | C77: 18.3 | D77: 0 | F77: 71 | G77: 1290 | H77: 386 | I77: 0 | J77: 44.37
A78: 72 | B78: 55.1 | C78: 16.3 | D78: 0 | F78: 72 | G78: 1288 | H78: 344 | I78: 0 | J78: 44.3
A79: 73 | B79: 54.8 | C79: 11.1 | D79: 0 | F79: 73 | G79: 1284 | H79: 234 | I79: 0 | J79: 44.17
A80: 74 | B80: 54.7 | C80: 11.5 | D80: 0 | F80: 74 | G80: 1282 | H80: 242 | I80: 0 | J80: 44.13
A81: 75 | B81: 54.8 | C81: 17.5 | D81: 0 | F81: 75 | G81: 1284 | H81: 369 | I81: 0 | J81: 44.17
A82: 76 | B82: 55.6 | C82: 18 | D82: 0 | F82: 76 | G82: 1294 | H82: 379 | I82: 0 | J82: 44.51
A83: 77 | B83: 57 | C83: 14.1 | D83: 0 | F83: 77 | G83: 1313 | H83: 297 | I83: 0 | J83: 45.16
A84: 78 | B84: 58.1 | C84: 7 | D84: 0 | F84: 78 | G84: 1327 | H84: 148 | I84: 0 | J84: 45.64
A85: 79 | B85: 43.3 | C85: 0 | D85: 0 | F85: 79 | G85: 1132 | H85: 0 | I85: 0 | J85: 46.16
A86: 80 | B86: 28.5 | C86: 25 | D86: 0 | F86: 80 | G86: 936 | H86: 468 | I86: 0 | J86: 46.99
A87: 81 | B87: 30.4 | C87: 47.8 | D87: 0 | F87: 81 | G87: 961 | H87: 930 | I87: 0 | J87: 48.19
A88: 82 | B88: 32.1 | C88: 39.2 | D88: 0 | F88: 82 | G88: 984 | H88: 776 | I88: 0 | J88: 49.32
A89: 83 | B89: 32.7 | C89: 39.3 | D89: 0 | F89: 83 | G89: 992 | H89: 782 | I89: 0 | J89: 49.7
A90: 84 | B90: 32.4 | C90: 17.3 | D90: 0 | F90: 84 | G90: 988 | H90: 343 | I90: 0 | J90: 49.5
A91: 85 | B91: 31.6 | C91: 11.4 | D91: 0 | F91: 85 | G91: 977 | H91: 225 | I91: 0 | J91: 48.98
A92: 86 | B92: 31.1 | C92: 10.2 | D92: 0 | F92: 86 | G92: 971 | H92: 200 | I92: 0 | J92: 48.65
A93: 87 | B93: 31.1 | C93: 19.5 | D93: 0 | F93: 87 | G93: 971 | H93: 383 | I93: 0 | J93: 48.65
A94: 88 | B94: 31.4 | C94: 22.5 | D94: 0 | F94: 88 | G94: 975 | H94: 443 | I94: 0 | J94: 48.87
A95: 89 | B95: 31.6 | C95: 22.9 | D95: 0 | F95: 89 | G95: 977 | H95: 451 | I95: 0 | J95: 48.97
A96: 90 | B96: 31.6 | C96: 24.3 | D96: 0 | F96: 90 | G96: 977 | H96: 479 | I96: 0 | J96: 48.96
A97: 91 | B97: 31.9 | C97: 26.9 | D97: 0 | F97: 91 | G97: 981 | H97: 531 | I97: 0 | J97: 49.15
A98: 92 | B98: 32.4 | C98: 30.6 | D98: 0 | F98: 92 | G98: 988 | H98: 607 | I98: 0 | J98: 49.51
A99: 93 | B99: 32.8 | C99: 32.7 | D99: 0 | F99: 93 | G99: 993 | H99: 651 | I99: 0 | J99: 49.74
A100: 94 | B100: 33.7 | C100: 32.5 | D100: 0 | F100: 94 | G100: 1005 | H100: 652 | I100: 0 | J100: 50.31
A101: 95 | B101: 34.4 | C101: 29.5 | D101: 0 | F101: 95 | G101: 1014 | H101: 595 | I101: 0 | J101: 50.78
A102: 96 | B102: 34.3 | C102: 26.5 | D102: 0 | F102: 96 | G102: 1013 | H102: 534 | I102: 0 | J102: 50.75
A103: 97 | B103: 34.4 | C103: 24.7 | D103: 0 | F103: 97 | G103: 1014 | H103: 498 | I103: 0 | J103: 50.78
A104: 98 | B104: 35 | C104: 24.9 | D104: 0 | F104: 98 | G104: 1022 | H104: 505 | I104: 0 | J104: 51.21
A105: 99 | B105: 35.6 | C105: 25.2 | D105: 0 | F105: 99 | G105: 1030 | H105: 514 | I105: 0 | J105: 51.6
A106: 100 | B106: 36.1 | C106: 24.8 | D106: 0 | F106: 100 | G106: 1037 | H106: 507 | I106: 0 | J106: 51.89
A107: 101 | B107: 36.3 | C107: 24 | D107: 0 | F107: 101 | G107: 1039 | H107: 490 | I107: 0 | J107: 52.04
A108: 102 | B108: 36.2 | C108: 23.6 | D108: 0 | F108: 102 | G108: 1038 | H108: 482 | I108: 0 | J108: 51.99
A109: 103 | B109: 36.2 | C109: 23.5 | D109: 0 | F109: 103 | G109: 1038 | H109: 480 | I109: 0 | J109: 51.99
A110: 104 | B110: 36.8 | C110: 22.7 | D110: 0 | F110: 104 | G110: 1046 | H110: 465 | I110: 0 | J110: 52.36
A111: 105 | B111: 37.2 | C111: 20.9 | D111: 0 | F111: 105 | G111: 1051 | H111: 428 | I111: 0 | J111: 52.58
A112: 106 | B112: 37 | C112: 19.2 | D112: 0 | F112: 106 | G112: 1049 | H112: 393 | I112: 0 | J112: 52.47
A113: 107 | B113: 36.3 | C113: 18.4 | D113: 0 | F113: 107 | G113: 1039 | H113: 376 | I113: 0 | J113: 52.03
A114: 108 | B114: 35.4 | C114: 17.6 | D114: 0 | F114: 108 | G114: 1028 | H114: 358 | I114: 0 | J114: 51.46
A115: 109 | B115: 35.2 | C115: 14.9 | D115: 0 | F115: 109 | G115: 1025 | H115: 303 | I115: 0 | J115: 51.31
A116: 110 | B116: 35.4 | C116: 9.9 | D116: 0 | F116: 110 | G116: 1028 | H116: 202 | I116: 0 | J116: 51.45
A117: 111 | B117: 35.5 | C117: 4.3 | D117: 0 | F117: 111 | G117: 1029 | H117: 88 | I117: 0 | J117: 51.48
A118: 112 | B118: 35.2 | C118: 6.6 | D118: 0 | F118: 112 | G118: 1025 | H118: 134 | I118: 0 | J118: 51.29
A119: 113 | B119: 34.9 | C119: 10 | D119: 0 | F119: 113 | G119: 1021 | H119: 203 | I119: 0 | J119: 51.12
A120: 114 | B120: 34.7 | C120: 25.1 | D120: 0 | F120: 114 | G120: 1018 | H120: 508 | I120: 0 | J120: 50.96
A121: 115 | B121: 34.4 | C121: 29.3 | D121: 0 | F121: 115 | G121: 1014 | H121: 591 | I121: 0 | J121: 50.81
A122: 116 | B122: 34.5 | C122: 20.7 | D122: 0 | F122: 116 | G122: 1016 | H122: 418 | I122: 0 | J122: 50.86
A123: 117 | B123: 35.2 | C123: 16.6 | D123: 0 | F123: 117 | G123: 1025 | H123: 337 | I123: 0 | J123: 51.34
A124: 118 | B124: 35.8 | C124: 16.2 | D124: 0 | F124: 118 | G124: 1033 | H124: 331 | I124: 0 | J124: 51.68
A125: 119 | B125: 35.6 | C125: 20.3 | D125: 0 | F125: 119 | G125: 1030 | H125: 414 | I125: 0 | J125: 51.58
A126: 120 | B126: 35.3 | C126: 22.5 | D126: 0 | F126: 120 | G126: 1026 | H126: 458 | I126: 0 | J126: 51.36
A127: 121 | B127: 35.3 | C127: 23.4 | D127: 0 | F127: 121 | G127: 1026 | H127: 476 | I127: 0 | J127: 51.39
A128: 122 | B128: 34.7 | C128: 11.9 | D128: 0 | F128: 122 | G128: 1018 | H128: 241 | I128: 0 | J128: 50.98
A129: 123 | B129: 45.5 | C129: 0 | D129: 0 | F129: 123 | G129: 1161 | H129: 0 | I129: 0 | J129: 48.63
A130: 124 | B130: 56.3 | C130: -1 | D130: -0.8704975869 | F130: 124 | G130: 1304 | H130: -165 | I130: -89.06500244 | J130: 44.83
A131: 125 | B131: 46.2 | C131: -1 | D131: -0.7998418462 | F131: 125 | G131: 1170 | H131: -155 | I131: -81.83599854 | J131: 40.3
A132: 126 | B132: 50.1 | C132: 0 | D132: 0 | F132: 126 | G132: 1222 | H132: 0 | I132: 0 | J132: 35.65
A133: 127 | B133: 54 | C133: -1 | D133: -0.772308033 | F133: 127 | G133: 1273 | H133: -163 | I133: -79.01899719 | J133: 30.23
A134: 128 | B134: 40.5 | C134: -1 | D134: -0.4948802661 | F134: 128 | G134: 1095 | H134: -150 | I134: -50.63399887 | J134: 24.08
A135: 129 | B135: 27 | C135: -1 | D135: -0.3468417214 | F135: 129 | G135: 917 | H135: -140 | I135: -35.48699951 | J135: 18.96
A136: 130 | B136: 13.5 | C136: -1 | D136: -0.2711943732 | F136: 130 | G136: 738 | H136: -137 | I136: -27.74699974 | J136: 14.19
A137: 131 | B137: 0 | C137: 0 | D137: 0 | F137: 131 | G137: 560 | H137: 0 | I137: 0 | J137: 8.72
A138: 132 | B138: 0 | C138: 0 | D138: 0 | F138: 132 | G138: 560 | H138: 0 | I138: 0 | J138: 3.41
A139: 133 | B139: 0 | C139: 0 | D139: 0 | F139: 133 | G139: 560 | H139: 0 | I139: 0 | J139: 0.64
A140: 134 | B140: 0 | C140: 0 | D140: 0 | F140: 134 | G140: 560 | H140: 0 | I140: 0 | J140: 0
A141: 135 | B141: 0 | C141: 0 | D141: 0 | F141: 135 | G141: 560 | H141: 0 | I141: 0 | J141: 0
A142: 136 | B142: 0 | C142: 0 | D142: 0 | F142: 136 | G142: 560 | H142: 0 | I142: 0 | J142: 0
A143: 137 | B143: 0 | C143: 0 | D143: 0 | F143: 137 | G143: 560 | H143: 0 | I143: 0 | J143: 0
A144: 138 | B144: 0 | C144: 0 | D144: 0 | F144: 138 | G144: 560 | H144: 0 | I144: 0 | J144: 0
A145: 139 | B145: 0 | C145: 0 | D145: 0 | F145: 139 | G145: 560 | H145: 0 | I145: 0 | J145: 0
A146: 140 | B146: 0 | C146: 0 | D146: 0 | F146: 140 | G146: 560 | H146: 0 | I146: 0 | J146: 0
A147: 141 | B147: 0 | C147: 0 | D147: 0 | F147: 141 | G147: 560 | H147: 0 | I147: 0 | J147: 0
A148: 142 | B148: 0 | C148: 4.9 | D148: 0 | F148: 142 | G148: 560 | H148: 48 | I148: 0 | J148: 0.63
A149: 143 | B149: 0 | C149: 7.3 | D149: 0 | F149: 143 | G149: 560 | H149: 72 | I149: 0 | J149: 1.56
A150: 144 | B150: 4.4 | C150: 28.7 | D150: 0 | F150: 144 | G150: 618 | H150: 327 | I150: 0 | J150: 2.99
A151: 145 | B151: 11.1 | C151: 26.4 | D151: 0 | F151: 145 | G151: 707 | H151: 359 | I151: 0 | J151: 4.5
A152: 146 | B152: 15 | C152: 9.4 | D152: 0 | F152: 146 | G152: 758 | H152: 138 | I152: 0 | J152: 5.39
A153: 147 | B153: 15.9 | C153: 0 | D153: 0 | F153: 147 | G153: 770 | H153: 0 | I153: 0 | J153: 5.59
A154: 148 | B154: 15.3 | C154: 0 | D154: 0 | F154: 148 | G154: 762 | H154: 0 | I154: 0 | J154: 5.45
A155: 149 | B155: 14.2 | C155: 0 | D155: 0 | F155: 149 | G155: 748 | H155: 0 | I155: 0 | J155: 5.2
A156: 150 | B156: 13.2 | C156: 0 | D156: 0 | F156: 150 | G156: 734 | H156: 0 | I156: 0 | J156: 4.98
A157: 151 | B157: 11.6 | C157: 0 | D157: 0 | F157: 151 | G157: 713 | H157: 0 | I157: 0 | J157: 4.61
A158: 152 | B158: 8.4 | C158: 0 | D158: 0 | F158: 152 | G158: 671 | H158: 0 | I158: 0 | J158: 3.89
A159: 153 | B159: 5.4 | C159: 0 | D159: 0 | F159: 153 | G159: 631 | H159: 0 | I159: 0 | J159: 3.21
A160: 154 | B160: 4.3 | C160: 5.6 | D160: 0 | F160: 154 | G160: 617 | H160: 64 | I160: 0 | J160: 2.98
A161: 155 | B161: 5.8 | C161: 24.4 | D161: 0 | F161: 155 | G161: 637 | H161: 290 | I161: 0 | J161: 3.31
A162: 156 | B162: 9.7 | C162: 20.7 | D162: 0 | F162: 156 | G162: 688 | H162: 272 | I162: 0 | J162: 4.18
A163: 157 | B163: 13.6 | C163: 21.1 | D163: 0 | F163: 157 | G163: 740 | H163: 302 | I163: 0 | J163: 5.07
A164: 158 | B164: 15.6 | C164: 21.5 | D164: 0 | F164: 158 | G164: 766 | H164: 319 | I164: 0 | J164: 5.52
A165: 159 | B165: 16.5 | C165: 21.9 | D165: 0 | F165: 159 | G165: 778 | H165: 330 | I165: 0 | J165: 5.73
A166: 160 | B166: 18 | C166: 22.3 | D166: 0 | F166: 160 | G166: 798 | H166: 346 | I166: 0 | J166: 6.06
A167: 161 | B167: 21.1 | C167: 46.9 | D167: 0 | F167: 161 | G167: 839 | H167: 767 | I167: 0 | J167: 6.76
A168: 162 | B168: 25.2 | C168: 33.6 | D168: 0 | F168: 162 | G168: 893 | H168: 588 | I168: 0 | J168: 7.7
A169: 163 | B169: 28.1 | C169: 16.6 | D169: 0 | F169: 163 | G169: 931 | H169: 309 | I169: 0 | J169: 8.34
A170: 164 | B170: 28.8 | C170: 7 | D170: 0 | F170: 164 | G170: 940 | H170: 132 | I170: 0 | J170: 8.51
A171: 165 | B171: 27.5 | C171: 5 | D171: 0 | F171: 165 | G171: 923 | H171: 92 | I171: 0 | J171: 8.22
A172: 166 | B172: 23.1 | C172: 3 | D172: 0 | F172: 166 | G172: 865 | H172: 51 | I172: 0 | J172: 7.22
A173: 167 | B173: 16.9 | C173: 1.9 | D173: 0 | F173: 167 | G173: 783 | H173: 29 | I173: 0 | J173: 5.82
A174: 168 | B174: 12.2 | C174: 2.6 | D174: 0 | F174: 168 | G174: 721 | H174: 36 | I174: 0 | J174: 4.75
A175: 169 | B175: 9.9 | C175: 3.2 | D175: 0 | F175: 169 | G175: 691 | H175: 42 | I175: 0 | J175: 4.24
A176: 170 | B176: 9.1 | C176: 4 | D176: 0 | F176: 170 | G176: 680 | H176: 52 | I176: 0 | J176: 4.05
A177: 171 | B177: 8.8 | C177: 3.8 | D177: 0 | F177: 171 | G177: 676 | H177: 49 | I177: 0 | J177: 3.98
A178: 172 | B178: 8.5 | C178: 12.2 | D178: 0 | F178: 172 | G178: 672 | H178: 156 | I178: 0 | J178: 3.91
A179: 173 | B179: 8.2 | C179: 29.4 | D179: 0 | F179: 173 | G179: 668 | H179: 372 | I179: 0 | J179: 3.86
A180: 174 | B180: 9.6 | C180: 20.1 | D180: 0 | F180: 174 | G180: 687 | H180: 264 | I180: 0 | J180: 4.17
A181: 175 | B181: 14.7 | C181: 16.3 | D181: 0 | F181: 175 | G181: 754 | H181: 238 | I181: 0 | J181: 5.32
A182: 176 | B182: 24.5 | C182: 8.7 | D182: 0 | F182: 176 | G182: 884 | H182: 150 | I182: 0 | J182: 7.53
A183: 177 | B183: 39.4 | C183: 3.3 | D183: 0 | F183: 177 | G183: 1080 | H183: 68 | I183: 0 | J183: 10.89
A184: 178 | B184: 39 | C184: 2.9 | D184: 0 | F184: 178 | G184: 1075 | H184: 60 | I184: 0 | J184: 14.81
A185: 179 | B185: 38.5 | C185: 5.9 | D185: 0 | F185: 179 | G185: 1068 | H185: 121 | I185: 0 | J185: 17.56
A186: 180 | B186: 42.4 | C186: 8 | D186: 0 | F186: 180 | G186: 1120 | H186: 167 | I186: 0 | J186: 18.38
A187: 181 | B187: 38.2 | C187: 6 | D187: 0 | F187: 181 | G187: 1064 | H187: 123 | I187: 0 | J187: 17.49
A188: 182 | B188: 41.4 | C188: 3.8 | D188: 0 | F188: 182 | G188: 1107 | H188: 79 | I188: 0 | J188: 15.18
A189: 183 | B189: 44.6 | C189: 5.4 | D189: 0 | F189: 183 | G189: 1149 | H189: 113 | I189: 0 | J189: 13.08
A190: 184 | B190: 38.8 | C190: 8.2 | D190: 0 | F190: 184 | G190: 1072 | H190: 169 | I190: 0 | J190: 12.23
A191: 185 | B191: 37.5 | C191: 8.9 | D191: 0 | F191: 185 | G191: 1055 | H191: 183 | I191: 0 | J191: 12.03
A192: 186 | B192: 35.4 | C192: 7.3 | D192: 0 | F192: 186 | G192: 1028 | H192: 149 | I192: 0 | J192: 11.72
A193: 187 | B193: 28.4 | C193: 7 | D193: 0 | F193: 187 | G193: 935 | H193: 131 | I193: 0 | J193: 10.69
A194: 188 | B194: 14.8 | C194: 7 | D194: 0 | F194: 188 | G194: 755 | H194: 102 | I194: 0 | J194: 8.68
A195: 189 | B195: 0 | C195: 5.9 | D195: 0 | F195: 189 | G195: 560 | H195: 58 | I195: 0 | J195: 6.2
A196: 190 | B196: 0 | C196: 0 | D196: 0 | F196: 190 | G196: 560 | H196: 0 | I196: 0 | J196: 4.07
A197: 191 | B197: 0 | C197: 0 | D197: 0 | F197: 191 | G197: 560 | H197: 0 | I197: 0 | J197: 2.65
A198: 192 | B198: 0 | C198: 0 | D198: 0 | F198: 192 | G198: 560 | H198: 0 | I198: 0 | J198: 1.92
A199: 193 | B199: 0 | C199: 0 | D199: 0 | F199: 193 | G199: 560 | H199: 0 | I199: 0 | J199: 1.69
A200: 194 | B200: 0 | C200: 0 | D200: 0 | F200: 194 | G200: 560 | H200: 0 | I200: 0 | J200: 1.68
A201: 195 | B201: 0 | C201: 0 | D201: 0 | F201: 195 | G201: 560 | H201: 0 | I201: 0 | J201: 1.66
A202: 196 | B202: 0 | C202: 0 | D202: 0 | F202: 196 | G202: 560 | H202: 0 | I202: 0 | J202: 1.53
... 1604 more rows

Sheet Output_WHDHC
A1: Denormalized WHDHC Option A (Powerpack output shaft) | I1: Denormalized WHDHC Option B (Wheel hubs)
A2: cycle time | B2: speed at powerpack output shaft | E2: power at powerpack output shaft | I2: cycle time | J2: speed at wheelhubs | M2: speed at wheelhubs acc. to WHVC | P2: power at powerpack output shaft
B3: acc. to WHTC (ECE/TRANS/180/Add.4) | J3: acc. to WHTC (ECE/TRANS/180/Add.4) (will be calculated acc. to respective transmission ratios in HILS model) | M3: (calculated with wheel radius)
A4: time [s] | C4: n [min-1] | F4: P [kW] | I4: time [s] | K4: n [min-1] | N4: n [min-1] | Q4: P [kW]
A5: 0 | C5: =Calc_WHDHC!G6 -> 560 | F5: =ROUND(IF(Calc_WHDHC!H6<0,Calc_WHDHC!I6*IF(Input!$B$4="Other",0.95*0.95,0.98*0.95),2*PI()*Calc_WHDHC!G6/60*Calc_WHDHC!H6/1000),3) -> 0 | I5: 0 | K5: - | N5: =Calc_WHDHC!J6/3.6/(2*Input!$B$5*PI())*60 -> 0 | Q5: =ROUND(IF(Calc_WHDHC!H6<0,Calc_WHDHC!I6,2*PI()*Calc_WHDHC!G6/60*Calc_WHDHC!H6/1000*IF(Input!$B$4="Other",0.95*0.95,0.98*0.95)),3) -> 0
A6: 1 | C6: =Calc_WHDHC!G7 -> 560 | F6: =ROUND(IF(Calc_WHDHC!H7<0,Calc_WHDHC!I7*IF(Input!$B$4="Other",0.95*0.95,0.98*0.95),2*PI()*Calc_WHDHC!G7/60*Calc_WHDHC!H7/1000),3) -> 0 | I6: 1 | K6: - | N6: =Calc_WHDHC!J7/3.6/(2*Input!$B$5*PI())*60 -> 0 | Q6: =ROUND(IF(Calc_WHDHC!H7<0,Calc_WHDHC!I7,2*PI()*Calc_WHDHC!G7/60*Calc_WHDHC!H7/1000*IF(Input!$B$4="Other",0.95*0.95,0.98*0.95)),3) -> 0
A7: 2 | C7: =Calc_WHDHC!G8 -> 560 | F7: =ROUND(IF(Calc_WHDHC!H8<0,Calc_WHDHC!I8*IF(Input!$B$4="Other",0.95*0.95,0.98*0.95),2*PI()*Calc_WHDHC!G8/60*Calc_WHDHC!H8/1000),3) -> 0 | I7: 2 | K7: - | N7: =Calc_WHDHC!J8/3.6/(2*Input!$B$5*PI())*60 -> 0 | Q7: =ROUND(IF(Calc_WHDHC!H8<0,Calc_WHDHC!I8,2*PI()*Calc_WHDHC!G8/60*Calc_WHDHC!H8/1000*IF(Input!$B$4="Other",0.95*0.95,0.98*0.95)),3) -> 0
A8: 3 | C8: =Calc_WHDHC!G9 -> 560 | F8: =ROUND(IF(Calc_WHDHC!H9<0,Calc_WHDHC!I9*IF(Input!$B$4="Other",0.95*0.95,0.98*0.95),2*PI()*Calc_WHDHC!G9/60*Calc_WHDHC!H9/1000),3) -> 0 | I8: 3 | K8: - | N8: =Calc_WHDHC!J9/3.6/(2*Input!$B$5*PI())*60 -> 0 | Q8: =ROUND(IF(Calc_WHDHC!H9<0,Calc_WHDHC!I9,2*PI()*Calc_WHDHC!G9/60*Calc_WHDHC!H9/1000*IF(Input!$B$4="Other",0.95*0.95,0.98*0.95)),3) -> 0
A9: 4 | C9: =Calc_WHDHC!G10 -> 560 | F9: =ROUND(IF(Calc_WHDHC!H10<0,Calc_WHDHC!I10*IF(Input!$B$4="Other",0.95*0.95,0.98*0.95),2*PI()*Calc_WHDHC!G10/60*Calc_WHDHC!H10/1000),3) -> 0 | I9: 4 | K9: - | N9: =Calc_WHDHC!J10/3.6/(2*Input!$B$5*PI())*60 -> 0 | Q9: =ROUND(IF(Calc_WHDHC!H10<0,Calc_WHDHC!I10,2*PI()*Calc_WHDHC!G10/60*Calc_WHDHC!H10/1000*IF(Input!$B$4="Other",0.95*0.95,0.98*0.95)),3) -> 0
A10: 5 | C10: =Calc_WHDHC!G11 -> 560 | F10: =ROUND(IF(Calc_WHDHC!H11<0,Calc_WHDHC!I11*IF(Input!$B$4="Other",0.95*0.95,0.98*0.95),2*PI()*Calc_WHDHC!G11/60*Calc_WHDHC!H11/1000),3) -> 0 | I10: 5 | K10: - | N10: =Calc_WHDHC!J11/3.6/(2*Input!$B$5*PI())*60 -> 0 | Q10: =ROUND(IF(Calc_WHDHC!H11<0,Calc_WHDHC!I11,2*PI()*Calc_WHDHC!G11/60*Calc_WHDHC!H11/1000*IF(Input!$B$4="Other",0.95*0.95,0.98*0.95)),3) -> 0
A11: 6 | C11: =Calc_WHDHC!G12 -> 560 | F11: =ROUND(IF(Calc_WHDHC!H12<0,Calc_WHDHC!I12*IF(Input!$B$4="Other",0.95*0.95,0.98*0.95),2*PI()*Calc_WHDHC!G12/60*Calc_WHDHC!H12/1000),3) -> 0 | I11: 6 | K11: - | N11: =Calc_WHDHC!J12/3.6/(2*Input!$B$5*PI())*60 -> 0 | Q11: =ROUND(IF(Calc_WHDHC!H12<0,Calc_WHDHC!I12,2*PI()*Calc_WHDHC!G12/60*Calc_WHDHC!H12/1000*IF(Input!$B$4="Other",0.95*0.95,0.98*0.95)),3) -> 0
A12: 7 | C12: =Calc_WHDHC!G13 -> 580 | F12: =ROUND(IF(Calc_WHDHC!H13<0,Calc_WHDHC!I13*IF(Input!$B$4="Other",0.95*0.95,0.98*0.95),2*PI()*Calc_WHDHC!G13/60*Calc_WHDHC!H13/1000),3) -> 5.588 | I12: 7 | K12: - | N12: =Calc_WHDHC!J13/3.6/(2*Input!$B$5*PI())*60 -> 6.506856581 | Q12: =ROUND(IF(Calc_WHDHC!H13<0,Calc_WHDHC!I13,2*PI()*Calc_WHDHC!G13/60*Calc_WHDHC!H13/1000*IF(Input!$B$4="Other",0.95*0.95,0.98*0.95)),3) -> 5.202
A13: 8 | C13: =Calc_WHDHC!G14 -> 769 | F13: =ROUND(IF(Calc_WHDHC!H14<0,Calc_WHDHC!I14*IF(Input!$B$4="Other",0.95*0.95,0.98*0.95),2*PI()*Calc_WHDHC!G14/60*Calc_WHDHC!H14/1000),3) -> 37.124 | I13: 8 | K13: - | N13: =Calc_WHDHC!J14/3.6/(2*Input!$B$5*PI())*60 -> 15.42263453 | Q13: =ROUND(IF(Calc_WHDHC!H14<0,Calc_WHDHC!I14,2*PI()*Calc_WHDHC!G14/60*Calc_WHDHC!H14/1000*IF(Input!$B$4="Other",0.95*0.95,0.98*0.95)),3) -> 34.563
A14: 9 | C14: =Calc_WHDHC!G15 -> 922 | F14: =ROUND(IF(Calc_WHDHC!H15<0,Calc_WHDHC!I15*IF(Input!$B$4="Other",0.95*0.95,0.98*0.95),2*PI()*Calc_WHDHC!G15/60*Calc_WHDHC!H15/1000),3) -> 2.317 | I14: 9 | K14: - | N14: =Calc_WHDHC!J15/3.6/(2*Input!$B$5*PI())*60 -> 22.64939865 | Q14: =ROUND(IF(Calc_WHDHC!H15<0,Calc_WHDHC!I15,2*PI()*Calc_WHDHC!G15/60*Calc_WHDHC!H15/1000*IF(Input!$B$4="Other",0.95*0.95,0.98*0.95)),3) -> 2.157
A15: 10 | C15: =Calc_WHDHC!G16 -> 991 | F15: =ROUND(IF(Calc_WHDHC!H16<0,Calc_WHDHC!I16*IF(Input!$B$4="Other",0.95*0.95,0.98*0.95),2*PI()*Calc_WHDHC!G16/60*Calc_WHDHC!H16/1000),3) -> 1.453 | I15: 10 | K15: - | N15: =Calc_WHDHC!J16/3.6/(2*Input!$B$5*PI())*60 -> 25.94436007 | Q15: =ROUND(IF(Calc_WHDHC!H16<0,Calc_WHDHC!I16,2*PI()*Calc_WHDHC!G16/60*Calc_WHDHC!H16/1000*IF(Input!$B$4="Other",0.95*0.95,0.98*0.95)),3) -> 1.353
A16: 11 | C16: =Calc_WHDHC!G17 -> 1020 | F16: =ROUND(IF(Calc_WHDHC!H17<0,Calc_WHDHC!I17*IF(Input!$B$4="Other",0.95*0.95,0.98*0.95),2*PI()*Calc_WHDHC!G17/60*Calc_WHDHC!H17/1000),3) -> 2.564 | I16: 11 | K16: - | N16: =Calc_WHDHC!J17/3.6/(2*Input!$B$5*PI())*60 -> 27.30110889 | Q16: =ROUND(IF(Calc_WHDHC!H17<0,Calc_WHDHC!I17,2*PI()*Calc_WHDHC!G17/60*Calc_WHDHC!H17/1000*IF(Input!$B$4="Other",0.95*0.95,0.98*0.95)),3) -> 2.387
A17: 12 | C17: =Calc_WHDHC!G18 -> 1038 | F17: =ROUND(IF(Calc_WHDHC!H18<0,Calc_WHDHC!I18*IF(Input!$B$4="Other",0.95*0.95,0.98*0.95),2*PI()*Calc_WHDHC!G18/60*Calc_WHDHC!H18/1000),3) -> 16.414 | I17: 12 | K17: - | N17: =Calc_WHDHC!J18/3.6/(2*Input!$B$5*PI())*60 -> 28.18714893 | Q17: =ROUND(IF(Calc_WHDHC!H18<0,Calc_WHDHC!I18,2*PI()*Calc_WHDHC!G18/60*Calc_WHDHC!H18/1000*IF(Input!$B$4="Other",0.95*0.95,0.98*0.95)),3) -> 15.281
A18: 13 | C18: =Calc_WHDHC!G19 -> 1050 | F18: =ROUND(IF(Calc_WHDHC!H19<0,Calc_WHDHC!I19*IF(Input!$B$4="Other",0.95*0.95,0.98*0.95),2*PI()*Calc_WHDHC!G19/60*Calc_WHDHC!H19/1000),3) -> 13.964 | I18: 13 | K18: - | N18: =Calc_WHDHC!J19/3.6/(2*Input!$B$5*PI())*60 -> 28.74092396 | Q18: =ROUND(IF(Calc_WHDHC!H19<0,Calc_WHDHC!I19,2*PI()*Calc_WHDHC!G19/60*Calc_WHDHC!H19/1000*IF(Input!$B$4="Other",0.95*0.95,0.98*0.95)),3) -> 13.001
A19: 14 | C19: =Calc_WHDHC!G20 -> 1061 | F19: =ROUND(IF(Calc_WHDHC!H20<0,Calc_WHDHC!I20*IF(Input!$B$4="Other",0.95*0.95,0.98*0.95),2*PI()*Calc_WHDHC!G20/60*Calc_WHDHC!H20/1000),3) -> 23.333 | I19: 14 | K19: - | N19: =Calc_WHDHC!J20/3.6/(2*Input!$B$5*PI())*60 -> 29.26701024 | Q19: =ROUND(IF(Calc_WHDHC!H20<0,Calc_WHDHC!I20,2*PI()*Calc_WHDHC!G20/60*Calc_WHDHC!H20/1000*IF(Input!$B$4="Other",0.95*0.95,0.98*0.95)),3) -> 21.723
A20: 15 | C20: =Calc_WHDHC!G21 -> 1083 | F20: =ROUND(IF(Calc_WHDHC!H21<0,Calc_WHDHC!I21*IF(Input!$B$4="Other",0.95*0.95,0.98*0.95),2*PI()*Calc_WHDHC!G21/60*Calc_WHDHC!H21/1000),3) -> 28.807 | I20: 15 | K20: - | N20: =Calc_WHDHC!J21/3.6/(2*Input!$B$5*PI())*60 -> 30.31918279 | Q20: =ROUND(IF(Calc_WHDHC!H21<0,Calc_WHDHC!I21,2*PI()*Calc_WHDHC!G21/60*Calc_WHDHC!H21/1000*IF(Input!$B$4="Other",0.95*0.95,0.98*0.95)),3) -> 26.819
A21: 16 | C21: =Calc_WHDHC!G22 -> 1119 | F21: =ROUND(IF(Calc_WHDHC!H22<0,Calc_WHDHC!I22*IF(Input!$B$4="Other",0.95*0.95,0.98*0.95),2*PI()*Calc_WHDHC!G22/60*Calc_WHDHC!H22/1000),3) -> 30.467 | I21: 16 | K21: - | N21: =Calc_WHDHC!J22/3.6/(2*Input!$B$5*PI())*60 -> 32.00819663 | Q21: =ROUND(IF(Calc_WHDHC!H22<0,Calc_WHDHC!I22,2*PI()*Calc_WHDHC!G22/60*Calc_WHDHC!H22/1000*IF(Input!$B$4="Other",0.95*0.95,0.98*0.95)),3) -> 28.365
A22: 17 | C22: =Calc_WHDHC!G23 -> 1158 | F22: =ROUND(IF(Calc_WHDHC!H23<0,Calc_WHDHC!I23*IF(Input!$B$4="Other",0.95*0.95,0.98*0.95),2*PI()*Calc_WHDHC!G23/60*Calc_WHDHC!H23/1000),3) -> 32.014 | I22: 17 | K22: - | N22: =Calc_WHDHC!J23/3.6/(2*Input!$B$5*PI())*60 -> 33.83565422 | Q22: =ROUND(IF(Calc_WHDHC!H23<0,Calc_WHDHC!I23,2*PI()*Calc_WHDHC!G23/60*Calc_WHDHC!H23/1000*IF(Input!$B$4="Other",0.95*0.95,0.98*0.95)),3) -> 29.805
A23: 18 | C23: =Calc_WHDHC!G24 -> 1202 | F23: =ROUND(IF(Calc_WHDHC!H24<0,Calc_WHDHC!I24*IF(Input!$B$4="Other",0.95*0.95,0.98*0.95),2*PI()*Calc_WHDHC!G24/60*Calc_WHDHC!H24/1000),3) -> 15.86 | I23: 18 | K23: - | N23: =Calc_WHDHC!J24/3.6/(2*Input!$B$5*PI())*60 -> 35.91231058 | Q23: =ROUND(IF(Calc_WHDHC!H24<0,Calc_WHDHC!I24,2*PI()*Calc_WHDHC!G24/60*Calc_WHDHC!H24/1000*IF(Input!$B$4="Other",0.95*0.95,0.98*0.95)),3) -> 14.766
A24: 19 | C24: =Calc_WHDHC!G25 -> 1099 | F24: =ROUND(IF(Calc_WHDHC!H25<0,Calc_WHDHC!I25*IF(Input!$B$4="Other",0.95*0.95,0.98*0.95),2*PI()*Calc_WHDHC!G25/60*Calc_WHDHC!H25/1000),3) -> 0 | I24: 19 | K24: - | N24: =Calc_WHDHC!J25/3.6/(2*Input!$B$5*PI())*60 -> 39.67798077 | Q24: =ROUND(IF(Calc_WHDHC!H25<0,Calc_WHDHC!I25,2*PI()*Calc_WHDHC!G25/60*Calc_WHDHC!H25/1000*IF(Input!$B$4="Other",0.95*0.95,0.98*0.95)),3) -> 0
A25: 20 | C25: =Calc_WHDHC!G26 -> 996 | F25: =ROUND(IF(Calc_WHDHC!H26<0,Calc_WHDHC!I26*IF(Input!$B$4="Other",0.95*0.95,0.98*0.95),2*PI()*Calc_WHDHC!G26/60*Calc_WHDHC!H26/1000),3) -> 33.898 | I25: 20 | K25: - | N25: =Calc_WHDHC!J26/3.6/(2*Input!$B$5*PI())*60 -> 45.35417481 | Q25: =ROUND(IF(Calc_WHDHC!H26<0,Calc_WHDHC!I26,2*PI()*Calc_WHDHC!G26/60*Calc_WHDHC!H26/1000*IF(Input!$B$4="Other",0.95*0.95,0.98*0.95)),3) -> 31.559
A26: 21 | C26: =Calc_WHDHC!G27 -> 1121 | F26: =ROUND(IF(Calc_WHDHC!H27<0,Calc_WHDHC!I27*IF(Input!$B$4="Other",0.95*0.95,0.98*0.95),2*PI()*Calc_WHDHC!G27/60*Calc_WHDHC!H27/1000),3) -> 67.03 | I26: 21 | K26: - | N26: =Calc_WHDHC!J27/3.6/(2*Input!$B$5*PI())*60 -> 50.94730259 | Q26: =ROUND(IF(Calc_WHDHC!H27<0,Calc_WHDHC!I27,2*PI()*Calc_WHDHC!G27/60*Calc_WHDHC!H27/1000*IF(Input!$B$4="Other",0.95*0.95,0.98*0.95)),3) -> 62.405
A27: 22 | C27: =Calc_WHDHC!G28 -> 1211 | F27: =ROUND(IF(Calc_WHDHC!H28<0,Calc_WHDHC!I28*IF(Input!$B$4="Other",0.95*0.95,0.98*0.95),2*PI()*Calc_WHDHC!G28/60*Calc_WHDHC!H28/1000),3) -> 71.27 | I27: 22 | K27: - | N27: =Calc_WHDHC!J28/3.6/(2*Input!$B$5*PI())*60 -> 54.9898603 | Q27: =ROUND(IF(Calc_WHDHC!H28<0,Calc_WHDHC!I28,2*PI()*Calc_WHDHC!G28/60*Calc_WHDHC!H28/1000*IF(Input!$B$4="Other",0.95*0.95,0.98*0.95)),3) -> 66.353
A28: 23 | C28: =Calc_WHDHC!G29 -> 1273 | F28: =ROUND(IF(Calc_WHDHC!H29<0,Calc_WHDHC!I29*IF(Input!$B$4="Other",0.95*0.95,0.98*0.95),2*PI()*Calc_WHDHC!G29/60*Calc_WHDHC!H29/1000),3) -> 50.524 | I28: 23 | K28: - | N28: =Calc_WHDHC!J29/3.6/(2*Input!$B$5*PI())*60 -> 57.73104669 | Q28: =ROUND(IF(Calc_WHDHC!H29<0,Calc_WHDHC!I29,2*PI()*Calc_WHDHC!G29/60*Calc_WHDHC!H29/1000*IF(Input!$B$4="Other",0.95*0.95,0.98*0.95)),3) -> 47.038
A29: 24 | C29: =Calc_WHDHC!G30 -> 1314 | F29: =ROUND(IF(Calc_WHDHC!H30<0,Calc_WHDHC!I30*IF(Input!$B$4="Other",0.95*0.95,0.98*0.95),2*PI()*Calc_WHDHC!G30/60*Calc_WHDHC!H30/1000),3) -> 37.428 | I29: 24 | K29: - | N29: =Calc_WHDHC!J30/3.6/(2*Input!$B$5*PI())*60 -> 59.58619303 | Q29: =ROUND(IF(Calc_WHDHC!H30<0,Calc_WHDHC!I30,2*PI()*Calc_WHDHC!G30/60*Calc_WHDHC!H30/1000*IF(Input!$B$4="Other",0.95*0.95,0.98*0.95)),3) -> 34.845
A30: 25 | C30: =Calc_WHDHC!G31 -> 1338 | F30: =ROUND(IF(Calc_WHDHC!H31<0,Calc_WHDHC!I31*IF(Input!$B$4="Other",0.95*0.95,0.98*0.95),2*PI()*Calc_WHDHC!G31/60*Calc_WHDHC!H31/1000),3) -> 25.361 | I30: 25 | K30: - | N30: =Calc_WHDHC!J31/3.6/(2*Input!$B$5*PI())*60 -> 60.61067683 | Q30: =ROUND(IF(Calc_WHDHC!H31<0,Calc_WHDHC!I31,2*PI()*Calc_WHDHC!G31/60*Calc_WHDHC!H31/1000*IF(Input!$B$4="Other",0.95*0.95,0.98*0.95)),3) -> 23.611
A31: 26 | C31: =Calc_WHDHC!G32 -> 1343 | F31: =ROUND(IF(Calc_WHDHC!H32<0,Calc_WHDHC!I32*IF(Input!$B$4="Other",0.95*0.95,0.98*0.95),2*PI()*Calc_WHDHC!G32/60*Calc_WHDHC!H32/1000),3) -> 17.72 | I31: 26 | K31: - | N31: =Calc_WHDHC!J32/3.6/(2*Input!$B$5*PI())*60 -> 60.85987559 | Q31: =ROUND(IF(Calc_WHDHC!H32<0,Calc_WHDHC!I32,2*PI()*Calc_WHDHC!G32/60*Calc_WHDHC!H32/1000*IF(Input!$B$4="Other",0.95*0.95,0.98*0.95)),3) -> 16.498
A32: 27 | C32: =Calc_WHDHC!G33 -> 1339 | F32: =ROUND(IF(Calc_WHDHC!H33<0,Calc_WHDHC!I33*IF(Input!$B$4="Other",0.95*0.95,0.98*0.95),2*PI()*Calc_WHDHC!G33/60*Calc_WHDHC!H33/1000),3) -> 14.443 | I32: 27 | K32: - | N32: =Calc_WHDHC!J33/3.6/(2*Input!$B$5*PI())*60 -> 60.66605433 | Q32: =ROUND(IF(Calc_WHDHC!H33<0,Calc_WHDHC!I33,2*PI()*Calc_WHDHC!G33/60*Calc_WHDHC!H33/1000*IF(Input!$B$4="Other",0.95*0.95,0.98*0.95)),3) -> 13.446
A33: 28 | C33: =Calc_WHDHC!G34 -> 1325 | F33: =ROUND(IF(Calc_WHDHC!H34<0,Calc_WHDHC!I34*IF(Input!$B$4="Other",0.95*0.95,0.98*0.95),2*PI()*Calc_WHDHC!G34/60*Calc_WHDHC!H34/1000),3) -> -0.313 | I33: 28 | K33: - | N33: =Calc_WHDHC!J34/3.6/(2*Input!$B$5*PI())*60 -> 60.02921305 | Q33: =ROUND(IF(Calc_WHDHC!H34<0,Calc_WHDHC!I34,2*PI()*Calc_WHDHC!G34/60*Calc_WHDHC!H34/1000*IF(Input!$B$4="Other",0.95*0.95,0.98*0.95)),3) -> -0.336
A34: 29 | C34: =Calc_WHDHC!G35 -> 1296 | F34: =ROUND(IF(Calc_WHDHC!H35<0,Calc_WHDHC!I35*IF(Input!$B$4="Other",0.95*0.95,0.98*0.95),2*PI()*Calc_WHDHC!G35/60*Calc_WHDHC!H35/1000),3) -> -2.116 | I34: 29 | K34: - | N34: =Calc_WHDHC!J35/3.6/(2*Input!$B$5*PI())*60 -> 58.72784174 | Q34: =ROUND(IF(Calc_WHDHC!H35<0,Calc_WHDHC!I35,2*PI()*Calc_WHDHC!G35/60*Calc_WHDHC!H35/1000*IF(Input!$B$4="Other",0.95*0.95,0.98*0.95)),3) -> -2.273
A35: 30 | C35: =Calc_WHDHC!G36 -> 1248 | F35: =ROUND(IF(Calc_WHDHC!H36<0,Calc_WHDHC!I36*IF(Input!$B$4="Other",0.95*0.95,0.98*0.95),2*PI()*Calc_WHDHC!G36/60*Calc_WHDHC!H36/1000),3) -> -5.756 | I35: 30 | K35: - | N35: =Calc_WHDHC!J36/3.6/(2*Input!$B$5*PI())*60 -> 56.59580788 | Q35: =ROUND(IF(Calc_WHDHC!H36<0,Calc_WHDHC!I36,2*PI()*Calc_WHDHC!G36/60*Calc_WHDHC!H36/1000*IF(Input!$B$4="Other",0.95*0.95,0.98*0.95)),3) -> -6.183
A36: 31 | C36: =Calc_WHDHC!G37 -> 1173 | F36: =ROUND(IF(Calc_WHDHC!H37<0,Calc_WHDHC!I37*IF(Input!$B$4="Other",0.95*0.95,0.98*0.95),2*PI()*Calc_WHDHC!G37/60*Calc_WHDHC!H37/1000),3) -> -9.286 | I36: 31 | K36: - | N36: =Calc_WHDHC!J37/3.6/(2*Input!$B$5*PI())*60 -> 53.27315771 | Q36: =ROUND(IF(Calc_WHDHC!H37<0,Calc_WHDHC!I37,2*PI()*Calc_WHDHC!G37/60*Calc_WHDHC!H37/1000*IF(Input!$B$4="Other",0.95*0.95,0.98*0.95)),3) -> -9.974
A37: 32 | C37: =Calc_WHDHC!G38 -> 1070 | F37: =ROUND(IF(Calc_WHDHC!H38<0,Calc_WHDHC!I38*IF(Input!$B$4="Other",0.95*0.95,0.98*0.95),2*PI()*Calc_WHDHC!G38/60*Calc_WHDHC!H38/1000),3) -> -11.029 | I37: 32 | K37: - | N37: =Calc_WHDHC!J38/3.6/(2*Input!$B$5*PI())*60 -> 48.64913622 | Q37: =ROUND(IF(Calc_WHDHC!H38<0,Calc_WHDHC!I38,2*PI()*Calc_WHDHC!G38/60*Calc_WHDHC!H38/1000*IF(Input!$B$4="Other",0.95*0.95,0.98*0.95)),3) -> -11.846
A38: 33 | C38: =Calc_WHDHC!G39 -> 943 | F38: =ROUND(IF(Calc_WHDHC!H39<0,Calc_WHDHC!I39*IF(Input!$B$4="Other",0.95*0.95,0.98*0.95),2*PI()*Calc_WHDHC!G39/60*Calc_WHDHC!H39/1000),3) -> -7.559 | I38: 33 | K38: - | N38: =Calc_WHDHC!J39/3.6/(2*Input!$B$5*PI())*60 -> 43.00063094 | Q38: =ROUND(IF(Calc_WHDHC!H39<0,Calc_WHDHC!I39,2*PI()*Calc_WHDHC!G39/60*Calc_WHDHC!H39/1000*IF(Input!$B$4="Other",0.95*0.95,0.98*0.95)),3) -> -8.119
A39: 34 | C39: =Calc_WHDHC!G40 -> 835 | F39: =ROUND(IF(Calc_WHDHC!H40<0,Calc_WHDHC!I40*IF(Input!$B$4="Other",0.95*0.95,0.98*0.95),2*PI()*Calc_WHDHC!G40/60*Calc_WHDHC!H40/1000),3) -> -1.193 | I39: 34 | K39: - | N39: =Calc_WHDHC!J40/3.6/(2*Input!$B$5*PI())*60 -> 38.12741069 | Q39: =ROUND(IF(Calc_WHDHC!H40<0,Calc_WHDHC!I40,2*PI()*Calc_WHDHC!G40/60*Calc_WHDHC!H40/1000*IF(Input!$B$4="Other",0.95*0.95,0.98*0.95)),3) -> -1.281
A40: 35 | C40: =Calc_WHDHC!G41 -> 783 | F40: =ROUND(IF(Calc_WHDHC!H41<0,Calc_WHDHC!I41*IF(Input!$B$4="Other",0.95*0.95,0.98*0.95),2*PI()*Calc_WHDHC!G41/60*Calc_WHDHC!H41/1000),3) -> 0 | I40: 35 | K40: - | N40: =Calc_WHDHC!J41/3.6/(2*Input!$B$5*PI())*60 -> 35.85693307 | Q40: =ROUND(IF(Calc_WHDHC!H41<0,Calc_WHDHC!I41,2*PI()*Calc_WHDHC!G41/60*Calc_WHDHC!H41/1000*IF(Input!$B$4="Other",0.95*0.95,0.98*0.95)),3) -> 0
A41: 36 | C41: =Calc_WHDHC!G42 -> 783 | F41: =ROUND(IF(Calc_WHDHC!H42<0,Calc_WHDHC!I42*IF(Input!$B$4="Other",0.95*0.95,0.98*0.95),2*PI()*Calc_WHDHC!G42/60*Calc_WHDHC!H42/1000),3) -> 52.969 | I41: 36 | K41: - | N41: =Calc_WHDHC!J42/3.6/(2*Input!$B$5*PI())*60 -> 35.85693307 | Q41: =ROUND(IF(Calc_WHDHC!H42<0,Calc_WHDHC!I42,2*PI()*Calc_WHDHC!G42/60*Calc_WHDHC!H42/1000*IF(Input!$B$4="Other",0.95*0.95,0.98*0.95)),3) -> 49.314
A42: 37 | C42: =Calc_WHDHC!G43 -> 808 | F42: =ROUND(IF(Calc_WHDHC!H43<0,Calc_WHDHC!I43*IF(Input!$B$4="Other",0.95*0.95,0.98*0.95),2*PI()*Calc_WHDHC!G43/60*Calc_WHDHC!H43/1000),3) -> 51.022 | I42: 37 | K42: - | N42: =Calc_WHDHC!J43/3.6/(2*Input!$B$5*PI())*60 -> 36.96448313 | Q42: =ROUND(IF(Calc_WHDHC!H43<0,Calc_WHDHC!I43,2*PI()*Calc_WHDHC!G43/60*Calc_WHDHC!H43/1000*IF(Input!$B$4="Other",0.95*0.95,0.98*0.95)),3) -> 47.501
A43: 38 | C43: =Calc_WHDHC!G44 -> 833 | F43: =ROUND(IF(Calc_WHDHC!H44<0,Calc_WHDHC!I44*IF(Input!$B$4="Other",0.95*0.95,0.98*0.95),2*PI()*Calc_WHDHC!G44/60*Calc_WHDHC!H44/1000),3) -> 46.582 | I43: 38 | K43: - | N43: =Calc_WHDHC!J44/3.6/(2*Input!$B$5*PI())*60 -> 38.07203319 | Q43: =ROUND(IF(Calc_WHDHC!H44<0,Calc_WHDHC!I44,2*PI()*Calc_WHDHC!G44/60*Calc_WHDHC!H44/1000*IF(Input!$B$4="Other",0.95*0.95,0.98*0.95)),3) -> 43.368
A44: 39 | C44: =Calc_WHDHC!G45 -> 837 | F44: =ROUND(IF(Calc_WHDHC!H45<0,Calc_WHDHC!I45*IF(Input!$B$4="Other",0.95*0.95,0.98*0.95),2*PI()*Calc_WHDHC!G45/60*Calc_WHDHC!H45/1000),3) -> 0 | I44: 39 | K44: - | N44: =Calc_WHDHC!J45/3.6/(2*Input!$B$5*PI())*60 -> 38.26585445 | Q44: =ROUND(IF(Calc_WHDHC!H45<0,Calc_WHDHC!I45,2*PI()*Calc_WHDHC!G45/60*Calc_WHDHC!H45/1000*IF(Input!$B$4="Other",0.95*0.95,0.98*0.95)),3) -> 0
A45: 40 | C45: =Calc_WHDHC!G46 -> 812 | F45: =ROUND(IF(Calc_WHDHC!H46<0,Calc_WHDHC!I46*IF(Input!$B$4="Other",0.95*0.95,0.98*0.95),2*PI()*Calc_WHDHC!G46/60*Calc_WHDHC!H46/1000),3) -> 0 | I45: 40 | K45: - | N45: =Calc_WHDHC!J46/3.6/(2*Input!$B$5*PI())*60 -> 37.13061564 | Q45: =ROUND(IF(Calc_WHDHC!H46<0,Calc_WHDHC!I46,2*PI()*Calc_WHDHC!G46/60*Calc_WHDHC!H46/1000*IF(Input!$B$4="Other",0.95*0.95,0.98*0.95)),3) -> 0
A46: 41 | C46: =Calc_WHDHC!G47 -> 741 | F46: =ROUND(IF(Calc_WHDHC!H47<0,Calc_WHDHC!I47*IF(Input!$B$4="Other",0.95*0.95,0.98*0.95),2*PI()*Calc_WHDHC!G47/60*Calc_WHDHC!H47/1000),3) -> 0 | I46: 41 | K46: - | N46: =Calc_WHDHC!J47/3.6/(2*Input!$B$5*PI())*60 -> 33.94640923 | Q46: =ROUND(IF(Calc_WHDHC!H47<0,Calc_WHDHC!I47,2*PI()*Calc_WHDHC!G47/60*Calc_WHDHC!H47/1000*IF(Input!$B$4="Other",0.95*0.95,0.98*0.95)),3) -> 0
A47: 42 | C47: =Calc_WHDHC!G48 -> 589 | F47: =ROUND(IF(Calc_WHDHC!H48<0,Calc_WHDHC!I48*IF(Input!$B$4="Other",0.95*0.95,0.98*0.95),2*PI()*Calc_WHDHC!G48/60*Calc_WHDHC!H48/1000),3) -> 0 | I47: 42 | K47: - | N47: =Calc_WHDHC!J48/3.6/(2*Input!$B$5*PI())*60 -> 27.19035388 | Q47: =ROUND(IF(Calc_WHDHC!H48<0,Calc_WHDHC!I48,2*PI()*Calc_WHDHC!G48/60*Calc_WHDHC!H48/1000*IF(Input!$B$4="Other",0.95*0.95,0.98*0.95)),3) -> 0
A48: 43 | C48: =Calc_WHDHC!G49 -> 560 | F48: =ROUND(IF(Calc_WHDHC!H49<0,Calc_WHDHC!I49*IF(Input!$B$4="Other",0.95*0.95,0.98*0.95),2*PI()*Calc_WHDHC!G49/60*Calc_WHDHC!H49/1000),3) -> 0 | I48: 43 | K48: - | N48: =Calc_WHDHC!J49/3.6/(2*Input!$B$5*PI())*60 -> 16.50249584 | Q48: =ROUND(IF(Calc_WHDHC!H49<0,Calc_WHDHC!I49,2*PI()*Calc_WHDHC!G49/60*Calc_WHDHC!H49/1000*IF(Input!$B$4="Other",0.95*0.95,0.98*0.95)),3) -> 0
A49: 44 | C49: =Calc_WHDHC!G50 -> 560 | F49: =ROUND(IF(Calc_WHDHC!H50<0,Calc_WHDHC!I50*IF(Input!$B$4="Other",0.95*0.95,0.98*0.95),2*PI()*Calc_WHDHC!G50/60*Calc_WHDHC!H50/1000),3) -> 0 | I49: 44 | K49: - | N49: =Calc_WHDHC!J50/3.6/(2*Input!$B$5*PI())*60 -> 6.09152531 | Q49: =ROUND(IF(Calc_WHDHC!H50<0,Calc_WHDHC!I50,2*PI()*Calc_WHDHC!G50/60*Calc_WHDHC!H50/1000*IF(Input!$B$4="Other",0.95*0.95,0.98*0.95)),3) -> 0
A50: 45 | C50: =Calc_WHDHC!G51 -> 560 | F50: =ROUND(IF(Calc_WHDHC!H51<0,Calc_WHDHC!I51*IF(Input!$B$4="Other",0.95*0.95,0.98*0.95),2*PI()*Calc_WHDHC!G51/60*Calc_WHDHC!H51/1000),3) -> 0 | I50: 45 | K50: - | N50: =Calc_WHDHC!J51/3.6/(2*Input!$B$5*PI())*60 -> 0 | Q50: =ROUND(IF(Calc_WHDHC!H51<0,Calc_WHDHC!I51,2*PI()*Calc_WHDHC!G51/60*Calc_WHDHC!H51/1000*IF(Input!$B$4="Other",0.95*0.95,0.98*0.95)),3) -> 0
A51: 46 | C51: =Calc_WHDHC!G52 -> 560 | F51: =ROUND(IF(Calc_WHDHC!H52<0,Calc_WHDHC!I52*IF(Input!$B$4="Other",0.95*0.95,0.98*0.95),2*PI()*Calc_WHDHC!G52/60*Calc_WHDHC!H52/1000),3) -> 0 | I51: 46 | K51: - | N51: =Calc_WHDHC!J52/3.6/(2*Input!$B$5*PI())*60 -> 0 | Q51: =ROUND(IF(Calc_WHDHC!H52<0,Calc_WHDHC!I52,2*PI()*Calc_WHDHC!G52/60*Calc_WHDHC!H52/1000*IF(Input!$B$4="Other",0.95*0.95,0.98*0.95)),3) -> 0
A52: 47 | C52: =Calc_WHDHC!G53 -> 560 | F52: =ROUND(IF(Calc_WHDHC!H53<0,Calc_WHDHC!I53*IF(Input!$B$4="Other",0.95*0.95,0.98*0.95),2*PI()*Calc_WHDHC!G53/60*Calc_WHDHC!H53/1000),3) -> 0 | I52: 47 | K52: - | N52: =Calc_WHDHC!J53/3.6/(2*Input!$B$5*PI())*60 -> 0 | Q52: =ROUND(IF(Calc_WHDHC!H53<0,Calc_WHDHC!I53,2*PI()*Calc_WHDHC!G53/60*Calc_WHDHC!H53/1000*IF(Input!$B$4="Other",0.95*0.95,0.98*0.95)),3) -> 0
A53: 48 | C53: =Calc_WHDHC!G54 -> 560 | F53: =ROUND(IF(Calc_WHDHC!H54<0,Calc_WHDHC!I54*IF(Input!$B$4="Other",0.95*0.95,0.98*0.95),2*PI()*Calc_WHDHC!G54/60*Calc_WHDHC!H54/1000),3) -> 0 | I53: 48 | K53: - | N53: =Calc_WHDHC!J54/3.6/(2*Input!$B$5*PI())*60 -> 0 | Q53: =ROUND(IF(Calc_WHDHC!H54<0,Calc_WHDHC!I54,2*PI()*Calc_WHDHC!G54/60*Calc_WHDHC!H54/1000*IF(Input!$B$4="Other",0.95*0.95,0.98*0.95)),3) -> 0
A54: 49 | C54: =Calc_WHDHC!G55 -> 560 | F54: =ROUND(IF(Calc_WHDHC!H55<0,Calc_WHDHC!I55*IF(Input!$B$4="Other",0.95*0.95,0.98*0.95),2*PI()*Calc_WHDHC!G55/60*Calc_WHDHC!H55/1000),3) -> 0 | I54: 49 | K54: - | N54: =Calc_WHDHC!J55/3.6/(2*Input!$B$5*PI())*60 -> 0 | Q54: =ROUND(IF(Calc_WHDHC!H55<0,Calc_WHDHC!I55,2*PI()*Calc_WHDHC!G55/60*Calc_WHDHC!H55/1000*IF(Input!$B$4="Other",0.95*0.95,0.98*0.95)),3) -> 0
A55: 50 | C55: =Calc_WHDHC!G56 -> 560 | F55: =ROUND(IF(Calc_WHDHC!H56<0,Calc_WHDHC!I56*IF(Input!$B$4="Other",0.95*0.95,0.98*0.95),2*PI()*Calc_WHDHC!G56/60*Calc_WHDHC!H56/1000),3) -> 7.565 | I55: 50 | K55: - | N55: =Calc_WHDHC!J56/3.6/(2*Input!$B$5*PI())*60 -> 5.177796513 | Q55: =ROUND(IF(Calc_WHDHC!H56<0,Calc_WHDHC!I56,2*PI()*Calc_WHDHC!G56/60*Calc_WHDHC!H56/1000*IF(Input!$B$4="Other",0.95*0.95,0.98*0.95)),3) -> 7.043
A56: 51 | C56: =Calc_WHDHC!G57 -> 733 | F56: =ROUND(IF(Calc_WHDHC!H57<0,Calc_WHDHC!I57*IF(Input!$B$4="Other",0.95*0.95,0.98*0.95),2*PI()*Calc_WHDHC!G57/60*Calc_WHDHC!H57/1000),3) -> 32.7 | I56: 51 | K56: - | N56: =Calc_WHDHC!J57/3.6/(2*Input!$B$5*PI())*60 -> 13.76130945 | Q56: =ROUND(IF(Calc_WHDHC!H57<0,Calc_WHDHC!I57,2*PI()*Calc_WHDHC!G57/60*Calc_WHDHC!H57/1000*IF(Input!$B$4="Other",0.95*0.95,0.98*0.95)),3) -> 30.443
A57: 52 | C57: =Calc_WHDHC!G58 -> 907 | F57: =ROUND(IF(Calc_WHDHC!H58<0,Calc_WHDHC!I58*IF(Input!$B$4="Other",0.95*0.95,0.98*0.95),2*PI()*Calc_WHDHC!G58/60*Calc_WHDHC!H58/1000),3) -> 43.311 | I57: 52 | K57: - | N57: =Calc_WHDHC!J58/3.6/(2*Input!$B$5*PI())*60 -> 23.25855118 | Q57: =ROUND(IF(Calc_WHDHC!H58<0,Calc_WHDHC!I58,2*PI()*Calc_WHDHC!G58/60*Calc_WHDHC!H58/1000*IF(Input!$B$4="Other",0.95*0.95,0.98*0.95)),3) -> 40.323
A58: 53 | C58: =Calc_WHDHC!G59 -> 1022 | F58: =ROUND(IF(Calc_WHDHC!H59<0,Calc_WHDHC!I59*IF(Input!$B$4="Other",0.95*0.95,0.98*0.95),2*PI()*Calc_WHDHC!G59/60*Calc_WHDHC!H59/1000),3) -> 69.886 | I58: 53 | K58: - | N58: =Calc_WHDHC!J59/3.6/(2*Input!$B$5*PI())*60 -> 27.41186389 | Q58: =ROUND(IF(Calc_WHDHC!H59<0,Calc_WHDHC!I59,2*PI()*Calc_WHDHC!G59/60*Calc_WHDHC!H59/1000*IF(Input!$B$4="Other",0.95*0.95,0.98*0.95)),3) -> 65.064
A59: 54 | C59: =Calc_WHDHC!G60 -> 1111 | F59: =ROUND(IF(Calc_WHDHC!H60<0,Calc_WHDHC!I60*IF(Input!$B$4="Other",0.95*0.95,0.98*0.95),2*PI()*Calc_WHDHC!G60/60*Calc_WHDHC!H60/1000),3) -> 34.554 | I59: 54 | K59: - | N59: =Calc_WHDHC!J60/3.6/(2*Input!$B$5*PI())*60 -> 31.62055411 | Q59: =ROUND(IF(Calc_WHDHC!H60<0,Calc_WHDHC!I60,2*PI()*Calc_WHDHC!G60/60*Calc_WHDHC!H60/1000*IF(Input!$B$4="Other",0.95*0.95,0.98*0.95)),3) -> 32.17
A60: 55 | C60: =Calc_WHDHC!G61 -> 1117 | F60: =ROUND(IF(Calc_WHDHC!H61<0,Calc_WHDHC!I61*IF(Input!$B$4="Other",0.95*0.95,0.98*0.95),2*PI()*Calc_WHDHC!G61/60*Calc_WHDHC!H61/1000),3) -> 0 | I60: 55 | K60: - | N60: =Calc_WHDHC!J61/3.6/(2*Input!$B$5*PI())*60 -> 41.83770338 | Q60: =ROUND(IF(Calc_WHDHC!H61<0,Calc_WHDHC!I61,2*PI()*Calc_WHDHC!G61/60*Calc_WHDHC!H61/1000*IF(Input!$B$4="Other",0.95*0.95,0.98*0.95)),3) -> 0
A61: 56 | C61: =Calc_WHDHC!G62 -> 1125 | F61: =ROUND(IF(Calc_WHDHC!H62<0,Calc_WHDHC!I62*IF(Input!$B$4="Other",0.95*0.95,0.98*0.95),2*PI()*Calc_WHDHC!G62/60*Calc_WHDHC!H62/1000),3) -> 28.51 | I61: 56 | K61: - | N61: =Calc_WHDHC!J62/3.6/(2*Input!$B$5*PI())*60 -> 51.1134351 | Q61: =ROUND(IF(Calc_WHDHC!H62<0,Calc_WHDHC!I62,2*PI()*Calc_WHDHC!G62/60*Calc_WHDHC!H62/1000*IF(Input!$B$4="Other",0.95*0.95,0.98*0.95)),3) -> 26.543
A62: 57 | C62: =Calc_WHDHC!G63 -> 1234 | F62: =ROUND(IF(Calc_WHDHC!H63<0,Calc_WHDHC!I63*IF(Input!$B$4="Other",0.95*0.95,0.98*0.95),2*PI()*Calc_WHDHC!G63/60*Calc_WHDHC!H63/1000),3) -> 56.859 | I62: 57 | K62: - | N62: =Calc_WHDHC!J63/3.6/(2*Input!$B$5*PI())*60 -> 55.9589666 | Q62: =ROUND(IF(Calc_WHDHC!H63<0,Calc_WHDHC!I63,2*PI()*Calc_WHDHC!G63/60*Calc_WHDHC!H63/1000*IF(Input!$B$4="Other",0.95*0.95,0.98*0.95)),3) -> 52.935
A63: 58 | C63: =Calc_WHDHC!G64 -> 1352 | F63: =ROUND(IF(Calc_WHDHC!H64<0,Calc_WHDHC!I64*IF(Input!$B$4="Other",0.95*0.95,0.98*0.95),2*PI()*Calc_WHDHC!G64/60*Calc_WHDHC!H64/1000),3) -> 28.599 | I63: 58 | K63: - | N63: =Calc_WHDHC!J64/3.6/(2*Input!$B$5*PI())*60 -> 61.27520687 | Q63: =ROUND(IF(Calc_WHDHC!H64<0,Calc_WHDHC!I64,2*PI()*Calc_WHDHC!G64/60*Calc_WHDHC!H64/1000*IF(Input!$B$4="Other",0.95*0.95,0.98*0.95)),3) -> 26.626
A64: 59 | C64: =Calc_WHDHC!G65 -> 1212 | F64: =ROUND(IF(Calc_WHDHC!H65<0,Calc_WHDHC!I65*IF(Input!$B$4="Other",0.95*0.95,0.98*0.95),2*PI()*Calc_WHDHC!G65/60*Calc_WHDHC!H65/1000),3) -> 0 | I64: 59 | K64: - | N64: =Calc_WHDHC!J65/3.6/(2*Input!$B$5*PI())*60 -> 66.92371215 | Q64: =ROUND(IF(Calc_WHDHC!H65<0,Calc_WHDHC!I65,2*PI()*Calc_WHDHC!G65/60*Calc_WHDHC!H65/1000*IF(Input!$B$4="Other",0.95*0.95,0.98*0.95)),3) -> 0
A65: 60 | C65: =Calc_WHDHC!G66 -> 1074 | F65: =ROUND(IF(Calc_WHDHC!H66<0,Calc_WHDHC!I66*IF(Input!$B$4="Other",0.95*0.95,0.98*0.95),2*PI()*Calc_WHDHC!G66/60*Calc_WHDHC!H66/1000),3) -> 38.464 | I65: 60 | K65: - | N65: =Calc_WHDHC!J66/3.6/(2*Input!$B$5*PI())*60 -> 70.7724486 | Q65: =ROUND(IF(Calc_WHDHC!H66<0,Calc_WHDHC!I66,2*PI()*Calc_WHDHC!G66/60*Calc_WHDHC!H66/1000*IF(Input!$B$4="Other",0.95*0.95,0.98*0.95)),3) -> 35.81
A66: 61 | C66: =Calc_WHDHC!G67 -> 1133 | F66: =ROUND(IF(Calc_WHDHC!H67<0,Calc_WHDHC!I67*IF(Input!$B$4="Other",0.95*0.95,0.98*0.95),2*PI()*Calc_WHDHC!G67/60*Calc_WHDHC!H67/1000),3) -> 76.29 | I66: 61 | K66: - | N66: =Calc_WHDHC!J67/3.6/(2*Input!$B$5*PI())*60 -> 74.67656255 | Q66: =ROUND(IF(Calc_WHDHC!H67<0,Calc_WHDHC!I67,2*PI()*Calc_WHDHC!G67/60*Calc_WHDHC!H67/1000*IF(Input!$B$4="Other",0.95*0.95,0.98*0.95)),3) -> 71.026
A67: 62 | C67: =Calc_WHDHC!G68 -> 1212 | F67: =ROUND(IF(Calc_WHDHC!H68<0,Calc_WHDHC!I68*IF(Input!$B$4="Other",0.95*0.95,0.98*0.95),2*PI()*Calc_WHDHC!G68/60*Calc_WHDHC!H68/1000),3) -> 37.949 | I67: 62 | K67: - | N67: =Calc_WHDHC!J68/3.6/(2*Input!$B$5*PI())*60 -> 79.82667031 | Q67: =ROUND(IF(Calc_WHDHC!H68<0,Calc_WHDHC!I68,2*PI()*Calc_WHDHC!G68/60*Calc_WHDHC!H68/1000*IF(Input!$B$4="Other",0.95*0.95,0.98*0.95)),3) -> 35.331
A68: 63 | C68: =Calc_WHDHC!G69 -> 1095 | F68: =ROUND(IF(Calc_WHDHC!H69<0,Calc_WHDHC!I69*IF(Input!$B$4="Other",0.95*0.95,0.98*0.95),2*PI()*Calc_WHDHC!G69/60*Calc_WHDHC!H69/1000),3) -> 0 | I68: 63 | K68: - | N68: =Calc_WHDHC!J69/3.6/(2*Input!$B$5*PI())*60 -> 85.97357312 | Q68: =ROUND(IF(Calc_WHDHC!H69<0,Calc_WHDHC!I69,2*PI()*Calc_WHDHC!G69/60*Calc_WHDHC!H69/1000*IF(Input!$B$4="Other",0.95*0.95,0.98*0.95)),3) -> 0
A69: 64 | C69: =Calc_WHDHC!G70 -> 976 | F69: =ROUND(IF(Calc_WHDHC!H70<0,Calc_WHDHC!I70*IF(Input!$B$4="Other",0.95*0.95,0.98*0.95),2*PI()*Calc_WHDHC!G70/60*Calc_WHDHC!H70/1000),3) -> 87.489 | I69: 64 | K69: - | N69: =Calc_WHDHC!J70/3.6/(2*Input!$B$5*PI())*60 -> 93.36646975 | Q69: =ROUND(IF(Calc_WHDHC!H70<0,Calc_WHDHC!I70,2*PI()*Calc_WHDHC!G70/60*Calc_WHDHC!H70/1000*IF(Input!$B$4="Other",0.95*0.95,0.98*0.95)),3) -> 81.452
A70: 65 | C70: =Calc_WHDHC!G71 -> 1043 | F70: =ROUND(IF(Calc_WHDHC!H71<0,Calc_WHDHC!I71*IF(Input!$B$4="Other",0.95*0.95,0.98*0.95),2*PI()*Calc_WHDHC!G71/60*Calc_WHDHC!H71/1000),3) -> 174.756 | I70: 65 | K70: - | N70: =Calc_WHDHC!J71/3.6/(2*Input!$B$5*PI())*60 -> 99.67950507 | Q70: =ROUND(IF(Calc_WHDHC!H71<0,Calc_WHDHC!I71,2*PI()*Calc_WHDHC!G71/60*Calc_WHDHC!H71/1000*IF(Input!$B$4="Other",0.95*0.95,0.98*0.95)),3) -> 162.698
A71: 66 | C71: =Calc_WHDHC!G72 -> 1099 | F71: =ROUND(IF(Calc_WHDHC!H72<0,Calc_WHDHC!I72*IF(Input!$B$4="Other",0.95*0.95,0.98*0.95),2*PI()*Calc_WHDHC!G72/60*Calc_WHDHC!H72/1000),3) -> 161.352 | I71: 66 | K71: - | N71: =Calc_WHDHC!J72/3.6/(2*Input!$B$5*PI())*60 -> 104.9680566 | Q71: =ROUND(IF(Calc_WHDHC!H72<0,Calc_WHDHC!I72,2*PI()*Calc_WHDHC!G72/60*Calc_WHDHC!H72/1000*IF(Input!$B$4="Other",0.95*0.95,0.98*0.95)),3) -> 150.219
A72: 67 | C72: =Calc_WHDHC!G73 -> 1150 | F72: =ROUND(IF(Calc_WHDHC!H73<0,Calc_WHDHC!I73*IF(Input!$B$4="Other",0.95*0.95,0.98*0.95),2*PI()*Calc_WHDHC!G73/60*Calc_WHDHC!H73/1000),3) -> 149.09 | I72: 67 | K72: - | N72: =Calc_WHDHC!J73/3.6/(2*Input!$B$5*PI())*60 -> 109.7858993 | Q72: =ROUND(IF(Calc_WHDHC!H73<0,Calc_WHDHC!I73,2*PI()*Calc_WHDHC!G73/60*Calc_WHDHC!H73/1000*IF(Input!$B$4="Other",0.95*0.95,0.98*0.95)),3) -> 138.802
A73: 68 | C73: =Calc_WHDHC!G74 -> 1198 | F73: =ROUND(IF(Calc_WHDHC!H74<0,Calc_WHDHC!I74*IF(Input!$B$4="Other",0.95*0.95,0.98*0.95),2*PI()*Calc_WHDHC!G74/60*Calc_WHDHC!H74/1000),3) -> 137.122 | I73: 68 | K73: - | N73: =Calc_WHDHC!J74/3.6/(2*Input!$B$5*PI())*60 -> 114.1607221 | Q73: =ROUND(IF(Calc_WHDHC!H74<0,Calc_WHDHC!I74,2*PI()*Calc_WHDHC!G74/60*Calc_WHDHC!H74/1000*IF(Input!$B$4="Other",0.95*0.95,0.98*0.95)),3) -> 127.66
A74: 69 | C74: =Calc_WHDHC!G75 -> 1245 | F74: =ROUND(IF(Calc_WHDHC!H75<0,Calc_WHDHC!I75*IF(Input!$B$4="Other",0.95*0.95,0.98*0.95),2*PI()*Calc_WHDHC!G75/60*Calc_WHDHC!H75/1000),3) -> 175.095 | I74: 69 | K74: - | N74: =Calc_WHDHC!J75/3.6/(2*Input!$B$5*PI())*60 -> 118.6462998 | Q74: =ROUND(IF(Calc_WHDHC!H75<0,Calc_WHDHC!I75,2*PI()*Calc_WHDHC!G75/60*Calc_WHDHC!H75/1000*IF(Input!$B$4="Other",0.95*0.95,0.98*0.95)),3) -> 163.014
A75: 70 | C75: =Calc_WHDHC!G76 -> 1282 | F75: =ROUND(IF(Calc_WHDHC!H76<0,Calc_WHDHC!I76*IF(Input!$B$4="Other",0.95*0.95,0.98*0.95),2*PI()*Calc_WHDHC!G76/60*Calc_WHDHC!H76/1000),3) -> 78.939 | I75: 70 | K75: - | N75: =Calc_WHDHC!J76/3.6/(2*Input!$B$5*PI())*60 -> 122.1073937 | Q75: =ROUND(IF(Calc_WHDHC!H76<0,Calc_WHDHC!I76,2*PI()*Calc_WHDHC!G76/60*Calc_WHDHC!H76/1000*IF(Input!$B$4="Other",0.95*0.95,0.98*0.95)),3) -> 73.493
A76: 71 | C76: =Calc_WHDHC!G77 -> 1290 | F76: =ROUND(IF(Calc_WHDHC!H77<0,Calc_WHDHC!I77*IF(Input!$B$4="Other",0.95*0.95,0.98*0.95),2*PI()*Calc_WHDHC!G77/60*Calc_WHDHC!H77/1000),3) -> 52.144 | I76: 71 | K76: - | N76: =Calc_WHDHC!J77/3.6/(2*Input!$B$5*PI())*60 -> 122.85499 | Q76: =ROUND(IF(Calc_WHDHC!H77<0,Calc_WHDHC!I77,2*PI()*Calc_WHDHC!G77/60*Calc_WHDHC!H77/1000*IF(Input!$B$4="Other",0.95*0.95,0.98*0.95)),3) -> 48.546
A77: 72 | C77: =Calc_WHDHC!G78 -> 1288 | F77: =ROUND(IF(Calc_WHDHC!H78<0,Calc_WHDHC!I78*IF(Input!$B$4="Other",0.95*0.95,0.98*0.95),2*PI()*Calc_WHDHC!G78/60*Calc_WHDHC!H78/1000),3) -> 46.398 | I77: 72 | K77: - | N77: =Calc_WHDHC!J78/3.6/(2*Input!$B$5*PI())*60 -> 122.6611687 | Q77: =ROUND(IF(Calc_WHDHC!H78<0,Calc_WHDHC!I78,2*PI()*Calc_WHDHC!G78/60*Calc_WHDHC!H78/1000*IF(Input!$B$4="Other",0.95*0.95,0.98*0.95)),3) -> 43.197
A78: 73 | C78: =Calc_WHDHC!G79 -> 1284 | F78: =ROUND(IF(Calc_WHDHC!H79<0,Calc_WHDHC!I79*IF(Input!$B$4="Other",0.95*0.95,0.98*0.95),2*PI()*Calc_WHDHC!G79/60*Calc_WHDHC!H79/1000),3) -> 31.464 | I78: 73 | K78: - | N78: =Calc_WHDHC!J79/3.6/(2*Input!$B$5*PI())*60 -> 122.301215 | Q78: =ROUND(IF(Calc_WHDHC!H79<0,Calc_WHDHC!I79,2*PI()*Calc_WHDHC!G79/60*Calc_WHDHC!H79/1000*IF(Input!$B$4="Other",0.95*0.95,0.98*0.95)),3) -> 29.293
A79: 74 | C79: =Calc_WHDHC!G80 -> 1282 | F79: =ROUND(IF(Calc_WHDHC!H80<0,Calc_WHDHC!I80*IF(Input!$B$4="Other",0.95*0.95,0.98*0.95),2*PI()*Calc_WHDHC!G80/60*Calc_WHDHC!H80/1000),3) -> 32.489 | I79: 74 | K79: - | N79: =Calc_WHDHC!J80/3.6/(2*Input!$B$5*PI())*60 -> 122.19046 | Q79: =ROUND(IF(Calc_WHDHC!H80<0,Calc_WHDHC!I80,2*PI()*Calc_WHDHC!G80/60*Calc_WHDHC!H80/1000*IF(Input!$B$4="Other",0.95*0.95,0.98*0.95)),3) -> 30.247
A80: 75 | C80: =Calc_WHDHC!G81 -> 1284 | F80: =ROUND(IF(Calc_WHDHC!H81<0,Calc_WHDHC!I81*IF(Input!$B$4="Other",0.95*0.95,0.98*0.95),2*PI()*Calc_WHDHC!G81/60*Calc_WHDHC!H81/1000),3) -> 49.616 | I80: 75 | K80: - | N80: =Calc_WHDHC!J81/3.6/(2*Input!$B$5*PI())*60 -> 122.301215 | Q80: =ROUND(IF(Calc_WHDHC!H81<0,Calc_WHDHC!I81,2*PI()*Calc_WHDHC!G81/60*Calc_WHDHC!H81/1000*IF(Input!$B$4="Other",0.95*0.95,0.98*0.95)),3) -> 46.192
A81: 76 | C81: =Calc_WHDHC!G82 -> 1294 | F81: =ROUND(IF(Calc_WHDHC!H82<0,Calc_WHDHC!I82*IF(Input!$B$4="Other",0.95*0.95,0.98*0.95),2*PI()*Calc_WHDHC!G82/60*Calc_WHDHC!H82/1000),3) -> 51.357 | I81: 76 | K81: - | N81: =Calc_WHDHC!J82/3.6/(2*Input!$B$5*PI())*60 -> 123.2426325 | Q81: =ROUND(IF(Calc_WHDHC!H82<0,Calc_WHDHC!I82,2*PI()*Calc_WHDHC!G82/60*Calc_WHDHC!H82/1000*IF(Input!$B$4="Other",0.95*0.95,0.98*0.95)),3) -> 47.814
A82: 77 | C82: =Calc_WHDHC!G83 -> 1313 | F82: =ROUND(IF(Calc_WHDHC!H83<0,Calc_WHDHC!I83*IF(Input!$B$4="Other",0.95*0.95,0.98*0.95),2*PI()*Calc_WHDHC!G83/60*Calc_WHDHC!H83/1000),3) -> 40.837 | I82: 77 | K82: - | N82: =Calc_WHDHC!J83/3.6/(2*Input!$B$5*PI())*60 -> 125.0424014 | Q82: =ROUND(IF(Calc_WHDHC!H83<0,Calc_WHDHC!I83,2*PI()*Calc_WHDHC!G83/60*Calc_WHDHC!H83/1000*IF(Input!$B$4="Other",0.95*0.95,0.98*0.95)),3) -> 38.019
A83: 78 | C83: =Calc_WHDHC!G84 -> 1327 | F83: =ROUND(IF(Calc_WHDHC!H84<0,Calc_WHDHC!I84*IF(Input!$B$4="Other",0.95*0.95,0.98*0.95),2*PI()*Calc_WHDHC!G84/60*Calc_WHDHC!H84/1000),3) -> 20.567 | I83: 78 | K83: - | N83: =Calc_WHDHC!J84/3.6/(2*Input!$B$5*PI())*60 -> 126.3714614 | Q83: =ROUND(IF(Calc_WHDHC!H84<0,Calc_WHDHC!I84,2*PI()*Calc_WHDHC!G84/60*Calc_WHDHC!H84/1000*IF(Input!$B$4="Other",0.95*0.95,0.98*0.95)),3) -> 19.147
A84: 79 | C84: =Calc_WHDHC!G85 -> 1132 | F84: =ROUND(IF(Calc_WHDHC!H85<0,Calc_WHDHC!I85*IF(Input!$B$4="Other",0.95*0.95,0.98*0.95),2*PI()*Calc_WHDHC!G85/60*Calc_WHDHC!H85/1000),3) -> 0 | I84: 79 | K84: - | N84: =Calc_WHDHC!J85/3.6/(2*Input!$B$5*PI())*60 -> 127.8112765 | Q84: =ROUND(IF(Calc_WHDHC!H85<0,Calc_WHDHC!I85,2*PI()*Calc_WHDHC!G85/60*Calc_WHDHC!H85/1000*IF(Input!$B$4="Other",0.95*0.95,0.98*0.95)),3) -> 0
A85: 80 | C85: =Calc_WHDHC!G86 -> 936 | F85: =ROUND(IF(Calc_WHDHC!H86<0,Calc_WHDHC!I86*IF(Input!$B$4="Other",0.95*0.95,0.98*0.95),2*PI()*Calc_WHDHC!G86/60*Calc_WHDHC!H86/1000),3) -> 45.872 | I85: 80 | K85: - | N85: =Calc_WHDHC!J86/3.6/(2*Input!$B$5*PI())*60 -> 130.1094429 | Q85: =ROUND(IF(Calc_WHDHC!H86<0,Calc_WHDHC!I86,2*PI()*Calc_WHDHC!G86/60*Calc_WHDHC!H86/1000*IF(Input!$B$4="Other",0.95*0.95,0.98*0.95)),3) -> 42.707
A86: 81 | C86: =Calc_WHDHC!G87 -> 961 | F86: =ROUND(IF(Calc_WHDHC!H87<0,Calc_WHDHC!I87*IF(Input!$B$4="Other",0.95*0.95,0.98*0.95),2*PI()*Calc_WHDHC!G87/60*Calc_WHDHC!H87/1000),3) -> 93.591 | I86: 81 | K86: - | N86: =Calc_WHDHC!J87/3.6/(2*Input!$B$5*PI())*60 -> 133.432093 | Q86: =ROUND(IF(Calc_WHDHC!H87<0,Calc_WHDHC!I87,2*PI()*Calc_WHDHC!G87/60*Calc_WHDHC!H87/1000*IF(Input!$B$4="Other",0.95*0.95,0.98*0.95)),3) -> 87.133
A87: 82 | C87: =Calc_WHDHC!G88 -> 984 | F87: =ROUND(IF(Calc_WHDHC!H88<0,Calc_WHDHC!I88*IF(Input!$B$4="Other",0.95*0.95,0.98*0.95),2*PI()*Calc_WHDHC!G88/60*Calc_WHDHC!H88/1000),3) -> 79.962 | I87: 82 | K87: - | N87: =Calc_WHDHC!J88/3.6/(2*Input!$B$5*PI())*60 -> 136.5609219 | Q87: =ROUND(IF(Calc_WHDHC!H88<0,Calc_WHDHC!I88,2*PI()*Calc_WHDHC!G88/60*Calc_WHDHC!H88/1000*IF(Input!$B$4="Other",0.95*0.95,0.98*0.95)),3) -> 74.445
A88: 83 | C88: =Calc_WHDHC!G89 -> 992 | F88: =ROUND(IF(Calc_WHDHC!H89<0,Calc_WHDHC!I89*IF(Input!$B$4="Other",0.95*0.95,0.98*0.95),2*PI()*Calc_WHDHC!G89/60*Calc_WHDHC!H89/1000),3) -> 81.236 | I88: 83 | K88: - | N88: =Calc_WHDHC!J89/3.6/(2*Input!$B$5*PI())*60 -> 137.6130945 | Q88: =ROUND(IF(Calc_WHDHC!H89<0,Calc_WHDHC!I89,2*PI()*Calc_WHDHC!G89/60*Calc_WHDHC!H89/1000*IF(Input!$B$4="Other",0.95*0.95,0.98*0.95)),3) -> 75.63
A89: 84 | C89: =Calc_WHDHC!G90 -> 988 | F89: =ROUND(IF(Calc_WHDHC!H90<0,Calc_WHDHC!I90*IF(Input!$B$4="Other",0.95*0.95,0.98*0.95),2*PI()*Calc_WHDHC!G90/60*Calc_WHDHC!H90/1000),3) -> 35.488 | I89: 84 | K89: - | N89: =Calc_WHDHC!J90/3.6/(2*Input!$B$5*PI())*60 -> 137.0593195 | Q89: =ROUND(IF(Calc_WHDHC!H90<0,Calc_WHDHC!I90,2*PI()*Calc_WHDHC!G90/60*Calc_WHDHC!H90/1000*IF(Input!$B$4="Other",0.95*0.95,0.98*0.95)),3) -> 33.039
A90: 85 | C90: =Calc_WHDHC!G91 -> 977 | F90: =ROUND(IF(Calc_WHDHC!H91<0,Calc_WHDHC!I91*IF(Input!$B$4="Other",0.95*0.95,0.98*0.95),2*PI()*Calc_WHDHC!G91/60*Calc_WHDHC!H91/1000),3) -> 23.02 | I90: 85 | K90: - | N90: =Calc_WHDHC!J91/3.6/(2*Input!$B$5*PI())*60 -> 135.6195044 | Q90: =ROUND(IF(Calc_WHDHC!H91<0,Calc_WHDHC!I91,2*PI()*Calc_WHDHC!G91/60*Calc_WHDHC!H91/1000*IF(Input!$B$4="Other",0.95*0.95,0.98*0.95)),3) -> 21.432
A91: 86 | C91: =Calc_WHDHC!G92 -> 971 | F91: =ROUND(IF(Calc_WHDHC!H92<0,Calc_WHDHC!I92*IF(Input!$B$4="Other",0.95*0.95,0.98*0.95),2*PI()*Calc_WHDHC!G92/60*Calc_WHDHC!H92/1000),3) -> 20.337 | I91: 86 | K91: - | N91: =Calc_WHDHC!J92/3.6/(2*Input!$B$5*PI())*60 -> 134.7057756 | Q91: =ROUND(IF(Calc_WHDHC!H92<0,Calc_WHDHC!I92,2*PI()*Calc_WHDHC!G92/60*Calc_WHDHC!H92/1000*IF(Input!$B$4="Other",0.95*0.95,0.98*0.95)),3) -> 18.933
A92: 87 | C92: =Calc_WHDHC!G93 -> 971 | F92: =ROUND(IF(Calc_WHDHC!H93<0,Calc_WHDHC!I93*IF(Input!$B$4="Other",0.95*0.95,0.98*0.95),2*PI()*Calc_WHDHC!G93/60*Calc_WHDHC!H93/1000),3) -> 38.945 | I92: 87 | K92: - | N92: =Calc_WHDHC!J93/3.6/(2*Input!$B$5*PI())*60 -> 134.7057756 | Q92: =ROUND(IF(Calc_WHDHC!H93<0,Calc_WHDHC!I93,2*PI()*Calc_WHDHC!G93/60*Calc_WHDHC!H93/1000*IF(Input!$B$4="Other",0.95*0.95,0.98*0.95)),3) -> 36.257
A93: 88 | C93: =Calc_WHDHC!G94 -> 975 | F93: =ROUND(IF(Calc_WHDHC!H94<0,Calc_WHDHC!I94*IF(Input!$B$4="Other",0.95*0.95,0.98*0.95),2*PI()*Calc_WHDHC!G94/60*Calc_WHDHC!H94/1000),3) -> 45.231 | I93: 88 | K93: - | N93: =Calc_WHDHC!J94/3.6/(2*Input!$B$5*PI())*60 -> 135.3149281 | Q93: =ROUND(IF(Calc_WHDHC!H94<0,Calc_WHDHC!I94,2*PI()*Calc_WHDHC!G94/60*Calc_WHDHC!H94/1000*IF(Input!$B$4="Other",0.95*0.95,0.98*0.95)),3) -> 42.11
A94: 89 | C94: =Calc_WHDHC!G95 -> 977 | F94: =ROUND(IF(Calc_WHDHC!H95<0,Calc_WHDHC!I95*IF(Input!$B$4="Other",0.95*0.95,0.98*0.95),2*PI()*Calc_WHDHC!G95/60*Calc_WHDHC!H95/1000),3) -> 46.142 | I94: 89 | K94: - | N94: =Calc_WHDHC!J95/3.6/(2*Input!$B$5*PI())*60 -> 135.5918156 | Q94: =ROUND(IF(Calc_WHDHC!H95<0,Calc_WHDHC!I95,2*PI()*Calc_WHDHC!G95/60*Calc_WHDHC!H95/1000*IF(Input!$B$4="Other",0.95*0.95,0.98*0.95)),3) -> 42.959
A95: 90 | C95: =Calc_WHDHC!G96 -> 977 | F95: =ROUND(IF(Calc_WHDHC!H96<0,Calc_WHDHC!I96*IF(Input!$B$4="Other",0.95*0.95,0.98*0.95),2*PI()*Calc_WHDHC!G96/60*Calc_WHDHC!H96/1000),3) -> 49.007 | I95: 90 | K95: - | N95: =Calc_WHDHC!J96/3.6/(2*Input!$B$5*PI())*60 -> 135.5641269 | Q95: =ROUND(IF(Calc_WHDHC!H96<0,Calc_WHDHC!I96,2*PI()*Calc_WHDHC!G96/60*Calc_WHDHC!H96/1000*IF(Input!$B$4="Other",0.95*0.95,0.98*0.95)),3) -> 45.626
A96: 91 | C96: =Calc_WHDHC!G97 -> 981 | F96: =ROUND(IF(Calc_WHDHC!H97<0,Calc_WHDHC!I97*IF(Input!$B$4="Other",0.95*0.95,0.98*0.95),2*PI()*Calc_WHDHC!G97/60*Calc_WHDHC!H97/1000),3) -> 54.55 | I96: 91 | K96: - | N96: =Calc_WHDHC!J97/3.6/(2*Input!$B$5*PI())*60 -> 136.0902132 | Q96: =ROUND(IF(Calc_WHDHC!H97<0,Calc_WHDHC!I97,2*PI()*Calc_WHDHC!G97/60*Calc_WHDHC!H97/1000*IF(Input!$B$4="Other",0.95*0.95,0.98*0.95)),3) -> 50.786
A97: 92 | C97: =Calc_WHDHC!G98 -> 988 | F97: =ROUND(IF(Calc_WHDHC!H98<0,Calc_WHDHC!I98*IF(Input!$B$4="Other",0.95*0.95,0.98*0.95),2*PI()*Calc_WHDHC!G98/60*Calc_WHDHC!H98/1000),3) -> 62.802 | I97: 92 | K97: - | N97: =Calc_WHDHC!J98/3.6/(2*Input!$B$5*PI())*60 -> 137.0870082 | Q97: =ROUND(IF(Calc_WHDHC!H98<0,Calc_WHDHC!I98,2*PI()*Calc_WHDHC!G98/60*Calc_WHDHC!H98/1000*IF(Input!$B$4="Other",0.95*0.95,0.98*0.95)),3) -> 58.469
A98: 93 | C98: =Calc_WHDHC!G99 -> 993 | F98: =ROUND(IF(Calc_WHDHC!H99<0,Calc_WHDHC!I99*IF(Input!$B$4="Other",0.95*0.95,0.98*0.95),2*PI()*Calc_WHDHC!G99/60*Calc_WHDHC!H99/1000),3) -> 67.695 | I98: 93 | K98: - | N98: =Calc_WHDHC!J99/3.6/(2*Input!$B$5*PI())*60 -> 137.7238495 | Q98: =ROUND(IF(Calc_WHDHC!H99<0,Calc_WHDHC!I99,2*PI()*Calc_WHDHC!G99/60*Calc_WHDHC!H99/1000*IF(Input!$B$4="Other",0.95*0.95,0.98*0.95)),3) -> 63.024
A99: 94 | C99: =Calc_WHDHC!G100 -> 1005 | F99: =ROUND(IF(Calc_WHDHC!H100<0,Calc_WHDHC!I100*IF(Input!$B$4="Other",0.95*0.95,0.98*0.95),2*PI()*Calc_WHDHC!G100/60*Calc_WHDHC!H100/1000),3) -> 68.619 | I99: 94 | K99: - | N99: =Calc_WHDHC!J100/3.6/(2*Input!$B$5*PI())*60 -> 139.3021083 | Q99: =ROUND(IF(Calc_WHDHC!H100<0,Calc_WHDHC!I100,2*PI()*Calc_WHDHC!G100/60*Calc_WHDHC!H100/1000*IF(Input!$B$4="Other",0.95*0.95,0.98*0.95)),3) -> 63.884
A100: 95 | C100: =Calc_WHDHC!G101 -> 1014 | F100: =ROUND(IF(Calc_WHDHC!H101<0,Calc_WHDHC!I101*IF(Input!$B$4="Other",0.95*0.95,0.98*0.95),2*PI()*Calc_WHDHC!G101/60*Calc_WHDHC!H101/1000),3) -> 63.181 | I100: 95 | K100: - | N100: =Calc_WHDHC!J101/3.6/(2*Input!$B$5*PI())*60 -> 140.6034796 | Q100: =ROUND(IF(Calc_WHDHC!H101<0,Calc_WHDHC!I101,2*PI()*Calc_WHDHC!G101/60*Calc_WHDHC!H101/1000*IF(Input!$B$4="Other",0.95*0.95,0.98*0.95)),3) -> 58.821
A101: 96 | C101: =Calc_WHDHC!G102 -> 1013 | F101: =ROUND(IF(Calc_WHDHC!H102<0,Calc_WHDHC!I102*IF(Input!$B$4="Other",0.95*0.95,0.98*0.95),2*PI()*Calc_WHDHC!G102/60*Calc_WHDHC!H102/1000),3) -> 56.647 | I101: 96 | K101: - | N101: =Calc_WHDHC!J102/3.6/(2*Input!$B$5*PI())*60 -> 140.5204134 | Q101: =ROUND(IF(Calc_WHDHC!H102<0,Calc_WHDHC!I102,2*PI()*Calc_WHDHC!G102/60*Calc_WHDHC!H102/1000*IF(Input!$B$4="Other",0.95*0.95,0.98*0.95)),3) -> 52.739
A102: 97 | C102: =Calc_WHDHC!G103 -> 1014 | F102: =ROUND(IF(Calc_WHDHC!H103<0,Calc_WHDHC!I103*IF(Input!$B$4="Other",0.95*0.95,0.98*0.95),2*PI()*Calc_WHDHC!G103/60*Calc_WHDHC!H103/1000),3) -> 52.881 | I102: 97 | K102: - | N102: =Calc_WHDHC!J103/3.6/(2*Input!$B$5*PI())*60 -> 140.6034796 | Q102: =ROUND(IF(Calc_WHDHC!H103<0,Calc_WHDHC!I103,2*PI()*Calc_WHDHC!G103/60*Calc_WHDHC!H103/1000*IF(Input!$B$4="Other",0.95*0.95,0.98*0.95)),3) -> 49.232
A103: 98 | C103: =Calc_WHDHC!G104 -> 1022 | F103: =ROUND(IF(Calc_WHDHC!H104<0,Calc_WHDHC!I104*IF(Input!$B$4="Other",0.95*0.95,0.98*0.95),2*PI()*Calc_WHDHC!G104/60*Calc_WHDHC!H104/1000),3) -> 54.047 | I103: 98 | K103: - | N103: =Calc_WHDHC!J104/3.6/(2*Input!$B$5*PI())*60 -> 141.794096 | Q103: =ROUND(IF(Calc_WHDHC!H104<0,Calc_WHDHC!I104,2*PI()*Calc_WHDHC!G104/60*Calc_WHDHC!H104/1000*IF(Input!$B$4="Other",0.95*0.95,0.98*0.95)),3) -> 50.318
A104: 99 | C104: =Calc_WHDHC!G105 -> 1030 | F104: =ROUND(IF(Calc_WHDHC!H105<0,Calc_WHDHC!I105*IF(Input!$B$4="Other",0.95*0.95,0.98*0.95),2*PI()*Calc_WHDHC!G105/60*Calc_WHDHC!H105/1000),3) -> 55.441 | I104: 99 | K104: - | N104: =Calc_WHDHC!J105/3.6/(2*Input!$B$5*PI())*60 -> 142.8739573 | Q104: =ROUND(IF(Calc_WHDHC!H105<0,Calc_WHDHC!I105,2*PI()*Calc_WHDHC!G105/60*Calc_WHDHC!H105/1000*IF(Input!$B$4="Other",0.95*0.95,0.98*0.95)),3) -> 51.615
A105: 100 | C105: =Calc_WHDHC!G106 -> 1037 | F105: =ROUND(IF(Calc_WHDHC!H106<0,Calc_WHDHC!I106*IF(Input!$B$4="Other",0.95*0.95,0.98*0.95),2*PI()*Calc_WHDHC!G106/60*Calc_WHDHC!H106/1000),3) -> 55.057 | I105: 100 | K105: - | N105: =Calc_WHDHC!J106/3.6/(2*Input!$B$5*PI())*60 -> 143.6769311 | Q105: =ROUND(IF(Calc_WHDHC!H106<0,Calc_WHDHC!I106,2*PI()*Calc_WHDHC!G106/60*Calc_WHDHC!H106/1000*IF(Input!$B$4="Other",0.95*0.95,0.98*0.95)),3) -> 51.258
A106: 101 | C106: =Calc_WHDHC!G107 -> 1039 | F106: =ROUND(IF(Calc_WHDHC!H107<0,Calc_WHDHC!I107*IF(Input!$B$4="Other",0.95*0.95,0.98*0.95),2*PI()*Calc_WHDHC!G107/60*Calc_WHDHC!H107/1000),3) -> 53.314 | I106: 101 | K106: - | N106: =Calc_WHDHC!J107/3.6/(2*Input!$B$5*PI())*60 -> 144.0922623 | Q106: =ROUND(IF(Calc_WHDHC!H107<0,Calc_WHDHC!I107,2*PI()*Calc_WHDHC!G107/60*Calc_WHDHC!H107/1000*IF(Input!$B$4="Other",0.95*0.95,0.98*0.95)),3) -> 49.635
A107: 102 | C107: =Calc_WHDHC!G108 -> 1038 | F107: =ROUND(IF(Calc_WHDHC!H108<0,Calc_WHDHC!I108*IF(Input!$B$4="Other",0.95*0.95,0.98*0.95),2*PI()*Calc_WHDHC!G108/60*Calc_WHDHC!H108/1000),3) -> 52.393 | I107: 102 | K107: - | N107: =Calc_WHDHC!J108/3.6/(2*Input!$B$5*PI())*60 -> 143.9538186 | Q107: =ROUND(IF(Calc_WHDHC!H108<0,Calc_WHDHC!I108,2*PI()*Calc_WHDHC!G108/60*Calc_WHDHC!H108/1000*IF(Input!$B$4="Other",0.95*0.95,0.98*0.95)),3) -> 48.778
A108: 103 | C108: =Calc_WHDHC!G109 -> 1038 | F108: =ROUND(IF(Calc_WHDHC!H109<0,Calc_WHDHC!I109*IF(Input!$B$4="Other",0.95*0.95,0.98*0.95),2*PI()*Calc_WHDHC!G109/60*Calc_WHDHC!H109/1000),3) -> 52.176 | I108: 103 | K108: - | N108: =Calc_WHDHC!J109/3.6/(2*Input!$B$5*PI())*60 -> 143.9538186 | Q108: =ROUND(IF(Calc_WHDHC!H109<0,Calc_WHDHC!I109,2*PI()*Calc_WHDHC!G109/60*Calc_WHDHC!H109/1000*IF(Input!$B$4="Other",0.95*0.95,0.98*0.95)),3) -> 48.575
A109: 104 | C109: =Calc_WHDHC!G110 -> 1046 | F109: =ROUND(IF(Calc_WHDHC!H110<0,Calc_WHDHC!I110*IF(Input!$B$4="Other",0.95*0.95,0.98*0.95),2*PI()*Calc_WHDHC!G110/60*Calc_WHDHC!H110/1000),3) -> 50.935 | I109: 104 | K109: - | N109: =Calc_WHDHC!J110/3.6/(2*Input!$B$5*PI())*60 -> 144.9783024 | Q109: =ROUND(IF(Calc_WHDHC!H110<0,Calc_WHDHC!I110,2*PI()*Calc_WHDHC!G110/60*Calc_WHDHC!H110/1000*IF(Input!$B$4="Other",0.95*0.95,0.98*0.95)),3) -> 47.42
A110: 105 | C110: =Calc_WHDHC!G111 -> 1051 | F110: =ROUND(IF(Calc_WHDHC!H111<0,Calc_WHDHC!I111*IF(Input!$B$4="Other",0.95*0.95,0.98*0.95),2*PI()*Calc_WHDHC!G111/60*Calc_WHDHC!H111/1000),3) -> 47.106 | I110: 105 | K110: - | N110: =Calc_WHDHC!J111/3.6/(2*Input!$B$5*PI())*60 -> 145.5874549 | Q110: =ROUND(IF(Calc_WHDHC!H111<0,Calc_WHDHC!I111,2*PI()*Calc_WHDHC!G111/60*Calc_WHDHC!H111/1000*IF(Input!$B$4="Other",0.95*0.95,0.98*0.95)),3) -> 43.856
A111: 106 | C111: =Calc_WHDHC!G112 -> 1049 | F111: =ROUND(IF(Calc_WHDHC!H112<0,Calc_WHDHC!I112*IF(Input!$B$4="Other",0.95*0.95,0.98*0.95),2*PI()*Calc_WHDHC!G112/60*Calc_WHDHC!H112/1000),3) -> 43.171 | I111: 106 | K111: - | N111: =Calc_WHDHC!J112/3.6/(2*Input!$B$5*PI())*60 -> 145.2828786 | Q111: =ROUND(IF(Calc_WHDHC!H112<0,Calc_WHDHC!I112,2*PI()*Calc_WHDHC!G112/60*Calc_WHDHC!H112/1000*IF(Input!$B$4="Other",0.95*0.95,0.98*0.95)),3) -> 40.193
A112: 107 | C112: =Calc_WHDHC!G113 -> 1039 | F112: =ROUND(IF(Calc_WHDHC!H113<0,Calc_WHDHC!I113*IF(Input!$B$4="Other",0.95*0.95,0.98*0.95),2*PI()*Calc_WHDHC!G113/60*Calc_WHDHC!H113/1000),3) -> 40.91 | I112: 107 | K112: - | N112: =Calc_WHDHC!J113/3.6/(2*Input!$B$5*PI())*60 -> 144.0645736 | Q112: =ROUND(IF(Calc_WHDHC!H113<0,Calc_WHDHC!I113,2*PI()*Calc_WHDHC!G113/60*Calc_WHDHC!H113/1000*IF(Input!$B$4="Other",0.95*0.95,0.98*0.95)),3) -> 38.087
A113: 108 | C113: =Calc_WHDHC!G114 -> 1028 | F113: =ROUND(IF(Calc_WHDHC!H114<0,Calc_WHDHC!I114*IF(Input!$B$4="Other",0.95*0.95,0.98*0.95),2*PI()*Calc_WHDHC!G114/60*Calc_WHDHC!H114/1000),3) -> 38.539 | I113: 108 | K113: - | N113: =Calc_WHDHC!J114/3.6/(2*Input!$B$5*PI())*60 -> 142.4863147 | Q113: =ROUND(IF(Calc_WHDHC!H114<0,Calc_WHDHC!I114,2*PI()*Calc_WHDHC!G114/60*Calc_WHDHC!H114/1000*IF(Input!$B$4="Other",0.95*0.95,0.98*0.95)),3) -> 35.88
A114: 109 | C114: =Calc_WHDHC!G115 -> 1025 | F114: =ROUND(IF(Calc_WHDHC!H115<0,Calc_WHDHC!I115*IF(Input!$B$4="Other",0.95*0.95,0.98*0.95),2*PI()*Calc_WHDHC!G115/60*Calc_WHDHC!H115/1000),3) -> 32.523 | I114: 109 | K114: - | N114: =Calc_WHDHC!J115/3.6/(2*Input!$B$5*PI())*60 -> 142.0709835 | Q114: =ROUND(IF(Calc_WHDHC!H115<0,Calc_WHDHC!I115,2*PI()*Calc_WHDHC!G115/60*Calc_WHDHC!H115/1000*IF(Input!$B$4="Other",0.95*0.95,0.98*0.95)),3) -> 30.279
A115: 110 | C115: =Calc_WHDHC!G116 -> 1028 | F115: =ROUND(IF(Calc_WHDHC!H116<0,Calc_WHDHC!I116*IF(Input!$B$4="Other",0.95*0.95,0.98*0.95),2*PI()*Calc_WHDHC!G116/60*Calc_WHDHC!H116/1000),3) -> 21.746 | I115: 110 | K115: - | N115: =Calc_WHDHC!J116/3.6/(2*Input!$B$5*PI())*60 -> 142.458626 | Q115: =ROUND(IF(Calc_WHDHC!H116<0,Calc_WHDHC!I116,2*PI()*Calc_WHDHC!G116/60*Calc_WHDHC!H116/1000*IF(Input!$B$4="Other",0.95*0.95,0.98*0.95)),3) -> 20.245
A116: 111 | C116: =Calc_WHDHC!G117 -> 1029 | F116: =ROUND(IF(Calc_WHDHC!H117<0,Calc_WHDHC!I117*IF(Input!$B$4="Other",0.95*0.95,0.98*0.95),2*PI()*Calc_WHDHC!G117/60*Calc_WHDHC!H117/1000),3) -> 9.483 | I116: 111 | K116: - | N116: =Calc_WHDHC!J117/3.6/(2*Input!$B$5*PI())*60 -> 142.5416922 | Q116: =ROUND(IF(Calc_WHDHC!H117<0,Calc_WHDHC!I117,2*PI()*Calc_WHDHC!G117/60*Calc_WHDHC!H117/1000*IF(Input!$B$4="Other",0.95*0.95,0.98*0.95)),3) -> 8.828
A117: 112 | C117: =Calc_WHDHC!G118 -> 1025 | F117: =ROUND(IF(Calc_WHDHC!H118<0,Calc_WHDHC!I118*IF(Input!$B$4="Other",0.95*0.95,0.98*0.95),2*PI()*Calc_WHDHC!G118/60*Calc_WHDHC!H118/1000),3) -> 14.383 | I117: 112 | K117: - | N117: =Calc_WHDHC!J118/3.6/(2*Input!$B$5*PI())*60 -> 142.015606 | Q117: =ROUND(IF(Calc_WHDHC!H118<0,Calc_WHDHC!I118,2*PI()*Calc_WHDHC!G118/60*Calc_WHDHC!H118/1000*IF(Input!$B$4="Other",0.95*0.95,0.98*0.95)),3) -> 13.391
A118: 113 | C118: =Calc_WHDHC!G119 -> 1021 | F118: =ROUND(IF(Calc_WHDHC!H119<0,Calc_WHDHC!I119*IF(Input!$B$4="Other",0.95*0.95,0.98*0.95),2*PI()*Calc_WHDHC!G119/60*Calc_WHDHC!H119/1000),3) -> 21.705 | I118: 113 | K118: - | N118: =Calc_WHDHC!J119/3.6/(2*Input!$B$5*PI())*60 -> 141.5448972 | Q118: =ROUND(IF(Calc_WHDHC!H119<0,Calc_WHDHC!I119,2*PI()*Calc_WHDHC!G119/60*Calc_WHDHC!H119/1000*IF(Input!$B$4="Other",0.95*0.95,0.98*0.95)),3) -> 20.207
A119: 114 | C119: =Calc_WHDHC!G120 -> 1018 | F119: =ROUND(IF(Calc_WHDHC!H120<0,Calc_WHDHC!I120*IF(Input!$B$4="Other",0.95*0.95,0.98*0.95),2*PI()*Calc_WHDHC!G120/60*Calc_WHDHC!H120/1000),3) -> 54.155 | I119: 114 | K119: - | N119: =Calc_WHDHC!J120/3.6/(2*Input!$B$5*PI())*60 -> 141.1018772 | Q119: =ROUND(IF(Calc_WHDHC!H120<0,Calc_WHDHC!I120,2*PI()*Calc_WHDHC!G120/60*Calc_WHDHC!H120/1000*IF(Input!$B$4="Other",0.95*0.95,0.98*0.95)),3) -> 50.418
A120: 115 | C120: =Calc_WHDHC!G121 -> 1014 | F120: =ROUND(IF(Calc_WHDHC!H121<0,Calc_WHDHC!I121*IF(Input!$B$4="Other",0.95*0.95,0.98*0.95),2*PI()*Calc_WHDHC!G121/60*Calc_WHDHC!H121/1000),3) -> 62.756 | I120: 115 | K120: - | N120: =Calc_WHDHC!J121/3.6/(2*Input!$B$5*PI())*60 -> 140.6865459 | Q120: =ROUND(IF(Calc_WHDHC!H121<0,Calc_WHDHC!I121,2*PI()*Calc_WHDHC!G121/60*Calc_WHDHC!H121/1000*IF(Input!$B$4="Other",0.95*0.95,0.98*0.95)),3) -> 58.426
A121: 116 | C121: =Calc_WHDHC!G122 -> 1016 | F121: =ROUND(IF(Calc_WHDHC!H122<0,Calc_WHDHC!I122*IF(Input!$B$4="Other",0.95*0.95,0.98*0.95),2*PI()*Calc_WHDHC!G122/60*Calc_WHDHC!H122/1000),3) -> 44.473 | I121: 116 | K121: - | N121: =Calc_WHDHC!J122/3.6/(2*Input!$B$5*PI())*60 -> 140.8249897 | Q121: =ROUND(IF(Calc_WHDHC!H122<0,Calc_WHDHC!I122,2*PI()*Calc_WHDHC!G122/60*Calc_WHDHC!H122/1000*IF(Input!$B$4="Other",0.95*0.95,0.98*0.95)),3) -> 41.405
A122: 117 | C122: =Calc_WHDHC!G123 -> 1025 | F122: =ROUND(IF(Calc_WHDHC!H123<0,Calc_WHDHC!I123*IF(Input!$B$4="Other",0.95*0.95,0.98*0.95),2*PI()*Calc_WHDHC!G123/60*Calc_WHDHC!H123/1000),3) -> 36.173 | I122: 117 | K122: - | N122: =Calc_WHDHC!J123/3.6/(2*Input!$B$5*PI())*60 -> 142.1540497 | Q122: =ROUND(IF(Calc_WHDHC!H123<0,Calc_WHDHC!I123,2*PI()*Calc_WHDHC!G123/60*Calc_WHDHC!H123/1000*IF(Input!$B$4="Other",0.95*0.95,0.98*0.95)),3) -> 33.677
A123: 118 | C123: =Calc_WHDHC!G124 -> 1033 | F123: =ROUND(IF(Calc_WHDHC!H124<0,Calc_WHDHC!I124*IF(Input!$B$4="Other",0.95*0.95,0.98*0.95),2*PI()*Calc_WHDHC!G124/60*Calc_WHDHC!H124/1000),3) -> 35.806 | I123: 118 | K123: - | N123: =Calc_WHDHC!J124/3.6/(2*Input!$B$5*PI())*60 -> 143.0954673 | Q123: =ROUND(IF(Calc_WHDHC!H124<0,Calc_WHDHC!I124,2*PI()*Calc_WHDHC!G124/60*Calc_WHDHC!H124/1000*IF(Input!$B$4="Other",0.95*0.95,0.98*0.95)),3) -> 33.335
A124: 119 | C124: =Calc_WHDHC!G125 -> 1030 | F124: =ROUND(IF(Calc_WHDHC!H125<0,Calc_WHDHC!I125*IF(Input!$B$4="Other",0.95*0.95,0.98*0.95),2*PI()*Calc_WHDHC!G125/60*Calc_WHDHC!H125/1000),3) -> 44.655 | I124: 119 | K124: - | N124: =Calc_WHDHC!J125/3.6/(2*Input!$B$5*PI())*60 -> 142.8185798 | Q124: =ROUND(IF(Calc_WHDHC!H125<0,Calc_WHDHC!I125,2*PI()*Calc_WHDHC!G125/60*Calc_WHDHC!H125/1000*IF(Input!$B$4="Other",0.95*0.95,0.98*0.95)),3) -> 41.573
A125: 120 | C125: =Calc_WHDHC!G126 -> 1026 | F125: =ROUND(IF(Calc_WHDHC!H126<0,Calc_WHDHC!I126*IF(Input!$B$4="Other",0.95*0.95,0.98*0.95),2*PI()*Calc_WHDHC!G126/60*Calc_WHDHC!H126/1000),3) -> 49.209 | I125: 120 | K125: - | N125: =Calc_WHDHC!J126/3.6/(2*Input!$B$5*PI())*60 -> 142.2094272 | Q125: =ROUND(IF(Calc_WHDHC!H126<0,Calc_WHDHC!I126,2*PI()*Calc_WHDHC!G126/60*Calc_WHDHC!H126/1000*IF(Input!$B$4="Other",0.95*0.95,0.98*0.95)),3) -> 45.813
A126: 121 | C126: =Calc_WHDHC!G127 -> 1026 | F126: =ROUND(IF(Calc_WHDHC!H127<0,Calc_WHDHC!I127*IF(Input!$B$4="Other",0.95*0.95,0.98*0.95),2*PI()*Calc_WHDHC!G127/60*Calc_WHDHC!H127/1000),3) -> 51.143 | I126: 121 | K126: - | N126: =Calc_WHDHC!J127/3.6/(2*Input!$B$5*PI())*60 -> 142.2924935 | Q126: =ROUND(IF(Calc_WHDHC!H127<0,Calc_WHDHC!I127,2*PI()*Calc_WHDHC!G127/60*Calc_WHDHC!H127/1000*IF(Input!$B$4="Other",0.95*0.95,0.98*0.95)),3) -> 47.614
A127: 122 | C127: =Calc_WHDHC!G128 -> 1018 | F127: =ROUND(IF(Calc_WHDHC!H128<0,Calc_WHDHC!I128*IF(Input!$B$4="Other",0.95*0.95,0.98*0.95),2*PI()*Calc_WHDHC!G128/60*Calc_WHDHC!H128/1000),3) -> 25.692 | I127: 122 | K127: - | N127: =Calc_WHDHC!J128/3.6/(2*Input!$B$5*PI())*60 -> 141.1572547 | Q127: =ROUND(IF(Calc_WHDHC!H128<0,Calc_WHDHC!I128,2*PI()*Calc_WHDHC!G128/60*Calc_WHDHC!H128/1000*IF(Input!$B$4="Other",0.95*0.95,0.98*0.95)),3) -> 23.919
A128: 123 | C128: =Calc_WHDHC!G129 -> 1161 | F128: =ROUND(IF(Calc_WHDHC!H129<0,Calc_WHDHC!I129*IF(Input!$B$4="Other",0.95*0.95,0.98*0.95),2*PI()*Calc_WHDHC!G129/60*Calc_WHDHC!H129/1000),3) -> 0 | I128: 123 | K128: - | N128: =Calc_WHDHC!J129/3.6/(2*Input!$B$5*PI())*60 -> 134.6503981 | Q128: =ROUND(IF(Calc_WHDHC!H129<0,Calc_WHDHC!I129,2*PI()*Calc_WHDHC!G129/60*Calc_WHDHC!H129/1000*IF(Input!$B$4="Other",0.95*0.95,0.98*0.95)),3) -> 0
A129: 124 | C129: =Calc_WHDHC!G130 -> 1304 | F129: =ROUND(IF(Calc_WHDHC!H130<0,Calc_WHDHC!I130*IF(Input!$B$4="Other",0.95*0.95,0.98*0.95),2*PI()*Calc_WHDHC!G130/60*Calc_WHDHC!H130/1000),3) -> -82.92 | I129: 124 | K129: - | N129: =Calc_WHDHC!J130/3.6/(2*Input!$B$5*PI())*60 -> 124.1286726 | Q129: =ROUND(IF(Calc_WHDHC!H130<0,Calc_WHDHC!I130,2*PI()*Calc_WHDHC!G130/60*Calc_WHDHC!H130/1000*IF(Input!$B$4="Other",0.95*0.95,0.98*0.95)),3) -> -89.065
A130: 125 | C130: =Calc_WHDHC!G131 -> 1170 | F130: =ROUND(IF(Calc_WHDHC!H131<0,Calc_WHDHC!I131*IF(Input!$B$4="Other",0.95*0.95,0.98*0.95),2*PI()*Calc_WHDHC!G131/60*Calc_WHDHC!H131/1000),3) -> -76.189 | I130: 125 | K130: - | N130: =Calc_WHDHC!J131/3.6/(2*Input!$B$5*PI())*60 -> 111.5856682 | Q130: =ROUND(IF(Calc_WHDHC!H131<0,Calc_WHDHC!I131,2*PI()*Calc_WHDHC!G131/60*Calc_WHDHC!H131/1000*IF(Input!$B$4="Other",0.95*0.95,0.98*0.95)),3) -> -81.836
A131: 126 | C131: =Calc_WHDHC!G132 -> 1222 | F131: =ROUND(IF(Calc_WHDHC!H132<0,Calc_WHDHC!I132*IF(Input!$B$4="Other",0.95*0.95,0.98*0.95),2*PI()*Calc_WHDHC!G132/60*Calc_WHDHC!H132/1000),3) -> 0 | I131: 126 | K131: - | N131: =Calc_WHDHC!J132/3.6/(2*Input!$B$5*PI())*60 -> 98.71039877 | Q131: =ROUND(IF(Calc_WHDHC!H132<0,Calc_WHDHC!I132,2*PI()*Calc_WHDHC!G132/60*Calc_WHDHC!H132/1000*IF(Input!$B$4="Other",0.95*0.95,0.98*0.95)),3) -> 0
A132: 127 | C132: =Calc_WHDHC!G133 -> 1273 | F132: =ROUND(IF(Calc_WHDHC!H133<0,Calc_WHDHC!I133*IF(Input!$B$4="Other",0.95*0.95,0.98*0.95),2*PI()*Calc_WHDHC!G133/60*Calc_WHDHC!H133/1000),3) -> -73.567 | I132: 127 | K132: - | N132: =Calc_WHDHC!J133/3.6/(2*Input!$B$5*PI())*60 -> 83.70309551 | Q132: =ROUND(IF(Calc_WHDHC!H133<0,Calc_WHDHC!I133,2*PI()*Calc_WHDHC!G133/60*Calc_WHDHC!H133/1000*IF(Input!$B$4="Other",0.95*0.95,0.98*0.95)),3) -> -79.019
A133: 128 | C133: =Calc_WHDHC!G134 -> 1095 | F133: =ROUND(IF(Calc_WHDHC!H134<0,Calc_WHDHC!I134*IF(Input!$B$4="Other",0.95*0.95,0.98*0.95),2*PI()*Calc_WHDHC!G134/60*Calc_WHDHC!H134/1000),3) -> -47.14 | I133: 128 | K133: - | N133: =Calc_WHDHC!J134/3.6/(2*Input!$B$5*PI())*60 -> 66.67451339 | Q133: =ROUND(IF(Calc_WHDHC!H134<0,Calc_WHDHC!I134,2*PI()*Calc_WHDHC!G134/60*Calc_WHDHC!H134/1000*IF(Input!$B$4="Other",0.95*0.95,0.98*0.95)),3) -> -50.634
A134: 129 | C134: =Calc_WHDHC!G135 -> 917 | F134: =ROUND(IF(Calc_WHDHC!H135<0,Calc_WHDHC!I135*IF(Input!$B$4="Other",0.95*0.95,0.98*0.95),2*PI()*Calc_WHDHC!G135/60*Calc_WHDHC!H135/1000),3) -> -33.038 | I134: 129 | K134: - | N134: =Calc_WHDHC!J135/3.6/(2*Input!$B$5*PI())*60 -> 52.49787267 | Q134: =ROUND(IF(Calc_WHDHC!H135<0,Calc_WHDHC!I135,2*PI()*Calc_WHDHC!G135/60*Calc_WHDHC!H135/1000*IF(Input!$B$4="Other",0.95*0.95,0.98*0.95)),3) -> -35.487
A135: 130 | C135: =Calc_WHDHC!G136 -> 738 | F135: =ROUND(IF(Calc_WHDHC!H136<0,Calc_WHDHC!I136*IF(Input!$B$4="Other",0.95*0.95,0.98*0.95),2*PI()*Calc_WHDHC!G136/60*Calc_WHDHC!H136/1000),3) -> -25.832 | I135: 130 | K135: - | N135: =Calc_WHDHC!J136/3.6/(2*Input!$B$5*PI())*60 -> 39.29033825 | Q135: =ROUND(IF(Calc_WHDHC!H136<0,Calc_WHDHC!I136,2*PI()*Calc_WHDHC!G136/60*Calc_WHDHC!H136/1000*IF(Input!$B$4="Other",0.95*0.95,0.98*0.95)),3) -> -27.747
A136: 131 | C136: =Calc_WHDHC!G137 -> 560 | F136: =ROUND(IF(Calc_WHDHC!H137<0,Calc_WHDHC!I137*IF(Input!$B$4="Other",0.95*0.95,0.98*0.95),2*PI()*Calc_WHDHC!G137/60*Calc_WHDHC!H137/1000),3) -> 0 | I136: 131 | K136: - | N136: =Calc_WHDHC!J137/3.6/(2*Input!$B$5*PI())*60 -> 24.14459123 | Q136: =ROUND(IF(Calc_WHDHC!H137<0,Calc_WHDHC!I137,2*PI()*Calc_WHDHC!G137/60*Calc_WHDHC!H137/1000*IF(Input!$B$4="Other",0.95*0.95,0.98*0.95)),3) -> 0
A137: 132 | C137: =Calc_WHDHC!G138 -> 560 | F137: =ROUND(IF(Calc_WHDHC!H138<0,Calc_WHDHC!I138*IF(Input!$B$4="Other",0.95*0.95,0.98*0.95),2*PI()*Calc_WHDHC!G138/60*Calc_WHDHC!H138/1000),3) -> 0 | I137: 132 | K137: - | N137: =Calc_WHDHC!J138/3.6/(2*Input!$B$5*PI())*60 -> 9.44186423 | Q137: =ROUND(IF(Calc_WHDHC!H138<0,Calc_WHDHC!I138,2*PI()*Calc_WHDHC!G138/60*Calc_WHDHC!H138/1000*IF(Input!$B$4="Other",0.95*0.95,0.98*0.95)),3) -> 0
A138: 133 | C138: =Calc_WHDHC!G139 -> 560 | F138: =ROUND(IF(Calc_WHDHC!H139<0,Calc_WHDHC!I139*IF(Input!$B$4="Other",0.95*0.95,0.98*0.95),2*PI()*Calc_WHDHC!G139/60*Calc_WHDHC!H139/1000),3) -> 0 | I138: 133 | K138: - | N138: =Calc_WHDHC!J139/3.6/(2*Input!$B$5*PI())*60 -> 1.77208009 | Q138: =ROUND(IF(Calc_WHDHC!H139<0,Calc_WHDHC!I139,2*PI()*Calc_WHDHC!G139/60*Calc_WHDHC!H139/1000*IF(Input!$B$4="Other",0.95*0.95,0.98*0.95)),3) -> 0
A139: 134 | C139: =Calc_WHDHC!G140 -> 560 | F139: =ROUND(IF(Calc_WHDHC!H140<0,Calc_WHDHC!I140*IF(Input!$B$4="Other",0.95*0.95,0.98*0.95),2*PI()*Calc_WHDHC!G140/60*Calc_WHDHC!H140/1000),3) -> 0 | I139: 134 | K139: - | N139: =Calc_WHDHC!J140/3.6/(2*Input!$B$5*PI())*60 -> 0 | Q139: =ROUND(IF(Calc_WHDHC!H140<0,Calc_WHDHC!I140,2*PI()*Calc_WHDHC!G140/60*Calc_WHDHC!H140/1000*IF(Input!$B$4="Other",0.95*0.95,0.98*0.95)),3) -> 0
A140: 135 | C140: =Calc_WHDHC!G141 -> 560 | F140: =ROUND(IF(Calc_WHDHC!H141<0,Calc_WHDHC!I141*IF(Input!$B$4="Other",0.95*0.95,0.98*0.95),2*PI()*Calc_WHDHC!G141/60*Calc_WHDHC!H141/1000),3) -> 0 | I140: 135 | K140: - | N140: =Calc_WHDHC!J141/3.6/(2*Input!$B$5*PI())*60 -> 0 | Q140: =ROUND(IF(Calc_WHDHC!H141<0,Calc_WHDHC!I141,2*PI()*Calc_WHDHC!G141/60*Calc_WHDHC!H141/1000*IF(Input!$B$4="Other",0.95*0.95,0.98*0.95)),3) -> 0
A141: 136 | C141: =Calc_WHDHC!G142 -> 560 | F141: =ROUND(IF(Calc_WHDHC!H142<0,Calc_WHDHC!I142*IF(Input!$B$4="Other",0.95*0.95,0.98*0.95),2*PI()*Calc_WHDHC!G142/60*Calc_WHDHC!H142/1000),3) -> 0 | I141: 136 | K141: - | N141: =Calc_WHDHC!J142/3.6/(2*Input!$B$5*PI())*60 -> 0 | Q141: =ROUND(IF(Calc_WHDHC!H142<0,Calc_WHDHC!I142,2*PI()*Calc_WHDHC!G142/60*Calc_WHDHC!H142/1000*IF(Input!$B$4="Other",0.95*0.95,0.98*0.95)),3) -> 0
A142: 137 | C142: =Calc_WHDHC!G143 -> 560 | F142: =ROUND(IF(Calc_WHDHC!H143<0,Calc_WHDHC!I143*IF(Input!$B$4="Other",0.95*0.95,0.98*0.95),2*PI()*Calc_WHDHC!G143/60*Calc_WHDHC!H143/1000),3) -> 0 | I142: 137 | K142: - | N142: =Calc_WHDHC!J143/3.6/(2*Input!$B$5*PI())*60 -> 0 | Q142: =ROUND(IF(Calc_WHDHC!H143<0,Calc_WHDHC!I143,2*PI()*Calc_WHDHC!G143/60*Calc_WHDHC!H143/1000*IF(Input!$B$4="Other",0.95*0.95,0.98*0.95)),3) -> 0
A143: 138 | C143: =Calc_WHDHC!G144 -> 560 | F143: =ROUND(IF(Calc_WHDHC!H144<0,Calc_WHDHC!I144*IF(Input!$B$4="Other",0.95*0.95,0.98*0.95),2*PI()*Calc_WHDHC!G144/60*Calc_WHDHC!H144/1000),3) -> 0 | I143: 138 | K143: - | N143: =Calc_WHDHC!J144/3.6/(2*Input!$B$5*PI())*60 -> 0 | Q143: =ROUND(IF(Calc_WHDHC!H144<0,Calc_WHDHC!I144,2*PI()*Calc_WHDHC!G144/60*Calc_WHDHC!H144/1000*IF(Input!$B$4="Other",0.95*0.95,0.98*0.95)),3) -> 0
A144: 139 | C144: =Calc_WHDHC!G145 -> 560 | F144: =ROUND(IF(Calc_WHDHC!H145<0,Calc_WHDHC!I145*IF(Input!$B$4="Other",0.95*0.95,0.98*0.95),2*PI()*Calc_WHDHC!G145/60*Calc_WHDHC!H145/1000),3) -> 0 | I144: 139 | K144: - | N144: =Calc_WHDHC!J145/3.6/(2*Input!$B$5*PI())*60 -> 0 | Q144: =ROUND(IF(Calc_WHDHC!H145<0,Calc_WHDHC!I145,2*PI()*Calc_WHDHC!G145/60*Calc_WHDHC!H145/1000*IF(Input!$B$4="Other",0.95*0.95,0.98*0.95)),3) -> 0
A145: 140 | C145: =Calc_WHDHC!G146 -> 560 | F145: =ROUND(IF(Calc_WHDHC!H146<0,Calc_WHDHC!I146*IF(Input!$B$4="Other",0.95*0.95,0.98*0.95),2*PI()*Calc_WHDHC!G146/60*Calc_WHDHC!H146/1000),3) -> 0 | I145: 140 | K145: - | N145: =Calc_WHDHC!J146/3.6/(2*Input!$B$5*PI())*60 -> 0 | Q145: =ROUND(IF(Calc_WHDHC!H146<0,Calc_WHDHC!I146,2*PI()*Calc_WHDHC!G146/60*Calc_WHDHC!H146/1000*IF(Input!$B$4="Other",0.95*0.95,0.98*0.95)),3) -> 0
A146: 141 | C146: =Calc_WHDHC!G147 -> 560 | F146: =ROUND(IF(Calc_WHDHC!H147<0,Calc_WHDHC!I147*IF(Input!$B$4="Other",0.95*0.95,0.98*0.95),2*PI()*Calc_WHDHC!G147/60*Calc_WHDHC!H147/1000),3) -> 0 | I146: 141 | K146: - | N146: =Calc_WHDHC!J147/3.6/(2*Input!$B$5*PI())*60 -> 0 | Q146: =ROUND(IF(Calc_WHDHC!H147<0,Calc_WHDHC!I147,2*PI()*Calc_WHDHC!G147/60*Calc_WHDHC!H147/1000*IF(Input!$B$4="Other",0.95*0.95,0.98*0.95)),3) -> 0
A147: 142 | C147: =Calc_WHDHC!G148 -> 560 | F147: =ROUND(IF(Calc_WHDHC!H148<0,Calc_WHDHC!I148*IF(Input!$B$4="Other",0.95*0.95,0.98*0.95),2*PI()*Calc_WHDHC!G148/60*Calc_WHDHC!H148/1000),3) -> 2.815 | I147: 142 | K147: - | N147: =Calc_WHDHC!J148/3.6/(2*Input!$B$5*PI())*60 -> 1.744391339 | Q147: =ROUND(IF(Calc_WHDHC!H148<0,Calc_WHDHC!I148,2*PI()*Calc_WHDHC!G148/60*Calc_WHDHC!H148/1000*IF(Input!$B$4="Other",0.95*0.95,0.98*0.95)),3) -> 2.621
A148: 143 | C148: =Calc_WHDHC!G149 -> 560 | F148: =ROUND(IF(Calc_WHDHC!H149<0,Calc_WHDHC!I149*IF(Input!$B$4="Other",0.95*0.95,0.98*0.95),2*PI()*Calc_WHDHC!G149/60*Calc_WHDHC!H149/1000),3) -> 4.222 | I148: 143 | K148: - | N148: =Calc_WHDHC!J149/3.6/(2*Input!$B$5*PI())*60 -> 4.31944522 | Q148: =ROUND(IF(Calc_WHDHC!H149<0,Calc_WHDHC!I149,2*PI()*Calc_WHDHC!G149/60*Calc_WHDHC!H149/1000*IF(Input!$B$4="Other",0.95*0.95,0.98*0.95)),3) -> 3.931
A149: 144 | C149: =Calc_WHDHC!G150 -> 618 | F149: =ROUND(IF(Calc_WHDHC!H150<0,Calc_WHDHC!I150*IF(Input!$B$4="Other",0.95*0.95,0.98*0.95),2*PI()*Calc_WHDHC!G150/60*Calc_WHDHC!H150/1000),3) -> 21.162 | I149: 144 | K149: - | N149: =Calc_WHDHC!J150/3.6/(2*Input!$B$5*PI())*60 -> 8.278936671 | Q149: =ROUND(IF(Calc_WHDHC!H150<0,Calc_WHDHC!I150,2*PI()*Calc_WHDHC!G150/60*Calc_WHDHC!H150/1000*IF(Input!$B$4="Other",0.95*0.95,0.98*0.95)),3) -> 19.702
A150: 145 | C150: =Calc_WHDHC!G151 -> 707 | F150: =ROUND(IF(Calc_WHDHC!H151<0,Calc_WHDHC!I151*IF(Input!$B$4="Other",0.95*0.95,0.98*0.95),2*PI()*Calc_WHDHC!G151/60*Calc_WHDHC!H151/1000),3) -> 26.579 | I150: 145 | K150: - | N150: =Calc_WHDHC!J151/3.6/(2*Input!$B$5*PI())*60 -> 12.45993813 | Q150: =ROUND(IF(Calc_WHDHC!H151<0,Calc_WHDHC!I151,2*PI()*Calc_WHDHC!G151/60*Calc_WHDHC!H151/1000*IF(Input!$B$4="Other",0.95*0.95,0.98*0.95)),3) -> 24.745
A151: 146 | C151: =Calc_WHDHC!G152 -> 758 | F151: =ROUND(IF(Calc_WHDHC!H152<0,Calc_WHDHC!I152*IF(Input!$B$4="Other",0.95*0.95,0.98*0.95),2*PI()*Calc_WHDHC!G152/60*Calc_WHDHC!H152/1000),3) -> 10.954 | I151: 146 | K151: - | N151: =Calc_WHDHC!J152/3.6/(2*Input!$B$5*PI())*60 -> 14.92423701 | Q151: =ROUND(IF(Calc_WHDHC!H152<0,Calc_WHDHC!I152,2*PI()*Calc_WHDHC!G152/60*Calc_WHDHC!H152/1000*IF(Input!$B$4="Other",0.95*0.95,0.98*0.95)),3) -> 10.198
A152: 147 | C152: =Calc_WHDHC!G153 -> 770 | F152: =ROUND(IF(Calc_WHDHC!H153<0,Calc_WHDHC!I153*IF(Input!$B$4="Other",0.95*0.95,0.98*0.95),2*PI()*Calc_WHDHC!G153/60*Calc_WHDHC!H153/1000),3) -> 0 | I152: 147 | K152: - | N152: =Calc_WHDHC!J153/3.6/(2*Input!$B$5*PI())*60 -> 15.47801204 | Q152: =ROUND(IF(Calc_WHDHC!H153<0,Calc_WHDHC!I153,2*PI()*Calc_WHDHC!G153/60*Calc_WHDHC!H153/1000*IF(Input!$B$4="Other",0.95*0.95,0.98*0.95)),3) -> 0
A153: 148 | C153: =Calc_WHDHC!G154 -> 762 | F153: =ROUND(IF(Calc_WHDHC!H154<0,Calc_WHDHC!I154*IF(Input!$B$4="Other",0.95*0.95,0.98*0.95),2*PI()*Calc_WHDHC!G154/60*Calc_WHDHC!H154/1000),3) -> 0 | I153: 148 | K153: - | N153: =Calc_WHDHC!J154/3.6/(2*Input!$B$5*PI())*60 -> 15.09036952 | Q153: =ROUND(IF(Calc_WHDHC!H154<0,Calc_WHDHC!I154,2*PI()*Calc_WHDHC!G154/60*Calc_WHDHC!H154/1000*IF(Input!$B$4="Other",0.95*0.95,0.98*0.95)),3) -> 0
A154: 149 | C154: =Calc_WHDHC!G155 -> 748 | F154: =ROUND(IF(Calc_WHDHC!H155<0,Calc_WHDHC!I155*IF(Input!$B$4="Other",0.95*0.95,0.98*0.95),2*PI()*Calc_WHDHC!G155/60*Calc_WHDHC!H155/1000),3) -> 0 | I154: 149 | K154: - | N154: =Calc_WHDHC!J155/3.6/(2*Input!$B$5*PI())*60 -> 14.39815073 | Q154: =ROUND(IF(Calc_WHDHC!H155<0,Calc_WHDHC!I155,2*PI()*Calc_WHDHC!G155/60*Calc_WHDHC!H155/1000*IF(Input!$B$4="Other",0.95*0.95,0.98*0.95)),3) -> 0
A155: 150 | C155: =Calc_WHDHC!G156 -> 734 | F155: =ROUND(IF(Calc_WHDHC!H156<0,Calc_WHDHC!I156*IF(Input!$B$4="Other",0.95*0.95,0.98*0.95),2*PI()*Calc_WHDHC!G156/60*Calc_WHDHC!H156/1000),3) -> 0 | I155: 150 | K155: - | N155: =Calc_WHDHC!J156/3.6/(2*Input!$B$5*PI())*60 -> 13.7889982 | Q155: =ROUND(IF(Calc_WHDHC!H156<0,Calc_WHDHC!I156,2*PI()*Calc_WHDHC!G156/60*Calc_WHDHC!H156/1000*IF(Input!$B$4="Other",0.95*0.95,0.98*0.95)),3) -> 0
A156: 151 | C156: =Calc_WHDHC!G157 -> 713 | F156: =ROUND(IF(Calc_WHDHC!H157<0,Calc_WHDHC!I157*IF(Input!$B$4="Other",0.95*0.95,0.98*0.95),2*PI()*Calc_WHDHC!G157/60*Calc_WHDHC!H157/1000),3) -> 0 | I156: 151 | K156: - | N156: =Calc_WHDHC!J157/3.6/(2*Input!$B$5*PI())*60 -> 12.7645144 | Q156: =ROUND(IF(Calc_WHDHC!H157<0,Calc_WHDHC!I157,2*PI()*Calc_WHDHC!G157/60*Calc_WHDHC!H157/1000*IF(Input!$B$4="Other",0.95*0.95,0.98*0.95)),3) -> 0
A157: 152 | C157: =Calc_WHDHC!G158 -> 671 | F157: =ROUND(IF(Calc_WHDHC!H158<0,Calc_WHDHC!I158*IF(Input!$B$4="Other",0.95*0.95,0.98*0.95),2*PI()*Calc_WHDHC!G158/60*Calc_WHDHC!H158/1000),3) -> 0 | I157: 152 | K157: - | N157: =Calc_WHDHC!J158/3.6/(2*Input!$B$5*PI())*60 -> 10.7709243 | Q157: =ROUND(IF(Calc_WHDHC!H158<0,Calc_WHDHC!I158,2*PI()*Calc_WHDHC!G158/60*Calc_WHDHC!H158/1000*IF(Input!$B$4="Other",0.95*0.95,0.98*0.95)),3) -> 0
A158: 153 | C158: =Calc_WHDHC!G159 -> 631 | F158: =ROUND(IF(Calc_WHDHC!H159<0,Calc_WHDHC!I159*IF(Input!$B$4="Other",0.95*0.95,0.98*0.95),2*PI()*Calc_WHDHC!G159/60*Calc_WHDHC!H159/1000),3) -> 0 | I158: 153 | K158: - | N158: =Calc_WHDHC!J159/3.6/(2*Input!$B$5*PI())*60 -> 8.888089202 | Q158: =ROUND(IF(Calc_WHDHC!H159<0,Calc_WHDHC!I159,2*PI()*Calc_WHDHC!G159/60*Calc_WHDHC!H159/1000*IF(Input!$B$4="Other",0.95*0.95,0.98*0.95)),3) -> 0
A159: 154 | C159: =Calc_WHDHC!G160 -> 617 | F159: =ROUND(IF(Calc_WHDHC!H160<0,Calc_WHDHC!I160*IF(Input!$B$4="Other",0.95*0.95,0.98*0.95),2*PI()*Calc_WHDHC!G160/60*Calc_WHDHC!H160/1000),3) -> 4.135 | I159: 154 | K159: - | N159: =Calc_WHDHC!J160/3.6/(2*Input!$B$5*PI())*60 -> 8.25124792 | Q159: =ROUND(IF(Calc_WHDHC!H160<0,Calc_WHDHC!I160,2*PI()*Calc_WHDHC!G160/60*Calc_WHDHC!H160/1000*IF(Input!$B$4="Other",0.95*0.95,0.98*0.95)),3) -> 3.85
A160: 155 | C160: =Calc_WHDHC!G161 -> 637 | F160: =ROUND(IF(Calc_WHDHC!H161<0,Calc_WHDHC!I161*IF(Input!$B$4="Other",0.95*0.95,0.98*0.95),2*PI()*Calc_WHDHC!G161/60*Calc_WHDHC!H161/1000),3) -> 19.345 | I160: 155 | K160: - | N160: =Calc_WHDHC!J161/3.6/(2*Input!$B$5*PI())*60 -> 9.164976716 | Q160: =ROUND(IF(Calc_WHDHC!H161<0,Calc_WHDHC!I161,2*PI()*Calc_WHDHC!G161/60*Calc_WHDHC!H161/1000*IF(Input!$B$4="Other",0.95*0.95,0.98*0.95)),3) -> 18.01
A161: 156 | C161: =Calc_WHDHC!G162 -> 688 | F161: =ROUND(IF(Calc_WHDHC!H162<0,Calc_WHDHC!I162*IF(Input!$B$4="Other",0.95*0.95,0.98*0.95),2*PI()*Calc_WHDHC!G162/60*Calc_WHDHC!H162/1000),3) -> 19.597 | I161: 156 | K161: - | N161: =Calc_WHDHC!J162/3.6/(2*Input!$B$5*PI())*60 -> 11.57389809 | Q161: =ROUND(IF(Calc_WHDHC!H162<0,Calc_WHDHC!I162,2*PI()*Calc_WHDHC!G162/60*Calc_WHDHC!H162/1000*IF(Input!$B$4="Other",0.95*0.95,0.98*0.95)),3) -> 18.245
A162: 157 | C162: =Calc_WHDHC!G163 -> 740 | F162: =ROUND(IF(Calc_WHDHC!H163<0,Calc_WHDHC!I163*IF(Input!$B$4="Other",0.95*0.95,0.98*0.95),2*PI()*Calc_WHDHC!G163/60*Calc_WHDHC!H163/1000),3) -> 23.403 | I162: 157 | K162: - | N162: =Calc_WHDHC!J163/3.6/(2*Input!$B$5*PI())*60 -> 14.03819696 | Q162: =ROUND(IF(Calc_WHDHC!H163<0,Calc_WHDHC!I163,2*PI()*Calc_WHDHC!G163/60*Calc_WHDHC!H163/1000*IF(Input!$B$4="Other",0.95*0.95,0.98*0.95)),3) -> 21.788
A163: 158 | C163: =Calc_WHDHC!G164 -> 766 | F163: =ROUND(IF(Calc_WHDHC!H164<0,Calc_WHDHC!I164*IF(Input!$B$4="Other",0.95*0.95,0.98*0.95),2*PI()*Calc_WHDHC!G164/60*Calc_WHDHC!H164/1000),3) -> 25.589 | I163: 158 | K163: - | N163: =Calc_WHDHC!J164/3.6/(2*Input!$B$5*PI())*60 -> 15.28419078 | Q163: =ROUND(IF(Calc_WHDHC!H164<0,Calc_WHDHC!I164,2*PI()*Calc_WHDHC!G164/60*Calc_WHDHC!H164/1000*IF(Input!$B$4="Other",0.95*0.95,0.98*0.95)),3) -> 23.823
A164: 159 | C164: =Calc_WHDHC!G165 -> 778 | F164: =ROUND(IF(Calc_WHDHC!H165<0,Calc_WHDHC!I165*IF(Input!$B$4="Other",0.95*0.95,0.98*0.95),2*PI()*Calc_WHDHC!G165/60*Calc_WHDHC!H165/1000),3) -> 26.886 | I164: 159 | K164: - | N164: =Calc_WHDHC!J165/3.6/(2*Input!$B$5*PI())*60 -> 15.86565456 | Q164: =ROUND(IF(Calc_WHDHC!H165<0,Calc_WHDHC!I165,2*PI()*Calc_WHDHC!G165/60*Calc_WHDHC!H165/1000*IF(Input!$B$4="Other",0.95*0.95,0.98*0.95)),3) -> 25.031
A165: 160 | C165: =Calc_WHDHC!G166 -> 798 | F165: =ROUND(IF(Calc_WHDHC!H166<0,Calc_WHDHC!I166*IF(Input!$B$4="Other",0.95*0.95,0.98*0.95),2*PI()*Calc_WHDHC!G166/60*Calc_WHDHC!H166/1000),3) -> 28.914 | I165: 160 | K165: - | N165: =Calc_WHDHC!J166/3.6/(2*Input!$B$5*PI())*60 -> 16.77938335 | Q165: =ROUND(IF(Calc_WHDHC!H166<0,Calc_WHDHC!I166,2*PI()*Calc_WHDHC!G166/60*Calc_WHDHC!H166/1000*IF(Input!$B$4="Other",0.95*0.95,0.98*0.95)),3) -> 26.919
A166: 161 | C166: =Calc_WHDHC!G167 -> 839 | F166: =ROUND(IF(Calc_WHDHC!H167<0,Calc_WHDHC!I167*IF(Input!$B$4="Other",0.95*0.95,0.98*0.95),2*PI()*Calc_WHDHC!G167/60*Calc_WHDHC!H167/1000),3) -> 67.389 | I166: 161 | K166: - | N166: =Calc_WHDHC!J167/3.6/(2*Input!$B$5*PI())*60 -> 18.71759595 | Q166: =ROUND(IF(Calc_WHDHC!H167<0,Calc_WHDHC!I167,2*PI()*Calc_WHDHC!G167/60*Calc_WHDHC!H167/1000*IF(Input!$B$4="Other",0.95*0.95,0.98*0.95)),3) -> 62.739
A167: 162 | C167: =Calc_WHDHC!G168 -> 893 | F167: =ROUND(IF(Calc_WHDHC!H168<0,Calc_WHDHC!I168*IF(Input!$B$4="Other",0.95*0.95,0.98*0.95),2*PI()*Calc_WHDHC!G168/60*Calc_WHDHC!H168/1000),3) -> 54.987 | I167: 162 | K167: - | N167: =Calc_WHDHC!J168/3.6/(2*Input!$B$5*PI())*60 -> 21.32033858 | Q167: =ROUND(IF(Calc_WHDHC!H168<0,Calc_WHDHC!I168,2*PI()*Calc_WHDHC!G168/60*Calc_WHDHC!H168/1000*IF(Input!$B$4="Other",0.95*0.95,0.98*0.95)),3) -> 51.193
A168: 163 | C168: =Calc_WHDHC!G169 -> 931 | F168: =ROUND(IF(Calc_WHDHC!H169<0,Calc_WHDHC!I169*IF(Input!$B$4="Other",0.95*0.95,0.98*0.95),2*PI()*Calc_WHDHC!G169/60*Calc_WHDHC!H169/1000),3) -> 30.126 | I168: 163 | K168: - | N168: =Calc_WHDHC!J169/3.6/(2*Input!$B$5*PI())*60 -> 23.09241867 | Q168: =ROUND(IF(Calc_WHDHC!H169<0,Calc_WHDHC!I169,2*PI()*Calc_WHDHC!G169/60*Calc_WHDHC!H169/1000*IF(Input!$B$4="Other",0.95*0.95,0.98*0.95)),3) -> 28.047
A169: 164 | C169: =Calc_WHDHC!G170 -> 940 | F169: =ROUND(IF(Calc_WHDHC!H170<0,Calc_WHDHC!I170*IF(Input!$B$4="Other",0.95*0.95,0.98*0.95),2*PI()*Calc_WHDHC!G170/60*Calc_WHDHC!H170/1000),3) -> 12.994 | I169: 164 | K169: - | N169: =Calc_WHDHC!J170/3.6/(2*Input!$B$5*PI())*60 -> 23.56312745 | Q169: =ROUND(IF(Calc_WHDHC!H170<0,Calc_WHDHC!I170,2*PI()*Calc_WHDHC!G170/60*Calc_WHDHC!H170/1000*IF(Input!$B$4="Other",0.95*0.95,0.98*0.95)),3) -> 12.097
A170: 165 | C170: =Calc_WHDHC!G171 -> 923 | F170: =ROUND(IF(Calc_WHDHC!H171<0,Calc_WHDHC!I171*IF(Input!$B$4="Other",0.95*0.95,0.98*0.95),2*PI()*Calc_WHDHC!G171/60*Calc_WHDHC!H171/1000),3) -> 8.892 | I170: 165 | K170: - | N170: =Calc_WHDHC!J171/3.6/(2*Input!$B$5*PI())*60 -> 22.76015366 | Q170: =ROUND(IF(Calc_WHDHC!H171<0,Calc_WHDHC!I171,2*PI()*Calc_WHDHC!G171/60*Calc_WHDHC!H171/1000*IF(Input!$B$4="Other",0.95*0.95,0.98*0.95)),3) -> 8.279
A171: 166 | C171: =Calc_WHDHC!G172 -> 865 | F171: =ROUND(IF(Calc_WHDHC!H172<0,Calc_WHDHC!I172*IF(Input!$B$4="Other",0.95*0.95,0.98*0.95),2*PI()*Calc_WHDHC!G172/60*Calc_WHDHC!H172/1000),3) -> 4.62 | I171: 166 | K171: - | N171: =Calc_WHDHC!J172/3.6/(2*Input!$B$5*PI())*60 -> 19.99127852 | Q171: =ROUND(IF(Calc_WHDHC!H172<0,Calc_WHDHC!I172,2*PI()*Calc_WHDHC!G172/60*Calc_WHDHC!H172/1000*IF(Input!$B$4="Other",0.95*0.95,0.98*0.95)),3) -> 4.301
A172: 167 | C172: =Calc_WHDHC!G173 -> 783 | F172: =ROUND(IF(Calc_WHDHC!H173<0,Calc_WHDHC!I173*IF(Input!$B$4="Other",0.95*0.95,0.98*0.95),2*PI()*Calc_WHDHC!G173/60*Calc_WHDHC!H173/1000),3) -> 2.378 | I172: 167 | K172: - | N172: =Calc_WHDHC!J173/3.6/(2*Input!$B$5*PI())*60 -> 16.11485332 | Q172: =ROUND(IF(Calc_WHDHC!H173<0,Calc_WHDHC!I173,2*PI()*Calc_WHDHC!G173/60*Calc_WHDHC!H173/1000*IF(Input!$B$4="Other",0.95*0.95,0.98*0.95)),3) -> 2.214
A173: 168 | C173: =Calc_WHDHC!G174 -> 721 | F173: =ROUND(IF(Calc_WHDHC!H174<0,Calc_WHDHC!I174*IF(Input!$B$4="Other",0.95*0.95,0.98*0.95),2*PI()*Calc_WHDHC!G174/60*Calc_WHDHC!H174/1000),3) -> 2.718 | I173: 168 | K173: - | N173: =Calc_WHDHC!J174/3.6/(2*Input!$B$5*PI())*60 -> 13.15215692 | Q173: =ROUND(IF(Calc_WHDHC!H174<0,Calc_WHDHC!I174,2*PI()*Calc_WHDHC!G174/60*Calc_WHDHC!H174/1000*IF(Input!$B$4="Other",0.95*0.95,0.98*0.95)),3) -> 2.531
A174: 169 | C174: =Calc_WHDHC!G175 -> 691 | F174: =ROUND(IF(Calc_WHDHC!H175<0,Calc_WHDHC!I175*IF(Input!$B$4="Other",0.95*0.95,0.98*0.95),2*PI()*Calc_WHDHC!G175/60*Calc_WHDHC!H175/1000),3) -> 3.039 | I174: 169 | K174: - | N174: =Calc_WHDHC!J175/3.6/(2*Input!$B$5*PI())*60 -> 11.7400306 | Q174: =ROUND(IF(Calc_WHDHC!H175<0,Calc_WHDHC!I175,2*PI()*Calc_WHDHC!G175/60*Calc_WHDHC!H175/1000*IF(Input!$B$4="Other",0.95*0.95,0.98*0.95)),3) -> 2.829
A175: 170 | C175: =Calc_WHDHC!G176 -> 680 | F175: =ROUND(IF(Calc_WHDHC!H176<0,Calc_WHDHC!I176*IF(Input!$B$4="Other",0.95*0.95,0.98*0.95),2*PI()*Calc_WHDHC!G176/60*Calc_WHDHC!H176/1000),3) -> 3.703 | I175: 170 | K175: - | N175: =Calc_WHDHC!J176/3.6/(2*Input!$B$5*PI())*60 -> 11.21394432 | Q175: =ROUND(IF(Calc_WHDHC!H176<0,Calc_WHDHC!I176,2*PI()*Calc_WHDHC!G176/60*Calc_WHDHC!H176/1000*IF(Input!$B$4="Other",0.95*0.95,0.98*0.95)),3) -> 3.447
A176: 171 | C176: =Calc_WHDHC!G177 -> 676 | F176: =ROUND(IF(Calc_WHDHC!H177<0,Calc_WHDHC!I177*IF(Input!$B$4="Other",0.95*0.95,0.98*0.95),2*PI()*Calc_WHDHC!G177/60*Calc_WHDHC!H177/1000),3) -> 3.469 | I176: 171 | K176: - | N176: =Calc_WHDHC!J177/3.6/(2*Input!$B$5*PI())*60 -> 11.02012306 | Q176: =ROUND(IF(Calc_WHDHC!H177<0,Calc_WHDHC!I177,2*PI()*Calc_WHDHC!G177/60*Calc_WHDHC!H177/1000*IF(Input!$B$4="Other",0.95*0.95,0.98*0.95)),3) -> 3.229
A177: 172 | C177: =Calc_WHDHC!G178 -> 672 | F177: =ROUND(IF(Calc_WHDHC!H178<0,Calc_WHDHC!I178*IF(Input!$B$4="Other",0.95*0.95,0.98*0.95),2*PI()*Calc_WHDHC!G178/60*Calc_WHDHC!H178/1000),3) -> 10.978 | I177: 172 | K177: - | N177: =Calc_WHDHC!J178/3.6/(2*Input!$B$5*PI())*60 -> 10.8263018 | Q177: =ROUND(IF(Calc_WHDHC!H178<0,Calc_WHDHC!I178,2*PI()*Calc_WHDHC!G178/60*Calc_WHDHC!H178/1000*IF(Input!$B$4="Other",0.95*0.95,0.98*0.95)),3) -> 10.221
A178: 173 | C178: =Calc_WHDHC!G179 -> 668 | F178: =ROUND(IF(Calc_WHDHC!H179<0,Calc_WHDHC!I179*IF(Input!$B$4="Other",0.95*0.95,0.98*0.95),2*PI()*Calc_WHDHC!G179/60*Calc_WHDHC!H179/1000),3) -> 26.022 | I178: 173 | K178: - | N178: =Calc_WHDHC!J179/3.6/(2*Input!$B$5*PI())*60 -> 10.68785804 | Q178: =ROUND(IF(Calc_WHDHC!H179<0,Calc_WHDHC!I179,2*PI()*Calc_WHDHC!G179/60*Calc_WHDHC!H179/1000*IF(Input!$B$4="Other",0.95*0.95,0.98*0.95)),3) -> 24.227
A179: 174 | C179: =Calc_WHDHC!G180 -> 687 | F179: =ROUND(IF(Calc_WHDHC!H180<0,Calc_WHDHC!I180*IF(Input!$B$4="Other",0.95*0.95,0.98*0.95),2*PI()*Calc_WHDHC!G180/60*Calc_WHDHC!H180/1000),3) -> 18.993 | I179: 174 | K179: - | N179: =Calc_WHDHC!J180/3.6/(2*Input!$B$5*PI())*60 -> 11.54620934 | Q179: =ROUND(IF(Calc_WHDHC!H180<0,Calc_WHDHC!I180,2*PI()*Calc_WHDHC!G180/60*Calc_WHDHC!H180/1000*IF(Input!$B$4="Other",0.95*0.95,0.98*0.95)),3) -> 17.682
A180: 175 | C180: =Calc_WHDHC!G181 -> 754 | F180: =ROUND(IF(Calc_WHDHC!H181<0,Calc_WHDHC!I181*IF(Input!$B$4="Other",0.95*0.95,0.98*0.95),2*PI()*Calc_WHDHC!G181/60*Calc_WHDHC!H181/1000),3) -> 18.792 | I180: 175 | K180: - | N180: =Calc_WHDHC!J181/3.6/(2*Input!$B$5*PI())*60 -> 14.73041575 | Q180: =ROUND(IF(Calc_WHDHC!H181<0,Calc_WHDHC!I181,2*PI()*Calc_WHDHC!G181/60*Calc_WHDHC!H181/1000*IF(Input!$B$4="Other",0.95*0.95,0.98*0.95)),3) -> 17.496
A181: 176 | C181: =Calc_WHDHC!G182 -> 884 | F181: =ROUND(IF(Calc_WHDHC!H182<0,Calc_WHDHC!I182*IF(Input!$B$4="Other",0.95*0.95,0.98*0.95),2*PI()*Calc_WHDHC!G182/60*Calc_WHDHC!H182/1000),3) -> 13.886 | I181: 176 | K181: - | N181: =Calc_WHDHC!J182/3.6/(2*Input!$B$5*PI())*60 -> 20.84962981 | Q181: =ROUND(IF(Calc_WHDHC!H182<0,Calc_WHDHC!I182,2*PI()*Calc_WHDHC!G182/60*Calc_WHDHC!H182/1000*IF(Input!$B$4="Other",0.95*0.95,0.98*0.95)),3) -> 12.928
A182: 177 | C182: =Calc_WHDHC!G183 -> 1080 | F182: =ROUND(IF(Calc_WHDHC!H183<0,Calc_WHDHC!I183*IF(Input!$B$4="Other",0.95*0.95,0.98*0.95),2*PI()*Calc_WHDHC!G183/60*Calc_WHDHC!H183/1000),3) -> 7.691 | I182: 177 | K182: - | N182: =Calc_WHDHC!J183/3.6/(2*Input!$B$5*PI())*60 -> 30.15305028 | Q182: =ROUND(IF(Calc_WHDHC!H183<0,Calc_WHDHC!I183,2*PI()*Calc_WHDHC!G183/60*Calc_WHDHC!H183/1000*IF(Input!$B$4="Other",0.95*0.95,0.98*0.95)),3) -> 7.16
A183: 178 | C183: =Calc_WHDHC!G184 -> 1075 | F183: =ROUND(IF(Calc_WHDHC!H184<0,Calc_WHDHC!I184*IF(Input!$B$4="Other",0.95*0.95,0.98*0.95),2*PI()*Calc_WHDHC!G184/60*Calc_WHDHC!H184/1000),3) -> 6.754 | I183: 178 | K183: - | N183: =Calc_WHDHC!J184/3.6/(2*Input!$B$5*PI())*60 -> 41.00704083 | Q183: =ROUND(IF(Calc_WHDHC!H184<0,Calc_WHDHC!I184,2*PI()*Calc_WHDHC!G184/60*Calc_WHDHC!H184/1000*IF(Input!$B$4="Other",0.95*0.95,0.98*0.95)),3) -> 6.288
A184: 179 | C184: =Calc_WHDHC!G185 -> 1068 | F184: =ROUND(IF(Calc_WHDHC!H185<0,Calc_WHDHC!I185*IF(Input!$B$4="Other",0.95*0.95,0.98*0.95),2*PI()*Calc_WHDHC!G185/60*Calc_WHDHC!H185/1000),3) -> 13.533 | I184: 179 | K184: - | N184: =Calc_WHDHC!J185/3.6/(2*Input!$B$5*PI())*60 -> 48.62144747 | Q184: =ROUND(IF(Calc_WHDHC!H185<0,Calc_WHDHC!I185,2*PI()*Calc_WHDHC!G185/60*Calc_WHDHC!H185/1000*IF(Input!$B$4="Other",0.95*0.95,0.98*0.95)),3) -> 12.599
A185: 180 | C185: =Calc_WHDHC!G186 -> 1120 | F185: =ROUND(IF(Calc_WHDHC!H186<0,Calc_WHDHC!I186*IF(Input!$B$4="Other",0.95*0.95,0.98*0.95),2*PI()*Calc_WHDHC!G186/60*Calc_WHDHC!H186/1000),3) -> 19.587 | I185: 180 | K185: - | N185: =Calc_WHDHC!J186/3.6/(2*Input!$B$5*PI())*60 -> 50.89192509 | Q185: =ROUND(IF(Calc_WHDHC!H186<0,Calc_WHDHC!I186,2*PI()*Calc_WHDHC!G186/60*Calc_WHDHC!H186/1000*IF(Input!$B$4="Other",0.95*0.95,0.98*0.95)),3) -> 18.235
A186: 181 | C186: =Calc_WHDHC!G187 -> 1064 | F186: =ROUND(IF(Calc_WHDHC!H187<0,Calc_WHDHC!I187*IF(Input!$B$4="Other",0.95*0.95,0.98*0.95),2*PI()*Calc_WHDHC!G187/60*Calc_WHDHC!H187/1000),3) -> 13.705 | I186: 181 | K186: - | N186: =Calc_WHDHC!J187/3.6/(2*Input!$B$5*PI())*60 -> 48.42762621 | Q186: =ROUND(IF(Calc_WHDHC!H187<0,Calc_WHDHC!I187,2*PI()*Calc_WHDHC!G187/60*Calc_WHDHC!H187/1000*IF(Input!$B$4="Other",0.95*0.95,0.98*0.95)),3) -> 12.759
A187: 182 | C187: =Calc_WHDHC!G188 -> 1107 | F187: =ROUND(IF(Calc_WHDHC!H188<0,Calc_WHDHC!I188*IF(Input!$B$4="Other",0.95*0.95,0.98*0.95),2*PI()*Calc_WHDHC!G188/60*Calc_WHDHC!H188/1000),3) -> 9.158 | I187: 182 | K187: - | N187: =Calc_WHDHC!J188/3.6/(2*Input!$B$5*PI())*60 -> 42.03152464 | Q187: =ROUND(IF(Calc_WHDHC!H188<0,Calc_WHDHC!I188,2*PI()*Calc_WHDHC!G188/60*Calc_WHDHC!H188/1000*IF(Input!$B$4="Other",0.95*0.95,0.98*0.95)),3) -> 8.526
A188: 183 | C188: =Calc_WHDHC!G189 -> 1149 | F188: =ROUND(IF(Calc_WHDHC!H189<0,Calc_WHDHC!I189*IF(Input!$B$4="Other",0.95*0.95,0.98*0.95),2*PI()*Calc_WHDHC!G189/60*Calc_WHDHC!H189/1000),3) -> 13.596 | I188: 183 | K188: - | N188: =Calc_WHDHC!J189/3.6/(2*Input!$B$5*PI())*60 -> 36.21688684 | Q188: =ROUND(IF(Calc_WHDHC!H189<0,Calc_WHDHC!I189,2*PI()*Calc_WHDHC!G189/60*Calc_WHDHC!H189/1000*IF(Input!$B$4="Other",0.95*0.95,0.98*0.95)),3) -> 12.658
A189: 184 | C189: =Calc_WHDHC!G190 -> 1072 | F189: =ROUND(IF(Calc_WHDHC!H190<0,Calc_WHDHC!I190*IF(Input!$B$4="Other",0.95*0.95,0.98*0.95),2*PI()*Calc_WHDHC!G190/60*Calc_WHDHC!H190/1000),3) -> 18.972 | I189: 184 | K189: - | N189: =Calc_WHDHC!J190/3.6/(2*Input!$B$5*PI())*60 -> 33.86334297 | Q189: =ROUND(IF(Calc_WHDHC!H190<0,Calc_WHDHC!I190,2*PI()*Calc_WHDHC!G190/60*Calc_WHDHC!H190/1000*IF(Input!$B$4="Other",0.95*0.95,0.98*0.95)),3) -> 17.663
A190: 185 | C190: =Calc_WHDHC!G191 -> 1055 | F190: =ROUND(IF(Calc_WHDHC!H191<0,Calc_WHDHC!I191*IF(Input!$B$4="Other",0.95*0.95,0.98*0.95),2*PI()*Calc_WHDHC!G191/60*Calc_WHDHC!H191/1000),3) -> 20.218 | I190: 185 | K190: - | N190: =Calc_WHDHC!J191/3.6/(2*Input!$B$5*PI())*60 -> 33.30956794 | Q190: =ROUND(IF(Calc_WHDHC!H191<0,Calc_WHDHC!I191,2*PI()*Calc_WHDHC!G191/60*Calc_WHDHC!H191/1000*IF(Input!$B$4="Other",0.95*0.95,0.98*0.95)),3) -> 18.823
A191: 186 | C191: =Calc_WHDHC!G192 -> 1028 | F191: =ROUND(IF(Calc_WHDHC!H192<0,Calc_WHDHC!I192*IF(Input!$B$4="Other",0.95*0.95,0.98*0.95),2*PI()*Calc_WHDHC!G192/60*Calc_WHDHC!H192/1000),3) -> 16.04 | I191: 186 | K191: - | N191: =Calc_WHDHC!J192/3.6/(2*Input!$B$5*PI())*60 -> 32.45121665 | Q191: =ROUND(IF(Calc_WHDHC!H192<0,Calc_WHDHC!I192,2*PI()*Calc_WHDHC!G192/60*Calc_WHDHC!H192/1000*IF(Input!$B$4="Other",0.95*0.95,0.98*0.95)),3) -> 14.933
A192: 187 | C192: =Calc_WHDHC!G193 -> 935 | F192: =ROUND(IF(Calc_WHDHC!H193<0,Calc_WHDHC!I193*IF(Input!$B$4="Other",0.95*0.95,0.98*0.95),2*PI()*Calc_WHDHC!G193/60*Calc_WHDHC!H193/1000),3) -> 12.827 | I192: 187 | K192: - | N192: =Calc_WHDHC!J193/3.6/(2*Input!$B$5*PI())*60 -> 29.59927525 | Q192: =ROUND(IF(Calc_WHDHC!H193<0,Calc_WHDHC!I193,2*PI()*Calc_WHDHC!G193/60*Calc_WHDHC!H193/1000*IF(Input!$B$4="Other",0.95*0.95,0.98*0.95)),3) -> 11.942
A193: 188 | C193: =Calc_WHDHC!G194 -> 755 | F193: =ROUND(IF(Calc_WHDHC!H194<0,Calc_WHDHC!I194*IF(Input!$B$4="Other",0.95*0.95,0.98*0.95),2*PI()*Calc_WHDHC!G194/60*Calc_WHDHC!H194/1000),3) -> 8.064 | I193: 188 | K193: - | N193: =Calc_WHDHC!J194/3.6/(2*Input!$B$5*PI())*60 -> 24.03383622 | Q193: =ROUND(IF(Calc_WHDHC!H194<0,Calc_WHDHC!I194,2*PI()*Calc_WHDHC!G194/60*Calc_WHDHC!H194/1000*IF(Input!$B$4="Other",0.95*0.95,0.98*0.95)),3) -> 7.508
A194: 189 | C194: =Calc_WHDHC!G195 -> 560 | F194: =ROUND(IF(Calc_WHDHC!H195<0,Calc_WHDHC!I195*IF(Input!$B$4="Other",0.95*0.95,0.98*0.95),2*PI()*Calc_WHDHC!G195/60*Calc_WHDHC!H195/1000),3) -> 3.401 | I194: 189 | K194: - | N194: =Calc_WHDHC!J195/3.6/(2*Input!$B$5*PI())*60 -> 17.16702587 | Q194: =ROUND(IF(Calc_WHDHC!H195<0,Calc_WHDHC!I195,2*PI()*Calc_WHDHC!G195/60*Calc_WHDHC!H195/1000*IF(Input!$B$4="Other",0.95*0.95,0.98*0.95)),3) -> 3.167
A195: 190 | C195: =Calc_WHDHC!G196 -> 560 | F195: =ROUND(IF(Calc_WHDHC!H196<0,Calc_WHDHC!I196*IF(Input!$B$4="Other",0.95*0.95,0.98*0.95),2*PI()*Calc_WHDHC!G196/60*Calc_WHDHC!H196/1000),3) -> 0 | I195: 190 | K195: - | N195: =Calc_WHDHC!J196/3.6/(2*Input!$B$5*PI())*60 -> 11.26932182 | Q195: =ROUND(IF(Calc_WHDHC!H196<0,Calc_WHDHC!I196,2*PI()*Calc_WHDHC!G196/60*Calc_WHDHC!H196/1000*IF(Input!$B$4="Other",0.95*0.95,0.98*0.95)),3) -> 0
A196: 191 | C196: =Calc_WHDHC!G197 -> 560 | F196: =ROUND(IF(Calc_WHDHC!H197<0,Calc_WHDHC!I197*IF(Input!$B$4="Other",0.95*0.95,0.98*0.95),2*PI()*Calc_WHDHC!G197/60*Calc_WHDHC!H197/1000),3) -> 0 | I196: 191 | K196: - | N196: =Calc_WHDHC!J197/3.6/(2*Input!$B$5*PI())*60 -> 7.337519123 | Q196: =ROUND(IF(Calc_WHDHC!H197<0,Calc_WHDHC!I197,2*PI()*Calc_WHDHC!G197/60*Calc_WHDHC!H197/1000*IF(Input!$B$4="Other",0.95*0.95,0.98*0.95)),3) -> 0
A197: 192 | C197: =Calc_WHDHC!G198 -> 560 | F197: =ROUND(IF(Calc_WHDHC!H198<0,Calc_WHDHC!I198*IF(Input!$B$4="Other",0.95*0.95,0.98*0.95),2*PI()*Calc_WHDHC!G198/60*Calc_WHDHC!H198/1000),3) -> 0 | I197: 192 | K197: - | N197: =Calc_WHDHC!J198/3.6/(2*Input!$B$5*PI())*60 -> 5.31624027 | Q197: =ROUND(IF(Calc_WHDHC!H198<0,Calc_WHDHC!I198,2*PI()*Calc_WHDHC!G198/60*Calc_WHDHC!H198/1000*IF(Input!$B$4="Other",0.95*0.95,0.98*0.95)),3) -> 0
A198: 193 | C198: =Calc_WHDHC!G199 -> 560 | F198: =ROUND(IF(Calc_WHDHC!H199<0,Calc_WHDHC!I199*IF(Input!$B$4="Other",0.95*0.95,0.98*0.95),2*PI()*Calc_WHDHC!G199/60*Calc_WHDHC!H199/1000),3) -> 0 | I198: 193 | K198: - | N198: =Calc_WHDHC!J199/3.6/(2*Input!$B$5*PI())*60 -> 4.679398988 | Q198: =ROUND(IF(Calc_WHDHC!H199<0,Calc_WHDHC!I199,2*PI()*Calc_WHDHC!G199/60*Calc_WHDHC!H199/1000*IF(Input!$B$4="Other",0.95*0.95,0.98*0.95)),3) -> 0
A199: 194 | C199: =Calc_WHDHC!G200 -> 560 | F199: =ROUND(IF(Calc_WHDHC!H200<0,Calc_WHDHC!I200*IF(Input!$B$4="Other",0.95*0.95,0.98*0.95),2*PI()*Calc_WHDHC!G200/60*Calc_WHDHC!H200/1000),3) -> 0 | I199: 194 | K199: - | N199: =Calc_WHDHC!J200/3.6/(2*Input!$B$5*PI())*60 -> 4.651710237 | Q199: =ROUND(IF(Calc_WHDHC!H200<0,Calc_WHDHC!I200,2*PI()*Calc_WHDHC!G200/60*Calc_WHDHC!H200/1000*IF(Input!$B$4="Other",0.95*0.95,0.98*0.95)),3) -> 0
A200: 195 | C200: =Calc_WHDHC!G201 -> 560 | F200: =ROUND(IF(Calc_WHDHC!H201<0,Calc_WHDHC!I201*IF(Input!$B$4="Other",0.95*0.95,0.98*0.95),2*PI()*Calc_WHDHC!G201/60*Calc_WHDHC!H201/1000),3) -> 0 | I200: 195 | K200: - | N200: =Calc_WHDHC!J201/3.6/(2*Input!$B$5*PI())*60 -> 4.596332734 | Q200: =ROUND(IF(Calc_WHDHC!H201<0,Calc_WHDHC!I201,2*PI()*Calc_WHDHC!G201/60*Calc_WHDHC!H201/1000*IF(Input!$B$4="Other",0.95*0.95,0.98*0.95)),3) -> 0
... 1605 more rows
